Workbook

Sheet Instructions
B2: Show summer times as | C2: BST
B49: Version Control: | C49: Ver | D49: Date | E49: Change | F49: Author / Contributor
C51: 1.00 | D51: 01/03/2010 | E51: Initial Release | F51: P.Orr
C52: 1.01 | D52: 26/04/2010 | E52: Add BST view option, and Liverpool and Dover times. | F52: P. Orr / N. Hackney
C53: 1.02 | D53: 12/01/2011 | E53: 2011 data inserted | F53: P.Orr
C54: 1.03 | D54: 29/10/2010 | E54: 2012 data inserted | F54: P.Orr
C55: 1.04 | D55: 09/03/2012 | E55: Victoria Dock gate operation times added | F55: P.Orr
C56: 1.05 | D56: 2012-02-03 | E56: 2013 data inserted REPLACED with 2014 data 09/02/2014 | F56: P. Orr

Sheet 4 day view
D1: 10 | E1: 11 | F1: 12 | G1: 13 | H1: 14 | I1: 15 | J1: 16 | K1: 17 | L1: 18 | M1: 19 | N1: 20 | O1: 21 | P1: 22 | Q1: 23 | R1: 24 | S1: 25
A2: =MATCH(B3,Tides!D11:D1420,0) -> 770 | B2: 9 | C2: 10 | D2: =$A$2+D1 -> 780 | E2: 781 | F2: 782 | G2: 783 | H2: 784 | I2: 785 | J2: 786 | K2: 787 | L2: 788 | M2: 789 | N2: 790 | O2: 791 | P2: 792 | Q2: 793 | R2: 794 | S2: 795
A3: 5 | B3: =TODAY() + (5 - WEEKDAY(TODAY(), 2)) + C3 - 365 -> 2019-07-19 | C3: 1904-12-31 | D3: =INDIRECT("'Tides'!"&ADDRESS(D$2,$A3)) -> 2019-07-19 | E3: Fri | H3: 2019-07-20 | I3: Sat | L3: 2019-07-21 | M3: Sun | P3: 2019-07-22 | Q3: Mon
A4: 3 | D4: 2019-07-18T23:27:00 | E4: 2019-07-19T05:39:00 | F4: 2019-07-19T11:51:00 | G4: 2019-07-19T17:50:00 | H4: 2019-07-20T00:01:00 | I4: 2019-07-20T06:14:00 | J4: 2019-07-20T12:25:00 | K4: 2019-07-20T18:25:00 | L4: 2019-07-21T00:36:00 | M4: 2019-07-21T06:49:00 | N4: 2019-07-21T13:00:00 | O4: 2019-07-21T19:00:00 | P4: 2019-07-22T01:11:00 | Q4: 2019-07-22T07:25:00 | R4: 2019-07-22T13:36:00 | S4: 2019-07-22T19:37:00
A5: 13 | B5: =IF(Instructions!C2="BST","All Times Local","All Times UTC") -> All Times Local | C5: =INDIRECT("'Tides'!"&ADDRESS(C$2,$A5)) -> State | D5: HW | E5: LW | F5: HW | G5: LW | H5: HW | I5: LW | J5: HW | K5: LW | L5: HW | M5: LW | N5: HW | O5: LW | P5: HW | Q5: LW | R5: HW | S5: LW
A6: 11 | B6: =INDIRECT("'Tides'!"&ADDRESS(B$2,$A6)) -> HOLYHEAD | C6: Time | D6: 42203.01875 | E6: 42203.27708 | F6: 42203.53542 | G6: 42203.78472 | H6: 42204.04236 | I6: 42204.30139 | J6: 42204.55903 | K6: 42204.80903 | L6: 42205.06667 | M6: 42205.32569 | N6: 42205.58333 | O6: 42205.83333 | P6: 42206.09097 | Q6: 42206.35069 | R6: 42206.60833 | S6: 42206.85903
A7: 12 | B7: =INDIRECT("'Tides 2010'!"&ADDRESS(B$2,$A7)) ->  | C7: Ht | D7: 5.47 | E7: 1.01 | F7: 5.08 | G7: 1.22 | H7: 5.43 | I7: 1.07 | J7: 5 | K7: 1.32 | L7: 5.34 | M7: 1.17 | N7: 4.91 | O7: 1.46 | P7: 5.21 | Q7: 1.3 | R7: 4.79 | S7: 1.62
A8: 19 | B8: =INDIRECT("'Tides'!"&ADDRESS(B$2,$A8)) -> Beaumaris | C8: Time | D8: 42203.03516 | E8: 42203.31377 | F8: 42203.55252 | G8: 42203.82099 | H8: 42204.05969 | I8: 42204.33673 | J8: 42204.57567 | K8: 42204.84394 | L8: 42205.08299 | M8: 42205.35968 | N8: 42205.59896 | O8: 42205.8669 | P8: 42206.10628 | Q8: 42206.38329 | R8: 42206.62292 | S8: 42206.89117
A9: 20 | B9: =INDIRECT("'Tides 2010'!"&ADDRESS(B$2,$A9)) ->  | C9: Ht | D9: 7.363478261 | E9: 1.189312977 | F9: 6.820869565 | G9: 1.461832061 | H9: 7.307826087 | I9: 1.267175573 | J9: 6.709565217 | K9: 1.591603053 | L9: 7.182608696 | M9: 1.396946565 | N9: 6.584347826 | O9: 1.773282443 | P9: 7.00173913 | Q9: 1.565648855 | R9: 6.417391304 | S9: 1.980916031
A10: 21 | B10: =INDIRECT("'Tides'!"&ADDRESS(B$2,$A10)) -> SLACK | C10: Time | D10: 42203.10113 | E10: 42203.37975 | F10: 42203.61849 | G10: 42203.88696 | H10: 42204.12567 | I10: 42204.4027 | J10: 42204.64164 | K10: 42204.90992 | L10: 42205.14896 | M10: 42205.42566 | N10: 42205.66493 | O10: 42205.93287 | P10: 42206.17225 | Q10: 42206.44927 | R10: 42206.68889 | S10: 42206.95714
A11: 22 | B11: =INDIRECT("'Tides'!"&ADDRESS(B$2,$A11)) -> Menai Bridge | C11: Time | D11: 42203.03831 | E11: 42203.28591 | F11: 42203.5559 | G11: 42203.79408 | H11: 42204.06316 | I11: 42204.3119 | J11: 42204.5789 | K11: 42204.82007 | L11: 42205.08611 | M11: 42205.3379 | N11: 42205.60185 | O11: 42205.84606 | P11: 42206.10907 | Q11: 42206.36463 | R11: 42206.62546 | S11: 42206.87354
A12: 23 | B12: =INDIRECT("'Tides 2010'!"&ADDRESS(B$2,$A12)) ->  | C12: Ht | D12: 7.07826087 | E12: 1.066412214 | F12: 6.569565217 | G12: 1.322900763 | H12: 7.026086957 | I12: 1.139694656 | J12: 6.465217391 | K12: 1.445038168 | L12: 6.908695652 | M12: 1.261832061 | N12: 6.347826087 | O12: 1.616030534 | P12: 6.739130435 | Q12: 1.420610687 | R12: 6.191304348 | S12: 1.811450382
A13: 24 | B13: =INDIRECT("'Tides'!"&ADDRESS(B$2,$A13)) -> Swellies SLACK | C13: Time | D13: =INDIRECT("'Tides'!"&ADDRESS(D$2,$A13)) -> 42202.97708 | E13: 42203.23542 | F13: 42203.49375 | G13: 42203.74306 | H13: 42204.00069 | I13: 42204.25972 | J13: 42204.51736 | K13: 42204.76736 | L13: 42205.025 | M13: 42205.28403 | N13: 42205.54167 | O13: 42205.79167 | P13: 42206.04931 | Q13: 42206.30903 | R13: 42206.56667 | S13: 42206.81736
A14: 25 | B14: =INDIRECT("'Tides'!"&ADDRESS(B$2,$A14)) -> P'dinorwic | C14: Time | D14: 42203.0077 | E14: 42203.29566 | F14: 42203.52483 | G14: 42203.80266 | H14: 42204.03193 | I14: 42204.31794 | J14: 42204.54813 | K14: 42204.82494 | L14: 42205.05556 | M14: 42205.34022 | N14: 42205.57176 | O14: 42205.84722 | P14: 42206.07919 | Q14: 42206.36314 | R14: 42206.59606 | S14: 42206.87078
A15: 26 | B15: =INDIRECT("'Tides 2010'!"&ADDRESS(B$2,$A15)) ->  | C15: Ht | D15: 5.422608696 | E15: 1.07480916 | F15: 5.015652174 | G15: 1.267175573 | H15: 5.380869565 | I15: 1.129770992 | J15: 4.932173913 | K15: 1.358778626 | L15: 5.286956522 | M15: 1.221374046 | N15: 4.83826087 | O15: 1.487022901 | P15: 5.151304348 | Q15: 1.340458015 | R15: 4.713043478 | S15: 1.633587786
A16: 27 | B16: =INDIRECT("'Tides'!"&ADDRESS(B$2,$A16)) -> P.D. SLACK | C16: Time | D16: 42202.99728 | E16: 42203.24809 | F16: 42203.51441 | G16: 42203.75637 | H16: 42204.02151 | I16: 42204.27442 | J16: 42204.53771 | K16: 42204.7827 | L16: 42205.04514 | M16: 42205.30075 | N16: 42205.56134 | O16: 42205.80903 | P16: 42206.06877 | Q16: 42206.32784 | R16: 42206.58565 | S16: 42206.83686
A17: 28 | B17: =INDIRECT("'Tides'!"&ADDRESS(B$2,$A17)) -> Caern'fon | C17: Time | D17: 42202.99792 | E17: 42203.286 | F17: 42203.51458 | G17: 42203.79321 | H17: 42204.02153 | I17: 42204.30895 | J17: 42204.53819 | K17: 42204.81617 | L17: 42205.04583 | M17: 42205.33191 | N17: 42205.5625 | O17: 42205.83912 | P17: 42206.07014 | Q17: 42206.35552 | R17: 42206.5875 | S17: 42206.86339
A18: 29 | B18: =INDIRECT("'Tides 2010'!"&ADDRESS(B$2,$A18)) ->  | C18: Ht | D18: 5.022608696 | E18: 0.8977099237 | F18: 4.615652174 | G18: 1.10610687 | H18: 4.980869565 | I18: 0.9572519084 | J18: 4.532173913 | K18: 1.205343511 | L18: 4.886956522 | M18: 1.05648855 | N18: 4.43826087 | O18: 1.344274809 | P18: 4.751304348 | Q18: 1.185496183 | R18: 4.313043478 | S18: 1.503053435
A19: 30 | B19: =INDIRECT("'Tides'!"&ADDRESS(B$2,$A19)) -> Victoria Dock Gt | C19: Gate | D19: =INDIRECT("'Tides'!"&ADDRESS(D$2,$A19)) -> Opn | E19: Cls | F19: Opn | G19: Cls | H19: Opn | I19: Cls | J19: Opn | K19: Cls | L19: Opn | M19: Cls | N19: Opn | O19: Cls | P19: Opn | Q19: Cls | R19: Opn | S19: Cls
A20: 31 | B20: =INDIRECT("'Tides 2010'!"&ADDRESS(B$2,$A20)) ->  | C20: =INDIRECT("'Tides'!"&ADDRESS(C$2,$A20)) -> Time | D20: 42202.88333 | E20: 42203.1125 | F20: 42203.4 | G20: 42203.62917 | H20: 42203.90694 | I20: 42204.13611 | J20: 42204.42361 | K20: 42204.65278 | L20: 42204.93125 | M20: 42205.16042 | N20: 42205.44792 | O20: 42205.67708 | P20: 42205.95556 | Q20: 42206.18472 | R20: 42206.47292 | S20: 42206.70208
A21: 32 | B21: =INDIRECT("'Tides'!"&ADDRESS(B$2,$A21)) -> Ft Belan | C21: Time | D21: 42202.99256 | E21: 42203.26123 | F21: 42203.50807 | G21: 42203.76929 | H21: 42204.01463 | I21: 42204.28688 | J21: 42204.53246 | K21: 42204.79495 | L21: 42205.04063 | M21: 42205.31254 | N21: 42205.55845 | O21: 42205.8206 | P21: 42206.06662 | Q21: 42206.33893 | R21: 42206.58519 | S21: 42206.84772
A22: 33 | B22: =INDIRECT("'Tides 2010'!"&ADDRESS(B$2,$A22)) ->  | C22: Ht | D22: 4.437391304 | E22: 0.8748091603 | F22: 4.064347826 | G22: 1.067175573 | H22: 4.399130435 | I22: 0.9297709924 | J22: 3.987826087 | K22: 1.158778626 | L22: 4.313043478 | M22: 1.021374046 | N22: 3.90173913 | O22: 1.287022901 | P22: 4.188695652 | Q22: 1.140458015 | R22: 3.786956522 | S22: 1.433587786
A23: 34 | B23: =INDIRECT("'Tides'!"&ADDRESS(B$2,$A23)) -> Llanddwyn | C23: Time | D23: 42202.96794 | E23: 42203.257 | F23: 42203.48368 | G23: 42203.76485 | H23: 42203.99032 | I23: 42204.28198 | J23: 42204.50791 | K23: 42204.78983 | L23: 42205.01597 | M23: 42205.30696 | N23: 42205.53356 | O23: 42205.81481 | P23: 42206.04163 | Q23: 42206.33266 | R23: 42206.55995 | S23: 42206.84122
A24: 35 | B24: =INDIRECT("'Tides 2010'!"&ADDRESS(B$2,$A24)) ->  | C24: Ht | D24: 4.752173913 | E24: 0.9748091603 | F24: 4.413043478 | G24: 1.167175573 | H24: 4.717391304 | I24: 1.029770992 | J24: 4.343478261 | K24: 1.258778626 | L24: 4.639130435 | M24: 1.121374046 | N24: 4.265217391 | O24: 1.387022901 | P24: 4.526086957 | Q24: 1.240458015 | R24: 4.160869565 | S24: 1.533587786
A25: 36 | B25: =INDIRECT("'Tides'!"&ADDRESS(B$2,$A25)) -> Trwyn Dimnor | C25: Time | D25: 42203.03547 | E25: 42203.31068 | F25: 42203.5526 | G25: 42203.818 | H25: 42204.0597 | I25: 42204.33397 | J25: 42204.57591 | K25: 42204.84129 | L25: 42205.08333 | M25: 42205.35726 | N25: 42205.59954 | O25: 42205.86458 | P25: 42206.10696 | Q25: 42206.38122 | R25: 42206.62384 | S25: 42206.88921
A26: 37 | B26: =INDIRECT("'Tides 2010'!"&ADDRESS(B$2,$A26)) ->  | C26: Ht | D26: 7.263478261 | E26: 1.266412214 | F26: 6.720869565 | G26: 1.522900763 | H26: 7.207826087 | I26: 1.339694656 | J26: 6.609565217 | K26: 1.645038168 | L26: 7.082608696 | M26: 1.461832061 | N26: 6.484347826 | O26: 1.816030534 | P26: 6.90173913 | Q26: 1.620610687 | R26: 6.317391304 | S26: 2.011450382
A27: 38 | B27: =INDIRECT("'Tides'!"&ADDRESS(B$2,$A27)) -> Moelfre | C27: Time | D27: 42203.03579 | E27: 42203.31068 | F27: 42203.55269 | G27: 42203.818 | H27: 42204.05971 | I27: 42204.33397 | J27: 42204.57615 | K27: 42204.84129 | L27: 42205.08368 | M27: 42205.35726 | N27: 42205.60012 | O27: 42205.86458 | P27: 42206.10765 | Q27: 42206.38122 | R27: 42206.62477 | S27: 42206.88921
A28: 39 | B28: =INDIRECT("'Tides 2010'!"&ADDRESS(B$2,$A28)) ->  | C28: Ht | D28: 7.248695652 | E28: 1.266412214 | F28: 6.672173913 | G28: 1.522900763 | H28: 7.189565217 | I28: 1.339694656 | J28: 6.553913043 | K28: 1.645038168 | L28: 7.056521739 | M28: 1.461832061 | N28: 6.420869565 | O28: 1.816030534 | P28: 6.864347826 | Q28: 1.620610687 | R28: 6.243478261 | S28: 2.011450382
A29: 40 | B29: =INDIRECT("'Tides'!"&ADDRESS(B$2,$A29)) -> Amlwch | C29: Time | D29: 42203.032 | E29: 42203.30064 | F29: 42203.54913 | G29: 42203.80806 | H29: 42204.05623 | I29: 42204.32427 | J29: 42204.57243 | K29: 42204.83169 | L29: 42205.07986 | M29: 42205.3479 | N29: 42205.59606 | O29: 42205.85532 | P29: 42206.10349 | Q29: 42206.3722 | R29: 42206.62037 | S29: 42206.8803
A30: 41 | B30: =INDIRECT("'Tides 2010'!"&ADDRESS(B$2,$A30)) ->  | C30: Ht | D30: 6.97826087 | E30: 1.266412214 | F30: 6.469565217 | G30: 1.522900763 | H30: 6.926086957 | I30: 1.339694656 | J30: 6.365217391 | K30: 1.645038168 | L30: 6.808695652 | M30: 1.461832061 | N30: 6.247826087 | O30: 1.816030534 | P30: 6.639130435 | Q30: 1.620610687 | R30: 6.091304348 | S30: 2.011450382
A31: 42 | B31: =INDIRECT("'Tides'!"&ADDRESS(B$2,$A31)) -> Cemaes | C31: Time | D31: 42203.03296 | E31: 42203.30448 | F31: 42203.54939 | G31: 42203.81202 | H31: 42204.05626 | I31: 42204.32845 | J31: 42204.57316 | K31: 42204.83599 | L31: 42205.0809 | M31: 42205.35242 | N31: 42205.5978 | O31: 42205.85995 | P31: 42206.10555 | Q31: 42206.37707 | R31: 42206.62315 | S31: 42206.88529
A32: 43 | B32: =INDIRECT("'Tides 2010'!"&ADDRESS(B$2,$A32)) ->  | C32: Ht | D32: 6.37826087 | E32: 1.14351145 | F32: 5.869565217 | G32: 1.383969466 | H32: 6.326086957 | I32: 1.21221374 | J32: 5.765217391 | K32: 1.498473282 | L32: 6.208695652 | M32: 1.326717557 | N32: 5.647826087 | O32: 1.658778626 | P32: 6.039130435 | Q32: 1.475572519 | R32: 5.491304348 | S32: 1.841984733
A33: 44 | B33: =INDIRECT("'Tides'!"&ADDRESS(B$2,$A33)) -> Skrries SLACK | C33: Time | D33: 42203.00833 | E33: 42203.26667 | F33: 42203.525 | G33: 42203.77431 | H33: 42204.03194 | I33: 42204.29097 | J33: 42204.54861 | K33: 42204.79861 | L33: 42205.05625 | M33: 42205.31528 | N33: 42205.57292 | O33: 42205.82292 | P33: 42206.08056 | Q33: 42206.34028 | R33: 42206.59792 | S33: 42206.84861
A34: 45 | B34: =INDIRECT("'Tides'!"&ADDRESS(B$2,$A34)) -> Sth.Stck SLACK | C34: Time | D34: 42203.02917 | E34: 42203.29097 | F34: 42203.54583 | G34: 42203.79861 | H34: 42204.05278 | I34: 42204.31528 | J34: 42204.56944 | K34: 42204.82292 | L34: 42205.07708 | M34: 42205.33958 | N34: 42205.59375 | O34: 42205.84722 | P34: 42206.10139 | Q34: 42206.36458 | R34: 42206.61875 | S34: 42206.87292
A35: 46 | B35: =INDIRECT("'Tides'!"&ADDRESS(B$2,$A35)) -> Tr'ddr Bay | C35: Time | D35: 42202.98877 | E35: 42203.26667 | F35: 42203.50451 | G35: 42203.77431 | H35: 42204.01115 | I35: 42204.29097 | J35: 42204.52874 | K35: 42204.79861 | L35: 42205.03681 | M35: 42205.31528 | N35: 42205.5544 | O35: 42205.82292 | P35: 42206.06246 | Q35: 42206.34028 | R35: 42206.58079 | S35: =INDIRECT("'Tides'!"&ADDRESS(S$2,$A35)) -> 42206.84861
A36: 47 | B36: =INDIRECT("'Tides 2010'!"&ADDRESS(B$2,$A36)) ->  | C36: Ht | D36: 5.022608696 | E36: 1.07480916 | F36: 4.615652174 | G36: 1.267175573 | H36: 4.980869565 | I36: 1.129770992 | J36: 4.532173913 | K36: 1.358778626 | L36: 4.886956522 | M36: 1.221374046 | N36: 4.43826087 | O36: 1.487022901 | P36: 4.751304348 | Q36: 1.340458015 | R36: 4.313043478 | S36: 1.633587786
A37: 48 | B37: =INDIRECT("'Tides'!"&ADDRESS(B$2,$A37)) -> Porth T'castell | C37: Time | D37: 42202.98877 | E37: 42203.27286 | F37: 42203.50451 | G37: 42203.78029 | H37: 42204.01115 | I37: 42204.29649 | J37: 42204.52874 | K37: 42204.80392 | L37: 42205.03681 | M37: 42205.32012 | N37: 42205.5544 | O37: 42205.82755 | P37: 42206.06246 | Q37: 42206.34443 | R37: 42206.58079 | S37: 42206.85253
A38: 49 | B38: =INDIRECT("'Tides 2010'!"&ADDRESS(B$2,$A38)) ->  | C38: Ht | D38: 4.822608696 | E38: 0.9977099237 | F38: 4.415652174 | G38: 1.20610687 | H38: 4.780869565 | I38: 1.057251908 | J38: 4.332173913 | K38: 1.305343511 | L38: 4.686956522 | M38: 1.15648855 | N38: 4.23826087 | O38: 1.444274809 | P38: 4.551304348 | Q38: 1.285496183 | R38: 4.113043478 | S38: 1.603053435
A39: 50 | B39: =INDIRECT("'Tides'!"&ADDRESS(B$2,$A39)) -> Trefor | C39: Time | D39: 42202.96762 | E39: 42203.257 | F39: 42203.48359 | G39: 42203.76485 | H39: 42203.99031 | I39: 42204.28198 | J39: 42204.50767 | K39: 42204.78983 | L39: 42205.01562 | M39: 42205.30696 | N39: 42205.53299 | O39: 42205.81481 | P39: 42206.04094 | Q39: 42206.33266 | R39: 42206.55903 | S39: 42206.84122
A40: 51 | B40: =INDIRECT("'Tides 2010'!"&ADDRESS(B$2,$A40)) ->  | C40: Ht | D40: 4.607826087 | E40: 0.8748091603 | F40: 4.166956522 | G40: 1.067175573 | H40: 4.562608696 | I40: 0.9297709924 | J40: 4.076521739 | K40: 1.158778626 | L40: 4.460869565 | M40: 1.021374046 | N40: 3.974782609 | O40: 1.287022901 | P40: 4.313913043 | Q40: 1.140458015 | R40: 3.839130435 | S40: 1.433587786
A41: 52 | B41: =INDIRECT("'Tides'!"&ADDRESS(B$2,$A41)) -> Porth Dinllaen | C41: Time | D41: 42202.96415 | E41: 42203.25353 | F41: 42203.48012 | G41: 42203.76138 | H41: 42203.98683 | I41: 42204.27851 | J41: 42204.5042 | K41: 42204.78636 | L41: 42205.01215 | M41: 42205.30349 | N41: 42205.52951 | O41: 42205.81134 | P41: 42206.03747 | Q41: 42206.32919 | R41: 42206.55556 | S41: 42206.83775
A42: 53 | B42: =INDIRECT("'Tides 2010'!"&ADDRESS(B$2,$A42)) ->  | C42: Ht | D42: 4.422608696 | E42: 0.7977099237 | F42: 4.015652174 | G42: 1.00610687 | H42: 4.380869565 | I42: 0.8572519084 | J42: 3.932173913 | K42: 1.105343511 | L42: 4.286956522 | M42: 0.9564885496 | N42: 3.83826087 | O42: 1.244274809 | P42: 4.151304348 | Q42: 1.085496183 | R42: 3.713043478 | S42: 1.403053435
A43: 54 | B43: =INDIRECT("'Tides'!"&ADDRESS(B$2,$A43)) -> Port Ysgaden | C43: Time | D43: 42202.96068 | E43: 42203.24968 | F43: 42203.47665 | G43: 42203.75743 | H43: 42203.98336 | I43: 42204.27432 | J43: 42204.50072 | K43: 42204.78207 | L43: 42205.00868 | M43: 42205.29897 | N43: 42205.52604 | O43: 42205.80671 | P43: 42206.034 | Q43: 42206.32432 | R43: 42206.55208 | S43: 42206.83276
A44: 55 | B44: =INDIRECT("'Tides 2010'!"&ADDRESS(B$2,$A44)) ->  | C44: Ht | D44: 4.337391304 | E44: 0.8977099237 | F44: 3.964347826 | G44: 1.10610687 | H44: 4.299130435 | I44: 0.9572519084 | J44: 3.887826087 | K44: 1.205343511 | L44: 4.213043478 | M44: 1.05648855 | N44: 3.80173913 | O44: 1.344274809 | P44: 4.088695652 | Q44: 1.185496183 | R44: 3.686956522 | S44: 1.503053435
A45: 56 | B45: =INDIRECT("'Tides'!"&ADDRESS(B$2,$A45)) -> Bardsey Is | C45: Time | D45: 42202.92025 | E45: 42203.20454 | F45: 42203.43785 | G45: 42203.71229 | H45: 42203.9451 | I45: 42204.22919 | J45: 42204.46084 | K45: 42204.73693 | L45: 42204.96806 | M45: 42205.25383 | N45: 42205.4838 | O45: 42205.76157 | P45: 42205.99101 | Q45: 42206.27918 | R45: 42206.50741 | S45: 42206.78763
A46: 57 | B46: =INDIRECT("'Tides 2010'!"&ADDRESS(B$2,$A46)) ->  | C46: Ht | D46: 4.222608696 | E46: 0.8061068702 | F46: 3.815652174 | G46: 0.9503816794 | H46: 4.180869565 | I46: 0.8473282443 | J46: 3.732173913 | K46: 1.019083969 | L46: 4.086956522 | M46: 0.9160305344 | N46: 3.63826087 | O46: 1.115267176 | P46: 3.951304348 | Q46: 1.005343511 | R46: 3.513043478 | S46: 1.22519084
A47: 58 | B47: =INDIRECT("'Tides'!"&ADDRESS(B$2,$A47)) -> Sound SLACK | C47: Time | D47: 42203.00833 | E47: 42203.30139 | F47: 42203.525 | G47: 42203.80903 | H47: 42204.03194 | I47: 42204.32569 | J47: 42204.54861 | K47: 42204.83333 | L47: 42205.05625 | M47: 42205.35 | N47: 42205.57292 | O47: 42205.85764 | P47: 42206.08056 | Q47: 42206.375 | R47: 42206.59792 | S47: 42206.88333
A48: 3
A49: 60 | B49: =INDIRECT("'Tides'!"&ADDRESS(B$2,$A49)) -> L'pool (approx) | C49: Time | D49: 42203.06042 | E49: 42203.31875 | F49: 42203.57708 | G49: 42203.82639 | H49: 42204.08403 | I49: 42204.34306 | J49: 42204.60069 | K49: 42204.85069 | L49: 42205.10833 | M49: 42205.36736 | N49: 42205.625 | O49: 42205.875 | P49: 42206.13264 | Q49: 42206.39236 | R49: =INDIRECT("'Tides'!"&ADDRESS(R$2,$A49)) -> 42206.65 | S49: =INDIRECT("'Tides'!"&ADDRESS(S$2,$A49)) -> 42206.90069
A50: 61 | B50: Dover (approx) | C50: Time | D50: 42203.05 | E50: 42203.30833 | F50: 42203.56667 | G50: 42203.81597 | H50: 42204.07361 | I50: 42204.33264 | J50: 42204.59028 | K50: 42204.84028 | L50: 42205.09792 | M50: 42205.35694 | N50: 42205.61458 | O50: 42205.86458 | P50: 42206.12222 | Q50: 42206.38194 | R50: =INDIRECT("'Tides'!"&ADDRESS(R$2,$A50)) -> 42206.63958 | S50: =INDIRECT("'Tides'!"&ADDRESS(S$2,$A50)) -> 42206.89028

Sheet Tides
A1: Time | B1: Adjustment to apply | C1: Raw HOLYHEAD DateTime | G1: MHWS | K1: 5.64 | S1: 7.6 | V1: 7.3 | Y1: 5.6 | AB1: 5.2 | AF1: 4.6 | AH1: 4.9 | AJ1: 7.5 | AL1: 7.5 | AN1: 7.2 | AP1: 6.6 | AT1: 5.2 | AV1: 5 | AX1: 4.8 | AZ1: 4.6 | BB1: 4.5 | BD1: 4.4
G2: MHWN | K2: 4.49 | S2: 6 | V2: 5.8 | Y2: 4.4 | AB2: 4 | AF2: 3.5 | AH2: 3.9 | AJ2: 5.9 | AL2: 5.8 | AN2: 5.7 | AP2: 5.1 | AT2: 4 | AV2: 3.8 | AX2: 3.5 | AZ2: 3.4 | BB2: 3.4 | BD2: 3.2
A3: BST Offset | G3: MLWN | K3: 2.02 | S3: 2.5 | V3: 2.3 | Y3: 2 | AB3: 1.9 | AF3: 1.8 | AH3: 1.9 | AJ3: 2.5 | AL3: 2.5 | AN3: 2.5 | AP3: 2.3 | AT3: 2 | AV3: 2 | AX3: 1.8 | AZ3: 1.8 | BB3: 1.9 | BD3: 1.5
G4: MLWS | K4: 0.71 | S4: 0.8 | V4: 0.7 | Y4: 0.8 | AB4: 0.6 | AF4: 0.6 | AH4: 0.7 | AJ4: 0.9 | AL4: 0.9 | AN4: 0.9 | AP4: 0.8 | AT4: 0.8 | AV4: 0.7 | AX4: 0.6 | AZ4: 0.5 | BB4: 0.6 | BD4: 0.6
G5: T Diff HW Sp | K5: @ | L5: 00:00:00 | M5: 12:00:00 | S5: 00:25:00 | U5: 02:00:00 | V5: 00:30:00 | X5: -0.04166666667 | Y5: -0.01041666667 | AA5: -0.02083333333 | AB5: -0.02083333333 | AF5: -0.02777777778 | AH5: -0.05208333333 | AJ5: 00:25:00 | AL5: 00:25:00 | AN5: 00:20:00 | AP5: 00:20:00 | AR5: -0.01041666667 | AS5: 00:15:00 | AT5: -0.03125 | AV5: -0.03125 | AX5: -0.05208333333 | AZ5: -0.05555555556 | BB5: -0.05902777778 | BD5: -0.09722222222 | BF5: -0.01041666667 | BH5: 01:00:00 | BI5: 00:45:00
G6: T Diff HW Np | K6: @ | L6: 06:00:00 | M6: 18:00:00 | S6: 00:10:00 | U6: 01:45:00 | V6: 00:10:00 | X6: -0.04166666667 | Y6: -0.01736111111 | AA6: -0.02777777778 | AB6: -0.02083333333 | AF6: -0.01041666667 | AH6: -0.03819444444 | AJ6: 00:15:00 | AL6: 00:20:00 | AN6: 00:10:00 | AP6: 00:25:00 | AR6: -0.01041666667 | AS6: 00:15:00 | AT6: -0.01736111111 | AV6: -0.01736111111 | AX6: -0.04166666667 | AZ6: -0.04513888889 | BB6: -0.04861111111 | BD6: -0.1111111111 | BF6: -0.01041666667 | BH6: 01:00:00 | BI6: 00:45:00
G7: T Diff LW Sp | K7: @ | L7: 05:00:00 | M7: 17:00:00 | S7: 00:55:00 | U7: 02:30:00 | V7: 00:10:00 | X7: -0.04166666667 | Y7: 00:30:00 | AA7: -0.03125 | AB7: 00:15:00 | AD7: +/- HW | AF7: -0.01736111111 | AH7: -0.02083333333 | AJ7: 00:50:00 | AL7: 00:50:00 | AN7: 00:35:00 | AP7: 00:40:00 | AR7: -0.01041666667 | AS7: 00:20:00 | AT7: -0.01041666667 | AV7: -0.003472222222 | AX7: -0.02083333333 | AZ7: -0.02430555556 | BB7: -0.02777777778 | BD7: -0.07291666667 | BF7: 00:35:00 | BH7: 01:00:00 | BI7: 00:45:00
G8: T Diff LW Np | K8: @ | L8: 11:00:00 | M8: 23:00:00 | S8: 00:35:00 | U8: 02:10:00 | V8: 00:35:00 | X8: -0.04166666667 | Y8: 00:00:00 | AA8: -0.01041666667 | AB8: -0.003472222222 | AD8: 02:45:00 | AF8: -0.003472222222 | AH8: -0.01388888889 | AJ8: 00:35:00 | AL8: 00:35:00 | AN8: 00:25:00 | AP8: 00:35:00 | AR8: -0.01041666667 | AS8: 00:20:00 | AT8: -0.01041666667 | AV8: -0.01041666667 | AX8: -0.01388888889 | AZ8: -0.01736111111 | BB8: -0.02430555556 | BD8: -0.06944444444 | BF8: 00:35:00 | BH8: 01:00:00 | BI8: 00:45:00
G9: Place | K9: HOLYHEAD | S9: Beaumaris | U9: SLACK | V9: Menai Bridge | X9: Swellies SLACK | Y9: P'dinorwic | AA9: P.D. SLACK | AB9: Caern'fon | AD9: Victoria Dock Gt | AF9: Ft Belan | AH9: Llanddwyn | AJ9: Trwyn Dimnor | AL9: Moelfre | AN9: Amlwch | AP9: Cemaes | AR9: Skrries SLACK | AS9: Sth.Stck SLACK | AT9: Tr'ddr Bay | AV9: Porth T'castell | AX9: Trefor | AZ9: Porth Dinllaen | BB9: Port Ysgaden | BD9: Bardsey Is | BF9: Sound SLACK | BH9: L'pool (approx) | BI9: Dover (approx)
K10: =$A$1 -> Time | L10: Ht | M10: State | N10: %SpHt | O10: Time | P10: SpTm | Q10: NpTm | R10: %SpTm | S10: Time | T10: Ht | U10: Time | V10: Time | W10: Ht | X10: Time | Y10: Time | Z10: Ht | AA10: Time | AB10: Time | AC10: Ht | AD10: Gate | AE10: Time | AF10: Time | AG10: Ht | AH10: Time | AI10: Ht | AJ10: Time | AK10: Ht | AL10: Time | AM10: Ht | AN10: Time | AO10: Ht | AP10: Time | AQ10: Ht | AR10: Time | AS10: Time | AT10: Time | AU10: Ht | AV10: Time | AW10: Ht | AX10: Time | AY10: Ht | AZ10: Time | BA10: Ht | BB10: Time | BC10: Ht | BD10: Time | BE10: Ht | BF10: Time | BH10: Time | BI10: Time
A11: 0 | B11: 0 | C11: 2019-01-01T00:23:00 | D11: =DATE(YEAR(K11),MONTH(K11),DAY(K11)) -> 2019-01-01 | E11: =IF(D11=D10,IF(J10="","",J10),D11) -> 2019-01-01 | F11: =MONTH(K11) -> 1 | G11: =IF(H11="","",TEXT(F11*29,"mmm")) -> Jan | H11: =IF(I11=I10,"",DAY(K11)) -> 1 | I11: =WEEKDAY(K11,2) -> 2 | J11: =IF(I11=I10,"",TEXT(I11+2,"ddd")) -> Tue | K11: =C11+B11/24 -> 42004.01597 | L11: 1.5 | M11: LW | N11: =IF(M11="HW",(L11-K$2)/(K$1-K$2),(L11-K$3)/(K$4-K$3)) -> 0.3969465649 | O11: =C11-INT(C11) -> 00:23:00 | P11: =IF(M11="HW",IF(AND(O11>=L$5,O11<L$6),L$5,IF(AND(O11>=L$6,O11<M$5),M$5,IF(AND(O11>=M$5,O11<M$6),M$5,IF(O11>=M$6,L$5+1,L$5)))),IF(AND(O11>=L$7,O11<L$8),L$7,IF(AND(O11>=L$8,O11<M$7),M$7,IF(AND(O11>=M$7,O11<M$8),M$7,IF(O11>=M$8,L$7+1,L$7))))) -> 05:00:00 | Q11: =IF(M11="HW",IF(AND(O11>=L$5,O11<L$6),L$6,IF(AND(O11>=L$6,O11<M$5),L$6,IF(AND(O11>=M$5,O11<M$6),M$6,IF(O11>=M$6,M$6,M$6-1)))),IF(AND(O11>=L$7,O11<L$8),L$8,IF(AND(O11>=L$8,O11<M$7),L$8,IF(AND(O11>=M$7,O11<M$8),M$8,IF(O11>=M$8,M$8,M$8-1))))) -> -0.04166666667 | R11: =ABS((O11-Q11)/(P11-Q11)) -> 0.2305555556 | S11: =IF($M11="HW",$K11+S$6+(S$5-S$6)*$R11,$K11+S$8+(S$7-S$8)*$R11) -> 42004.04348 | T11: =IF($M11="HW",S$2+(S$1-S$2)*$N11,S$3+(S$4-S$3)*$N11) -> 1.82519084 | U11: 42004.10945 | V11: 42004.03628 | W11: =IF($M11="HW",V$2+(V$1-V$2)*$N11,V$3+(V$4-V$3)*$N11) -> 1.664885496 | X11: =IF($M11="HW",$K11+X$6+(X$5-X$6)*$R11,$K11+X$8+(X$7-X$8)*$R11) -> 42003.97431 | Y11: 42004.02078 | Z11: =IF($M11="HW",Y$2+(Y$1-Y$2)*$N11,Y$3+(Y$4-Y$3)*$N11) -> 1.523664122 | AA11: =IF($M11="HW",$K11+AA$6+(AA$5-AA$6)*$R11,$K11+AA$8+(AA$7-AA$8)*$R11) -> 42004.00075 | AB11: =IF($M11="HW",$K11+AB$6+(AB$5-AB$6)*$R11,$K11+AB$8+(AB$7-AB$8)*$R11) -> 42004.0157 | AC11: =IF($M11="HW",AB$2+(AB$1-AB$2)*$N11,AB$3+(AB$4-AB$3)*$N11) -> 1.383969466 | AD11: =IF($M11="HW","Opn","Cls") -> Cls | AE11: =IF($M11="HW",$AB11-AD$8,IF($AB10="HW",$AB11+AD$8,"?")) -> ? | AF11: =IF($M11="HW",$K11+AF$6+(AF$5-AF$6)*$R11,$K11+AF$8+(AF$7-AF$8)*$R11) -> 42004.0093 | AG11: =IF($M11="HW",AF$2+(AF$1-AF$2)*$N11,AF$3+(AF$4-AF$3)*$N11) -> 1.323664122 | AH11: =IF($M11="HW",$K11+AH$6+(AH$5-AH$6)*$R11,$K11+AH$8+(AH$7-AH$8)*$R11) -> 42004.00048 | AI11: =IF($M11="HW",AH$2+(AH$1-AH$2)*$N11,AH$3+(AH$4-AH$3)*$N11) -> 1.423664122 | AJ11: =IF($M11="HW",$K11+AJ$6+(AJ$5-AJ$6)*$R11,$K11+AJ$8+(AJ$7-AJ$8)*$R11) -> 42004.04268 | AK11: =IF($M11="HW",AJ$2+(AJ$1-AJ$2)*$N11,AJ$3+(AJ$4-AJ$3)*$N11) -> 1.864885496 | AL11: =IF($M11="HW",$K11+AL$6+(AL$5-AL$6)*$R11,$K11+AL$8+(AL$7-AL$8)*$R11) -> 42004.04268 | AM11: =IF($M11="HW",AL$2+(AL$1-AL$2)*$N11,AL$3+(AL$4-AL$3)*$N11) -> 1.864885496 | AN11: =IF($M11="HW",$K11+AN$6+(AN$5-AN$6)*$R11,$K11+AN$8+(AN$7-AN$8)*$R11) -> 42004.03493 | AO11: =IF($M11="HW",AN$2+(AN$1-AN$2)*$N11,AN$3+(AN$4-AN$3)*$N11) -> 1.864885496 | AP11: =IF($M11="HW",$K11+AP$6+(AP$5-AP$6)*$R11,$K11+AP$8+(AP$7-AP$8)*$R11) -> 42004.04108 | AQ11: =IF($M11="HW",AP$2+(AP$1-AP$2)*$N11,AP$3+(AP$4-AP$3)*$N11) -> 1.704580153 | AR11: =IF($M11="HW",$K11+AR$6+(AR$5-AR$6)*$R11,$K11+AR$8+(AR$7-AR$8)*$R11) -> 42004.00556 | AS11: 42004.02986 | AT11: =IF($M11="HW",$K11+AT$6+(AT$5-AT$6)*$R11,$K11+AT$8+(AT$7-AT$8)*$R11) -> 42004.00556 | AU11: =IF($M11="HW",AT$2+(AT$1-AT$2)*$N11,AT$3+(AT$4-AT$3)*$N11) -> 1.523664122 | AV11: =IF($M11="HW",$K11+AV$6+(AV$5-AV$6)*$R11,$K11+AV$8+(AV$7-AV$8)*$R11) -> 42004.00716 | AW11: =IF($M11="HW",AV$2+(AV$1-AV$2)*$N11,AV$3+(AV$4-AV$3)*$N11) -> 1.483969466 | AX11: =IF($M11="HW",$K11+AX$6+(AX$5-AX$6)*$R11,$K11+AX$8+(AX$7-AX$8)*$R11) -> 42004.00048 | AY11: =IF($M11="HW",AX$2+(AX$1-AX$2)*$N11,AX$3+(AX$4-AX$3)*$N11) -> 1.323664122 | AZ11: =IF($M11="HW",$K11+AZ$6+(AZ$5-AZ$6)*$R11,$K11+AZ$8+(AZ$7-AZ$8)*$R11) -> 42003.99701 | BA11: =IF($M11="HW",AZ$2+(AZ$1-AZ$2)*$N11,AZ$3+(AZ$4-AZ$3)*$N11) -> 1.283969466 | BB11: =IF($M11="HW",$K11+BB$6+(BB$5-BB$6)*$R11,$K11+BB$8+(BB$7-BB$8)*$R11) -> 42003.99087 | BC11: =IF($M11="HW",BB$2+(BB$1-BB$2)*$N11,BB$3+(BB$4-BB$3)*$N11) -> 1.383969466 | BD11: =IF($M11="HW",$K11+BD$6+(BD$5-BD$6)*$R11,$K11+BD$8+(BD$7-BD$8)*$R11) -> 42003.94573 | BE11: =IF($M11="HW",BD$2+(BD$1-BD$2)*$N11,BD$3+(BD$4-BD$3)*$N11) -> 1.142748092 | BF11: =IF($M11="HW",$K11+BF$6+(BF$5-BF$6)*$R11,$K11+BF$8+(BF$7-BF$8)*$R11) -> 42004.04028 | BH11: 42004.05764 | BI11: 42004.04722
A12: 0 | B12: 0 | C12: 2019-01-01T06:45:00 | D12: =DATE(YEAR(K12),MONTH(K12),DAY(K12)) -> 2019-01-01 | E12: =IF(D12=D11,IF(J11="","",J11),D12) -> Tue | F12: =MONTH(K12) -> 1 | G12: =IF(H12="","",TEXT(F12*29,"mmm")) ->  | H12: =IF(I12=I11,"",DAY(K12)) ->  | I12: 2 | J12: =IF(I12=I11,"",TEXT(I12+2,"ddd")) ->  | K12: =C12+B12/24 -> 42004.28125 | L12: 4.87 | M12: HW | N12: 0.3304347826 | O12: =C12-INT(C12) -> 06:45:00 | P12: 12:00:00 | Q12: 06:00:00 | R12: =ABS((O12-Q12)/(P12-Q12)) -> 0.125 | S12: 42004.2895 | T12: 6.528695652 | U12: 42004.35547 | V12: 42004.28993 | W12: 6.295652174 | X12: 42004.23958 | Y12: 42004.26476 | Z12: =IF($M12="HW",Y$2+(Y$1-Y$2)*$N12,Y$3+(Y$4-Y$3)*$N12) -> 4.796521739 | AA12: 42004.25434 | AB12: 42004.26042 | AC12: =IF($M12="HW",AB$2+(AB$1-AB$2)*$N12,AB$3+(AB$4-AB$3)*$N12) -> 4.396521739 | AD12: Opn | AE12: =IF($M12="HW",$AB12-AD$8,$AB11+AD$8) -> 42004.14583 | AF12: 42004.26866 | AG12: =IF($M12="HW",AF$2+(AF$1-AF$2)*$N12,AF$3+(AF$4-AF$3)*$N12) -> 3.863478261 | AH12: 42004.24132 | AI12: =IF($M12="HW",AH$2+(AH$1-AH$2)*$N12,AH$3+(AH$4-AH$3)*$N12) -> 4.230434783 | AJ12: 42004.29253 | AK12: =IF($M12="HW",AJ$2+(AJ$1-AJ$2)*$N12,AJ$3+(AJ$4-AJ$3)*$N12) -> 6.428695652 | AL12: 42004.29557 | AM12: =IF($M12="HW",AL$2+(AL$1-AL$2)*$N12,AL$3+(AL$4-AL$3)*$N12) -> 6.36173913 | AN12: 42004.28906 | AO12: =IF($M12="HW",AN$2+(AN$1-AN$2)*$N12,AN$3+(AN$4-AN$3)*$N12) -> 6.195652174 | AP12: 42004.29818 | AQ12: =IF($M12="HW",AP$2+(AP$1-AP$2)*$N12,AP$3+(AP$4-AP$3)*$N12) -> 5.595652174 | AR12: 42004.27083 | AS12: 42004.29167 | AT12: 42004.26215 | AU12: =IF($M12="HW",AT$2+(AT$1-AT$2)*$N12,AT$3+(AT$4-AT$3)*$N12) -> 4.396521739 | AV12: 42004.26215 | AW12: =IF($M12="HW",AV$2+(AV$1-AV$2)*$N12,AV$3+(AV$4-AV$3)*$N12) -> 4.196521739 | AX12: 42004.23828 | AY12: =IF($M12="HW",AX$2+(AX$1-AX$2)*$N12,AX$3+(AX$4-AX$3)*$N12) -> 3.929565217 | AZ12: 42004.23481 | BA12: =IF($M12="HW",AZ$2+(AZ$1-AZ$2)*$N12,AZ$3+(AZ$4-AZ$3)*$N12) -> 3.796521739 | BB12: 42004.23134 | BC12: =IF($M12="HW",BB$2+(BB$1-BB$2)*$N12,BB$3+(BB$4-BB$3)*$N12) -> 3.763478261 | BD12: 42004.17188 | BE12: =IF($M12="HW",BD$2+(BD$1-BD$2)*$N12,BD$3+(BD$4-BD$3)*$N12) -> 3.596521739 | BF12: 42004.27083 | BH12: 42004.32292 | BI12: 42004.3125
A13: 0 | B13: 0 | C13: 2019-01-01T12:45:00 | D13: 2019-01-01 | E13: =IF(D13=D12,IF(J12="","",J12),D13) ->  | F13: 1 | I13: 2 | K13: 42004.53125 | L13: 1.81 | M13: LW | N13: 0.1603053435 | O13: 12:45:00 | P13: 17:00:00 | Q13: 11:00:00 | R13: 0.2916666667 | S13: 42004.55961 | T13: 2.227480916 | U13: 42004.62558 | V13: 42004.55049 | W13: 2.04351145 | X13: 42004.48958 | Y13: 42004.53733 | Z13: 1.807633588 | AA13: 42004.51476 | AB13: 42004.53183 | AC13: 1.691603053 | AD13: Cls | AE13: 42004.375 | AF13: 42004.52373 | AG13: 1.607633588 | AH13: 42004.51534 | AI13: 1.707633588 | AJ13: 42004.55859 | AK13: 2.24351145 | AL13: 42004.55859 | AM13: 2.24351145 | AN13: 42004.55064 | AO13: 2.24351145 | AP13: 42004.55657 | AQ13: 2.059541985 | AR13: 42004.52083 | AS13: 42004.54514 | AT13: 42004.52083 | AU13: 1.807633588 | AV13: 42004.52286 | AW13: 1.791603053 | AX13: 42004.51534 | AY13: 1.607633588 | AZ13: 42004.51186 | BA13: 1.591603053 | BB13: 42004.50593 | BC13: 1.691603053 | BD13: 42004.46079 | BE13: 1.355725191 | BF13: 42004.55556 | BH13: 42004.57292 | BI13: 42004.5625
A14: 0 | B14: 0 | C14: 2019-01-01T19:08:00 | D14: 2019-01-01 | F14: 1 | I14: 2 | J14: =IF(I14=I13,"",TEXT(I14+2,"ddd")) ->  | K14: 42004.79722 | L14: 5.06 | M14: HW | N14: 0.4956521739 | O14: 19:08:00 | P14: 1 | Q14: 18:00:00 | R14: 0.1888888889 | S14: 42004.80613 | T14: 6.793043478 | U14: 42004.87211 | V14: 42004.80679 | W14: 6.543478261 | X14: 42004.75556 | Y14: 42004.78117 | Z14: =IF($M14="HW",Y$2+(Y$1-Y$2)*$N14,Y$3+(Y$4-Y$3)*$N14) -> 4.994782609 | AA14: 42004.77076 | AB14: 42004.77639 | AC14: =IF($M14="HW",AB$2+(AB$1-AB$2)*$N14,AB$3+(AB$4-AB$3)*$N14) -> 4.594782609 | AD14: Opn | AE14: 42004.66181 | AF14: 42004.78353 | AG14: =IF($M14="HW",AF$2+(AF$1-AF$2)*$N14,AF$3+(AF$4-AF$3)*$N14) -> 4.045217391 | AH14: 42004.7564 | AI14: =IF($M14="HW",AH$2+(AH$1-AH$2)*$N14,AH$3+(AH$4-AH$3)*$N14) -> 4.395652174 | AJ14: 42004.80895 | AK14: =IF($M14="HW",AJ$2+(AJ$1-AJ$2)*$N14,AJ$3+(AJ$4-AJ$3)*$N14) -> 6.693043478 | AL14: 42004.81177 | AM14: =IF($M14="HW",AL$2+(AL$1-AL$2)*$N14,AL$3+(AL$4-AL$3)*$N14) -> 6.642608696 | AN14: 42004.80548 | AO14: =IF($M14="HW",AN$2+(AN$1-AN$2)*$N14,AN$3+(AN$4-AN$3)*$N14) -> 6.443478261 | AP14: 42004.81393 | AQ14: =IF($M14="HW",AP$2+(AP$1-AP$2)*$N14,AP$3+(AP$4-AP$3)*$N14) -> 5.843478261 | AR14: 42004.78681 | AS14: 42004.80764 | AT14: 42004.77724 | AU14: =IF($M14="HW",AT$2+(AT$1-AT$2)*$N14,AT$3+(AT$4-AT$3)*$N14) -> 4.594782609 | AV14: 42004.77724 | AW14: =IF($M14="HW",AV$2+(AV$1-AV$2)*$N14,AV$3+(AV$4-AV$3)*$N14) -> 4.394782609 | AX14: 42004.75359 | AY14: =IF($M14="HW",AX$2+(AX$1-AX$2)*$N14,AX$3+(AX$4-AX$3)*$N14) -> 4.144347826 | AZ14: 42004.75012 | BA14: =IF($M14="HW",AZ$2+(AZ$1-AZ$2)*$N14,AZ$3+(AZ$4-AZ$3)*$N14) -> 3.994782609 | BB14: 42004.74664 | BC14: =IF($M14="HW",BB$2+(BB$1-BB$2)*$N14,BB$3+(BB$4-BB$3)*$N14) -> 3.945217391 | BD14: 42004.68873 | BE14: =IF($M14="HW",BD$2+(BD$1-BD$2)*$N14,BD$3+(BD$4-BD$3)*$N14) -> 3.794782609 | BF14: 42004.78681 | BH14: 42004.83889 | BI14: 42004.82847
A15: 0 | B15: 0 | C15: 2019-01-02T01:22:00 | D15: 2019-01-02 | E15: 2019-01-02 | F15: 1 | G15: Jan | H15: 2 | I15: 3 | J15: Wed | K15: 42005.05694 | L15: 1.46 | M15: LW | N15: 0.427480916 | O15: 01:22:00 | P15: 05:00:00 | Q15: -0.04166666667 | R15: 0.3944444444 | S15: 42005.08673 | T15: 1.773282443 | U15: 42005.1527 | V15: 42005.0744 | W15: 1.616030534 | X15: 42005.01528 | Y15: 42005.06516 | Z15: 1.487022901 | AA15: 42005.03831 | AB15: 42005.05895 | AC15: 1.344274809 | AD15: Cls | AE15: 42004.89097 | AF15: 42005.04799 | AG15: 1.287022901 | AH15: 42005.04032 | AI15: 1.387022901 | AJ15: 42005.08536 | AK15: 1.816030534 | AL15: 42005.08536 | AM15: 1.816030534 | AN15: 42005.07704 | AO15: 1.816030534 | AP15: 42005.08262 | AQ15: 1.658778626 | AR15: 42005.04653 | AS15: 42005.07083 | AT15: 42005.04653 | AU15: 1.487022901 | AV15: 42005.04927 | AW15: 1.444274809 | AX15: 42005.04032 | AY15: 1.287022901 | AZ15: 42005.03684 | BA15: 1.244274809 | BB15: 42005.03127 | BC15: 1.344274809 | BD15: 42004.98613 | BE15: 1.115267176 | BF15: 42005.08125 | BH15: 42005.09861 | BI15: 42005.08819
A16: 0 | B16: 0 | C16: 2019-01-02T07:44:00 | D16: 2019-01-02 | E16: Wed | F16: 1 | I16: 3 | K16: 42005.32222 | L16: 5 | M16: HW | N16: 0.4434782609 | O16: 07:44:00 | P16: 12:00:00 | Q16: 06:00:00 | R16: 0.2888888889 | S16: 42005.33218 | T16: 6.709565217 | U16: 42005.39815 | V16: 42005.33318 | W16: 6.465217391 | X16: 42005.28056 | Y16: 42005.30687 | Z16: 4.932173913 | AA16: 42005.29645 | AB16: 42005.30139 | AC16: 4.532173913 | AD16: Opn | AE16: 42005.18681 | AF16: 42005.30679 | AG16: 3.987826087 | AH16: 42005.28002 | AI16: 4.343478261 | AJ16: 42005.33465 | AK16: 6.609565217 | AL16: 42005.33711 | AM16: 6.553913043 | AN16: 42005.33117 | AO16: 6.365217391 | AP16: 42005.33858 | AQ16: 5.765217391 | AR16: 42005.31181 | AS16: 42005.33264 | AT16: 42005.30085 | AU16: 4.532173913 | AV16: 42005.30085 | AW16: 4.332173913 | AX16: 42005.27755 | AY16: 4.076521739 | AZ16: 42005.27407 | BA16: 3.932173913 | BB16: 42005.2706 | BC16: 3.887826087 | BD16: 42005.21512 | BE16: 3.732173913 | BF16: 42005.31181 | BH16: 42005.36389 | BI16: 42005.35347
A17: 0 | B17: 0 | C17: 2019-01-02T13:45:00 | D17: 2019-01-02 | F17: 1 | I17: 3 | K17: 42005.57292 | L17: 1.67 | M17: LW | N17: 0.2671755725 | O17: 13:45:00 | P17: 17:00:00 | Q17: 11:00:00 | R17: 0.4583333333 | S17: 42005.60359 | T17: 2.045801527 | U17: 42005.66956 | V17: 42005.58927 | W17: 1.872519084 | X17: 42005.53125 | Y17: 42005.58247 | Z17: 1.679389313 | AA17: 42005.55295 | AB17: 42005.57581 | AC17: 1.552671756 | AD17: Cls | AE17: 42005.41597 | AF17: 42005.56308 | AG17: 1.479389313 | AH17: 42005.55584 | AI17: 1.579389313 | AJ17: 42005.602 | AK17: 2.072519084 | AL17: 42005.602 | AM17: 2.072519084 | AN17: 42005.59346 | AO17: 2.072519084 | AP17: 42005.59881 | AQ17: 1.899236641 | AR17: 42005.5625 | AS17: 42005.58681 | AT17: 42005.5625 | AU17: 1.679389313 | AV17: 42005.56568 | AW17: 1.652671756 | AX17: 42005.55584 | AY17: 1.479389313 | AZ17: 42005.55237 | BA17: 1.452671756 | BB17: 42005.54702 | BC17: 1.552671756 | BD17: 42005.50188 | BE17: 1.259541985 | BF17: 42005.59722 | BH17: 42005.61458 | BI17: 42005.60417
A18: 0 | B18: 0 | C18: 2019-01-02T20:06:00 | D18: 2019-01-02 | F18: 1 | I18: 3 | K18: 42005.8375 | L18: 5.13 | M18: HW | N18: 0.5565217391 | O18: 20:06:00 | P18: 1 | Q18: 18:00:00 | R18: 0.35 | S18: 42005.84809 | T18: 6.890434783 | U18: 42005.91406 | V18: 42005.84931 | W18: 6.634782609 | X18: 42005.79583 | Y18: 42005.82257 | Z18: =IF($M18="HW",Y$2+(Y$1-Y$2)*$N18,Y$3+(Y$4-Y$3)*$N18) -> 5.067826087 | AA18: 42005.81215 | AB18: 42005.81667 | AC18: =IF($M18="HW",AB$2+(AB$1-AB$2)*$N18,AB$3+(AB$4-AB$3)*$N18) -> 4.667826087 | AD18: Opn | AE18: 42005.70208 | AF18: 42005.82101 | AG18: =IF($M18="HW",AF$2+(AF$1-AF$2)*$N18,AF$3+(AF$4-AF$3)*$N18) -> 4.112173913 | AH18: 42005.79444 | AI18: =IF($M18="HW",AH$2+(AH$1-AH$2)*$N18,AH$3+(AH$4-AH$3)*$N18) -> 4.456521739 | AJ18: 42005.85035 | AK18: =IF($M18="HW",AJ$2+(AJ$1-AJ$2)*$N18,AJ$3+(AJ$4-AJ$3)*$N18) -> 6.790434783 | AL18: 42005.8526 | AM18: =IF($M18="HW",AL$2+(AL$1-AL$2)*$N18,AL$3+(AL$4-AL$3)*$N18) -> 6.746086957 | AN18: 42005.84688 | AO18: =IF($M18="HW",AN$2+(AN$1-AN$2)*$N18,AN$3+(AN$4-AN$3)*$N18) -> 6.534782609 | AP18: 42005.85365 | AQ18: =IF($M18="HW",AP$2+(AP$1-AP$2)*$N18,AP$3+(AP$4-AP$3)*$N18) -> 5.934782609 | AR18: 42005.82708 | AS18: 42005.84792 | AT18: 42005.81528 | AU18: =IF($M18="HW",AT$2+(AT$1-AT$2)*$N18,AT$3+(AT$4-AT$3)*$N18) -> 4.667826087 | AV18: 42005.81528 | AW18: =IF($M18="HW",AV$2+(AV$1-AV$2)*$N18,AV$3+(AV$4-AV$3)*$N18) -> 4.467826087 | AX18: 42005.79219 | AY18: =IF($M18="HW",AX$2+(AX$1-AX$2)*$N18,AX$3+(AX$4-AX$3)*$N18) -> 4.223478261 | AZ18: 42005.78872 | BA18: =IF($M18="HW",AZ$2+(AZ$1-AZ$2)*$N18,AZ$3+(AZ$4-AZ$3)*$N18) -> 4.067826087 | BB18: 42005.78524 | BC18: =IF($M18="HW",BB$2+(BB$1-BB$2)*$N18,BB$3+(BB$4-BB$3)*$N18) -> 4.012173913 | BD18: 42005.73125 | BE18: =IF($M18="HW",BD$2+(BD$1-BD$2)*$N18,BD$3+(BD$4-BD$3)*$N18) -> 3.867826087 | BF18: 42005.82708 | BH18: 42005.87917 | BI18: 42005.86875
A19: 0 | B19: 0 | C19: 2019-01-03T02:14:00 | D19: 2019-01-03 | E19: 2019-01-03 | F19: 1 | G19: Jan | H19: 3 | I19: 4 | J19: Thu | K19: 42006.09306 | L19: 1.4 | M19: LW | N19: 0.4732824427 | O19: 02:14:00 | P19: 05:00:00 | Q19: -0.04166666667 | R19: 0.5388888889 | S19: 42006.12485 | T19: 1.695419847 | U19: 42006.19082 | V19: 42006.10801 | W19: 1.542748092 | X19: 42006.05139 | Y19: 42006.10428 | Z19: 1.432061069 | AA19: 42006.07141 | AB19: 42006.09707 | AC19: 1.284732824 | AD19: Cls | AE19: 42005.93125 | AF19: 42006.0821 | AG19: 1.232061069 | AH19: 42006.07542 | AI19: 1.332061069 | AJ19: 42006.12297 | AK19: 1.742748092 | AL19: 42006.12297 | AM19: 1.742748092 | AN19: 42006.11416 | AO19: 1.742748092 | AP19: 42006.11923 | AQ19: 1.590076336 | AR19: 42006.08264 | AS19: 42006.10694 | AT19: 42006.08264 | AU19: 1.432061069 | AV19: 42006.08638 | AW19: 1.384732824 | AX19: 42006.07542 | AY19: 1.232061069 | AZ19: 42006.07195 | BA19: 1.184732824 | BB19: 42006.06688 | BC19: 1.284732824 | BD19: 42006.02174 | BE19: 1.074045802 | BF19: 42006.11736 | BH19: 42006.13472 | BI19: 42006.12431
A20: 0 | B20: 0 | C20: 2019-01-03T08:33:00 | D20: 2019-01-03 | E20: Thu | F20: 1 | I20: 4 | K20: 42006.35625 | L20: 5.16 | M20: HW | N20: 0.5826086957 | O20: 08:33:00 | P20: 12:00:00 | Q20: 06:00:00 | R20: 0.425 | S20: 42006.36762 | T20: 6.932173913 | U20: 42006.43359 | V20: 42006.3691 | W20: 6.673913043 | X20: 42006.31458 | Y20: 42006.34184 | Z20: 5.099130435 | AA20: 42006.33142 | AB20: 42006.33542 | AC20: 4.699130435 | AD20: Opn | AE20: 42006.22083 | AF20: 42006.33845 | AG20: 4.140869565 | AH20: 42006.31215 | AI20: 4.482608696 | AJ20: 42006.36962 | AK20: 6.832173913 | AL20: 42006.37161 | AM20: 6.790434783 | AN20: 42006.36615 | AO20: 6.573913043 | AP20: 42006.37214 | AQ20: 5.973913043 | AR20: 42006.34583 | AS20: 42006.36667 | AT20: 42006.33299 | AU20: 4.699130435 | AV20: 42006.33299 | AW20: 4.499130435 | AX20: 42006.31016 | AY20: 4.257391304 | AZ20: 42006.30668 | BA20: 4.099130435 | BB20: 42006.30321 | BC20: 4.040869565 | BD20: 42006.25104 | BE20: 3.899130435 | BF20: 42006.34583 | BH20: 42006.39792 | BI20: 42006.3875
A21: 0 | B21: 0 | C21: 2019-01-03T14:35:00 | D21: 2019-01-03 | F21: 1 | I21: 4 | K21: 42006.60764 | L21: 1.52 | M21: LW | N21: 0.3816793893 | O21: 14:35:00 | P21: 17:00:00 | Q21: 11:00:00 | R21: 0.5972222222 | S21: 42006.64024 | T21: 1.851145038 | U21: 42006.70621 | V21: 42006.62158 | W21: 1.689312977 | X21: 42006.56597 | Y21: 42006.62008 | Z21: 1.541984733 | AA21: 42006.58478 | AB21: 42006.61246 | AC21: 1.403816794 | AD21: Cls | AE21: 42006.45 | AF21: 42006.59587 | AG21: 1.341984733 | AH21: 42006.5896 | AI21: 1.441984733 | AJ21: 42006.63817 | AK21: 1.889312977 | AL21: 42006.63817 | AM21: 1.889312977 | AN21: 42006.62915 | AO21: 1.889312977 | AP21: 42006.63402 | AQ21: 1.727480916 | AR21: 42006.59722 | AS21: 42006.62153 | AT21: 42006.59722 | AU21: 1.541984733 | AV21: 42006.60137 | AW21: 1.503816794 | AX21: 42006.5896 | AY21: 1.341984733 | AZ21: 42006.58613 | BA21: 1.303816794 | BB21: 42006.58126 | BC21: 1.403816794 | BD21: 42006.53612 | BE21: 1.15648855 | BF21: 42006.63194 | BH21: 42006.64931 | BI21: 42006.63889
A22: 0 | B22: 0 | C22: 2019-01-03T20:54:00 | D22: 2019-01-03 | F22: 1 | I22: 4 | K22: 42006.87083 | L22: 5.2 | M22: HW | N22: 0.6173913043 | O22: 20:54:00 | P22: 1 | Q22: 18:00:00 | R22: 0.4833333333 | S22: 42006.88281 | T22: 6.987826087 | U22: 42006.94878 | V22: 42006.88449 | W22: 6.726086957 | X22: 42006.82917 | Y22: 42006.85683 | Z22: 5.140869565 | AA22: 42006.84641 | AB22: 42006.85 | AC22: 4.740869565 | AD22: Opn | AE22: 42006.73542 | AF22: 42006.85203 | AG22: 4.179130435 | AH22: 42006.82593 | AI22: 4.517391304 | AJ22: 42006.88461 | AK22: 6.887826087 | AL22: 42006.8864 | AM22: 6.849565217 | AN22: 42006.88113 | AO22: 6.626086957 | AP22: 42006.88652 | AQ22: 6.026086957 | AR22: 42006.86042 | AS22: 42006.88125 | AT22: 42006.84676 | AU22: 4.740869565 | AV22: 42006.84676 | AW22: 4.540869565 | AX22: 42006.82413 | AY22: 4.302608696 | AZ22: 42006.82066 | BA22: 4.140869565 | BB22: 42006.81719 | BC22: 4.079130435 | BD22: 42006.76644 | BE22: 3.940869565 | BF22: 42006.86042 | BH22: 42006.9125 | BI22: 42006.90208
A23: 0 | B23: 0 | C23: 2019-01-04T02:59:00 | D23: 2019-01-04 | E23: 2019-01-04 | F23: 1 | G23: Jan | H23: 4 | I23: 5 | J23: Fri | K23: 42007.12431 | L23: 1.34 | M23: LW | N23: 0.5190839695 | O23: 02:59:00 | P23: 05:00:00 | Q23: -0.04166666667 | R23: 0.6638888889 | S23: 42007.15783 | T23: 1.617557252 | U23: 42007.2238 | V23: 42007.13709 | W23: 1.469465649 | X23: 42007.08264 | Y23: 42007.13814 | Z23: 1.377099237 | AA23: 42007.10006 | AB23: 42007.13005 | AC23: 1.22519084 | AD23: Cls | AE23: 42006.96458 | AF23: 42007.11161 | AG23: 1.177099237 | AH23: 42007.10581 | AI23: 1.277099237 | AJ23: 42007.15553 | AK23: 1.669465649 | AL23: 42007.15553 | AM23: 1.669465649 | AN23: 42007.14628 | AO23: 1.669465649 | AP23: 42007.15092 | AQ23: 1.521374046 | AR23: 42007.11389 | AS23: 42007.13819 | AT23: 42007.11389 | AU23: 1.377099237 | AV23: 42007.1185 | AW23: 1.32519084 | AX23: 42007.10581 | AY23: 1.177099237 | AZ23: 42007.10233 | BA23: 1.12519084 | BB23: 42007.09769 | BC23: 1.22519084 | BD23: 42007.05256 | BE23: 1.032824427 | BF23: 42007.14861 | BH23: 42007.16597 | BI23: 42007.15556
A24: 0 | B24: 0 | C24: 2019-01-04T09:15:00 | D24: 2019-01-04 | E24: Fri | F24: 1 | I24: 5 | K24: 42007.38542 | L24: 5.3 | M24: HW | N24: 0.7043478261 | O24: 09:15:00 | P24: 12:00:00 | Q24: 06:00:00 | R24: 0.5416666667 | S24: 42007.398 | T24: 7.126956522 | U24: 42007.46398 | V24: 42007.39988 | W24: 6.856521739 | X24: 42007.34375 | Y24: 42007.37182 | Z24: 5.245217391 | AA24: 42007.3614 | AB24: 42007.36458 | AC24: 4.845217391 | AD24: Opn | AE24: 42007.25 | AF24: 42007.3656 | AG24: 4.274782609 | AH24: 42007.3397 | AI24: 4.604347826 | AJ24: 42007.39959 | AK24: 7.026956522 | AL24: 42007.40119 | AM24: 6.997391304 | AN24: 42007.39612 | AO24: 6.756521739 | AP24: 42007.4009 | AQ24: 6.156521739 | AR24: 42007.375 | AS24: 42007.39583 | AT24: 42007.36053 | AU24: 4.845217391 | AV24: 42007.36053 | AW24: 4.645217391 | AX24: 42007.33811 | AY24: 4.415652174 | AZ24: 42007.33464 | BA24: 4.245217391 | BB24: 42007.33116 | BC24: 4.174782609 | BD24: 42007.28183 | BE24: 4.045217391 | BF24: 42007.375 | BH24: 42007.42708 | BI24: 42007.41667
A25: 0 | B25: 0 | C25: 2019-01-04T15:20:00 | D25: 2019-01-04 | F25: 1 | I25: 5 | K25: 42007.63889 | L25: 1.39 | M25: LW | N25: 0.4809160305 | O25: 15:20:00 | P25: 17:00:00 | Q25: 11:00:00 | R25: 0.7222222222 | S25: 42007.67323 | T25: 1.682442748 | U25: 42007.7392 | V25: 42007.65066 | W25: 1.530534351 | X25: 42007.59722 | Y25: 42007.65394 | Z25: 1.422900763 | AA25: 42007.61343 | AB25: 42007.64545 | AC25: 1.27480916 | AD25: Cls | AE25: 42007.47917 | AF25: 42007.62539 | AG25: 1.222900763 | AH25: 42007.61998 | AI25: 1.322900763 | AJ25: 42007.67072 | AK25: 1.730534351 | AL25: 42007.67072 | AM25: 1.730534351 | AN25: 42007.66127 | AO25: 1.730534351 | AP25: 42007.6657 | AQ25: 1.578625954 | AR25: 42007.62847 | AS25: 42007.65278 | AT25: 42007.62847 | AU25: 1.422900763 | AV25: 42007.63349 | AW25: 1.37480916 | AX25: 42007.61998 | AY25: 1.222900763 | AZ25: 42007.61651 | BA25: 1.17480916 | BB25: 42007.61208 | BC25: 1.27480916 | BD25: 42007.56694 | BE25: 1.067175573 | BF25: 42007.66319 | BH25: 42007.68056 | BI25: 42007.67014
A26: 0 | B26: 0 | C26: 2019-01-04T21:36:00 | D26: 2019-01-04 | F26: 1 | I26: 5 | K26: 42007.9 | L26: 5.25 | M26: HW | N26: 0.6608695652 | O26: 21:36:00 | P26: 1 | Q26: 18:00:00 | R26: 0.6 | S26: 42007.91319 | T26: 7.057391304 | U26: 42007.97917 | V26: 42007.91528 | W26: 6.791304348 | X26: 42007.85833 | Y26: 42007.88681 | Z26: =IF($M26="HW",Y$2+(Y$1-Y$2)*$N26,Y$3+(Y$4-Y$3)*$N26) -> 5.193043478 | AA26: 42007.87639 | AB26: 42007.87917 | AC26: =IF($M26="HW",AB$2+(AB$1-AB$2)*$N26,AB$3+(AB$4-AB$3)*$N26) -> 4.793043478 | AD26: Opn | AE26: 42007.76458 | AF26: 42007.87917 | AG26: =IF($M26="HW",AF$2+(AF$1-AF$2)*$N26,AF$3+(AF$4-AF$3)*$N26) -> 4.226956522 | AH26: 42007.85347 | AI26: =IF($M26="HW",AH$2+(AH$1-AH$2)*$N26,AH$3+(AH$4-AH$3)*$N26) -> 4.560869565 | AJ26: 42007.91458 | AK26: =IF($M26="HW",AJ$2+(AJ$1-AJ$2)*$N26,AJ$3+(AJ$4-AJ$3)*$N26) -> 6.957391304 | AL26: 42007.91597 | AM26: =IF($M26="HW",AL$2+(AL$1-AL$2)*$N26,AL$3+(AL$4-AL$3)*$N26) -> 6.923478261 | AN26: 42007.91111 | AO26: =IF($M26="HW",AN$2+(AN$1-AN$2)*$N26,AN$3+(AN$4-AN$3)*$N26) -> 6.691304348 | AP26: 42007.91528 | AQ26: =IF($M26="HW",AP$2+(AP$1-AP$2)*$N26,AP$3+(AP$4-AP$3)*$N26) -> 6.091304348 | AR26: 42007.88958 | AS26: 42007.91042 | AT26: 42007.87431 | AU26: =IF($M26="HW",AT$2+(AT$1-AT$2)*$N26,AT$3+(AT$4-AT$3)*$N26) -> 4.793043478 | AV26: 42007.87431 | AW26: =IF($M26="HW",AV$2+(AV$1-AV$2)*$N26,AV$3+(AV$4-AV$3)*$N26) -> 4.593043478 | AX26: 42007.85208 | AY26: =IF($M26="HW",AX$2+(AX$1-AX$2)*$N26,AX$3+(AX$4-AX$3)*$N26) -> 4.359130435 | AZ26: 42007.84861 | BA26: =IF($M26="HW",AZ$2+(AZ$1-AZ$2)*$N26,AZ$3+(AZ$4-AZ$3)*$N26) -> 4.193043478 | BB26: 42007.84514 | BC26: =IF($M26="HW",BB$2+(BB$1-BB$2)*$N26,BB$3+(BB$4-BB$3)*$N26) -> 4.126956522 | BD26: 42007.79722 | BE26: =IF($M26="HW",BD$2+(BD$1-BD$2)*$N26,BD$3+(BD$4-BD$3)*$N26) -> 3.993043478 | BF26: 42007.88958 | BH26: 42007.94167 | BI26: 42007.93125
A27: 0 | B27: 0 | C27: 2019-01-05T03:39:00 | D27: 2019-01-05 | E27: 2019-01-05 | F27: 1 | G27: Jan | H27: 5 | I27: 6 | J27: Sat | K27: 42008.15208 | L27: 1.29 | M27: LW | N27: 0.5572519084 | O27: 03:39:00 | P27: 05:00:00 | Q27: -0.04166666667 | R27: 0.775 | S27: 42008.18715 | T27: 1.552671756 | U27: 42008.25313 | V27: 42008.16293 | W27: 1.408396947 | X27: 42008.11042 | Y27: 42008.16823 | Z27: 1.33129771 | AA27: 42008.12552 | AB27: 42008.15938 | AC27: 1.175572519 | AD27: Cls | AE27: 42007.99375 | AF27: 42008.13785 | AG27: 1.13129771 | AH27: 42008.13281 | AI27: 1.23129771 | AJ27: 42008.18446 | AK27: 1.608396947 | AL27: 42008.18446 | AM27: 1.608396947 | AN27: 42008.17483 | AO27: 1.608396947 | AP27: 42008.17908 | AQ27: 1.464122137 | AR27: 42008.14167 | AS27: 42008.16597 | AT27: 42008.14167 | AU27: 1.33129771 | AV27: 42008.14705 | AW27: 1.275572519 | AX27: 42008.13281 | AY27: 1.13129771 | AZ27: 42008.12934 | BA27: 1.075572519 | BB27: 42008.12509 | BC27: 1.175572519 | BD27: 42008.07995 | BE27: 0.9984732824 | BF27: 42008.17639 | BH27: 42008.19375 | BI27: 42008.18333
A28: 0 | B28: 0 | C28: 2019-01-05T09:54:00 | D28: 2019-01-05 | E28: Sat | F28: 1 | I28: 6 | K28: 42008.4125 | L28: 5.43 | M28: HW | N28: 0.8173913043 | O28: 09:54:00 | P28: 12:00:00 | Q28: 06:00:00 | R28: 0.65 | S28: =IF($M28="HW",$K28+S$6+(S$5-S$6)*$R28,$K28+S$8+(S$7-S$8)*$R28) -> 42008.42622 | T28: 7.307826087 | U28: 42008.49219 | V28: 42008.42847 | W28: 7.026086957 | X28: =IF($M28="HW",$K28+X$6+(X$5-X$6)*$R28,$K28+X$8+(X$7-X$8)*$R28) -> 42008.37083 | Y28: 42008.39965 | Z28: 5.380869565 | AA28: 42008.38924 | AB28: 42008.39167 | AC28: 4.980869565 | AD28: Opn | AE28: 42008.27708 | AF28: 42008.3908 | AG28: 4.399130435 | AH28: 42008.36528 | AI28: 4.717391304 | AJ28: 42008.42743 | AK28: 7.207826087 | AL28: 42008.42865 | AM28: 7.189565217 | AN28: 42008.42396 | AO28: 6.926086957 | AP28: 42008.4276 | AQ28: 6.326086957 | AR28: =IF($M28="HW",$K28+AR$6+(AR$5-AR$6)*$R28,$K28+AR$8+(AR$7-AR$8)*$R28) -> 42008.40208 | AS28: 42008.42292 | AT28: 42008.38611 | AU28: 4.980869565 | AV28: 42008.38611 | AW28: 4.780869565 | AX28: 42008.36406 | AY28: 4.562608696 | AZ28: 42008.36059 | BA28: 4.380869565 | BB28: 42008.35712 | BC28: 4.299130435 | BD28: 42008.31042 | BE28: 4.180869565 | BF28: =IF($M28="HW",$K28+BF$6+(BF$5-BF$6)*$R28,$K28+BF$8+(BF$7-BF$8)*$R28) -> 42008.40208 | BH28: 42008.45417 | BI28: 42008.44375
A29: 0 | B29: 0 | C29: 2019-01-05T16:00:00 | D29: 2019-01-05 | F29: 1 | I29: 6 | K29: 42008.66667 | L29: 1.28 | M29: LW | N29: 0.5648854962 | O29: 16:00:00 | P29: 17:00:00 | Q29: 11:00:00 | R29: 0.8333333333 | S29: 42008.70255 | T29: 1.539694656 | U29: 42008.76852 | V29: 42008.6765 | W29: 1.396183206 | X29: 42008.625 | Y29: 42008.68403 | Z29: 1.322137405 | AA29: 42008.63889 | AB29: 42008.67477 | AC29: 1.165648855 | AD29: Cls | AE29: 42008.50625 | AF29: 42008.65162 | AG29: 1.122137405 | AH29: 42008.64699 | AI29: 1.222137405 | AJ29: 42008.69965 | AK29: 1.596183206 | AL29: 42008.69965 | AM29: 1.596183206 | AN29: 42008.68981 | AO29: 1.596183206 | AP29: 42008.69387 | AQ29: 1.452671756 | AR29: 42008.65625 | AS29: 42008.68056 | AT29: 42008.65625 | AU29: 1.322137405 | AV29: 42008.66204 | AW29: 1.265648855 | AX29: 42008.64699 | AY29: 1.122137405 | AZ29: 42008.64352 | BA29: 1.065648855 | BB29: 42008.63947 | BC29: 1.165648855 | BD29: 42008.59433 | BE29: 0.9916030534 | BF29: 42008.69097 | BH29: 42008.70833 | BI29: 42008.69792
A30: 0 | B30: 0 | C30: 2019-01-05T22:14:00 | D30: 2019-01-05 | F30: 1 | I30: 6 | K30: 42008.92639 | L30: 5.28 | M30: HW | N30: 0.6869565217 | O30: 22:14:00 | P30: 1 | Q30: 18:00:00 | R30: 0.7055555556 | S30: 42008.94068 | T30: 7.099130435 | U30: 42009.00666 | V30: 42008.94313 | W30: 6.830434783 | X30: 42008.88472 | Y30: 42008.91393 | Z30: 5.224347826 | AA30: 42008.90351 | AB30: 42008.90556 | AC30: 4.824347826 | AD30: Opn | AE30: 42008.79097 | AF30: 42008.90372 | AG30: 4.255652174 | AH30: 42008.8784 | AI30: 4.586956522 | AJ30: 42008.94171 | AK30: 6.999130435 | AL30: 42008.94273 | AM30: 6.967826087 | AN30: 42008.93823 | AO30: 6.730434783 | AP30: 42008.9413 | AQ30: 6.130434783 | AR30: 42008.91597 | AS30: 42008.93681 | AT30: 42008.89923 | AU30: 4.824347826 | AV30: 42008.89923 | AW30: 4.624347826 | AX30: 42008.87737 | AY30: 4.393043478 | AZ30: 42008.8739 | BA30: 4.224347826 | BB30: 42008.87043 | BC30: 4.155652174 | BD30: 42008.82508 | BE30: 4.024347826 | BF30: 42008.91597 | BH30: 42008.96806 | BI30: 42008.95764
A31: 0 | B31: 0 | C31: 2019-01-06T04:16:00 | D31: 2019-01-06 | E31: 2019-01-06 | F31: 1 | G31: Jan | H31: 6 | I31: 7 | J31: Sun | K31: 42009.17778 | L31: 1.27 | M31: LW | N31: 0.572519084 | O31: 04:16:00 | P31: 05:00:00 | Q31: -0.04166666667 | R31: 0.8777777778 | S31: 42009.21427 | T31: 1.526717557 | U31: 42009.28025 | V31: 42009.18684 | W31: 1.383969466 | X31: 42009.13611 | Y31: 42009.19606 | Z31: 1.312977099 | AA31: 42009.14907 | AB31: 42009.1865 | AC31: 1.155725191 | AD31: Cls | AE31: 42009.02014 | AF31: 42009.16211 | AG31: 1.112977099 | AH31: 42009.15779 | AI31: 1.212977099 | AJ31: 42009.21123 | AK31: 1.583969466 | AL31: 42009.21123 | AM31: 1.583969466 | AN31: 42009.20123 | AO31: 1.583969466 | AP31: 42009.20513 | AQ31: 1.441221374 | AR31: 42009.16736 | AS31: 42009.19167 | AT31: 42009.16736 | AU31: 1.312977099 | AV31: 42009.17346 | AW31: 1.255725191 | AX31: 42009.15779 | AY31: 1.112977099 | AZ31: 42009.15432 | BA31: 1.055725191 | BB31: 42009.15042 | BC31: 1.155725191 | BD31: 42009.10529 | BE31: 0.9847328244 | BF31: 42009.20208 | BH31: 42009.21944 | BI31: 42009.20903
A32: 0 | B32: 0 | C32: 2019-01-06T10:29:00 | D32: 2019-01-06 | E32: Sun | F32: 1 | I32: 7 | K32: 42009.43681 | L32: 5.53 | M32: HW | N32: 0.9043478261 | O32: 10:29:00 | P32: 12:00:00 | Q32: 06:00:00 | R32: 0.7472222222 | S32: 42009.45153 | T32: 7.446956522 | U32: 42009.51751 | V32: 42009.45413 | W32: 7.156521739 | X32: 42009.39514 | Y32: 42009.42463 | Z32: 5.485217391 | AA32: 42009.41422 | AB32: 42009.41597 | AC32: 5.085217391 | AD32: Opn | AE32: 42009.30139 | AF32: 42009.41342 | AG32: 4.494782609 | AH32: 42009.38823 | AI32: 4.804347826 | AJ32: 42009.45241 | AK32: 7.346956522 | AL32: 42009.45329 | AM32: 7.337391304 | AN32: 42009.44894 | AO32: 7.056521739 | AP32: 42009.45157 | AQ32: 6.456521739 | AR32: 42009.42639 | AS32: 42009.44722 | AT32: 42009.40907 | AU32: 5.085217391 | AV32: 42009.40907 | AW32: 4.885217391 | AX32: 42009.38736 | AY32: 4.675652174 | AZ32: 42009.38388 | BA32: 4.485217391 | BB32: 42009.38041 | BC32: 4.394782609 | BD32: 42009.33607 | BE32: 4.285217391 | BF32: 42009.42639 | BH32: 42009.47847 | BI32: 42009.46806
A33: 0 | B33: 0 | C33: 2019-01-06T16:37:00 | D33: 2019-01-06 | F33: 1 | I33: 7 | K33: 42009.69236 | L33: 1.21 | M33: LW | N33: 0.6183206107 | O33: 16:37:00 | P33: 17:00:00 | Q33: 11:00:00 | R33: 0.9361111111 | S33: 42009.72967 | T33: 1.448854962 | U33: 42009.79564 | V33: 42009.70041 | W33: 1.310687023 | X33: 42009.65069 | Y33: 42009.71186 | Z33: 1.258015267 | AA33: 42009.66244 | AB33: 42009.70189 | AC33: 1.096183206 | AD33: Cls | AE33: 42009.53056 | AF33: 42009.67589 | AG33: 1.058015267 | AH33: 42009.67197 | AI33: 1.158015267 | AJ33: 42009.72642 | AK33: 1.510687023 | AL33: 42009.72642 | AM33: 1.510687023 | AN33: 42009.71622 | AO33: 1.510687023 | AP33: 42009.71992 | AQ33: 1.372519084 | AR33: 42009.68194 | AS33: 42009.70625 | AT33: 42009.68194 | AU33: 1.258015267 | AV33: 42009.68845 | AW33: 1.196183206 | AX33: 42009.67197 | AY33: 1.058015267 | AZ33: 42009.6685 | BA33: 0.9961832061 | BB33: 42009.66481 | BC33: 1.096183206 | BD33: 42009.61967 | BE33: 0.9435114504 | BF33: 42009.71667 | BH33: 42009.73403 | BI33: 42009.72361
A34: 0 | B34: 0 | C34: 2019-01-06T22:50:00 | D34: 2019-01-06 | F34: 1 | I34: 7 | K34: 42009.95139 | L34: 5.28 | M34: HW | N34: 0.6869565217 | O34: 22:50:00 | P34: 1 | Q34: 18:00:00 | R34: 0.8055555556 | S34: 42009.96672 | T34: 7.099130435 | U34: 42010.0327 | V34: 42009.96952 | W34: 6.830434783 | X34: 42009.90972 | Y34: 42009.93962 | Z34: 5.224347826 | AA34: 42009.92921 | AB34: 42009.93056 | AC34: 4.824347826 | AD34: Opn | AE34: 42009.81597 | AF34: 42009.92699 | AG34: 4.255652174 | AH34: 42009.90201 | AI34: 4.586956522 | AJ34: 42009.9674 | AK34: 6.999130435 | AL34: 42009.96807 | AM34: 6.967826087 | AN34: 42009.96393 | AO34: 6.730434783 | AP34: 42009.96595 | AQ34: 6.130434783 | AR34: 42009.94097 | AS34: 42009.96181 | AT34: 42009.92284 | AU34: 4.824347826 | AV34: 42009.92284 | AW34: 4.624347826 | AX34: 42009.90133 | AY34: 4.393043478 | AZ34: 42009.89786 | BA34: 4.224347826 | BB34: 42009.89439 | BC34: 4.155652174 | BD34: 42009.85147 | BE34: 4.024347826 | BF34: 42009.94097 | BH34: 42009.99306 | BI34: 42009.98264
A35: 0 | B35: 0 | C35: 2019-01-07T04:51:00 | D35: 2019-01-07 | E35: 2019-01-07 | F35: 1 | G35: Jan | H35: 7 | I35: 1 | J35: Mon | K35: 42010.20208 | L35: 1.27 | M35: LW | N35: 0.572519084 | O35: 04:51:00 | P35: 05:00:00 | Q35: -0.04166666667 | R35: 0.975 | S35: 42010.23993 | T35: 1.526717557 | U35: 42010.3059 | V35: 42010.20946 | W35: 1.383969466 | X35: 42010.16042 | Y35: 42010.2224 | Z35: 1.312977099 | AA35: 42010.17135 | AB35: 42010.21215 | AC35: 1.155725191 | AD35: Cls | AE35: 42010.04514 | AF35: 42010.18507 | AG35: 1.112977099 | AH35: 42010.18142 | AI35: 1.212977099 | AJ35: 42010.23655 | AK35: 1.583969466 | AL35: 42010.23655 | AM35: 1.583969466 | AN35: 42010.22622 | AO35: 1.583969466 | AP35: 42010.22977 | AQ35: 1.441221374 | AR35: 42010.19167 | AS35: 42010.21597 | AT35: 42010.19167 | AU35: 1.312977099 | AV35: 42010.19844 | AW35: 1.255725191 | AX35: 42010.18142 | AY35: 1.112977099 | AZ35: 42010.17795 | BA35: 1.055725191 | BB35: 42010.17439 | BC35: 1.155725191 | BD35: 42010.12925 | BE35: 0.9847328244 | BF35: 42010.22639 | BH35: 42010.24375 | BI35: 42010.23333
A36: 0 | B36: 0 | C36: 2019-01-07T11:03:00 | D36: 2019-01-07 | E36: Mon | F36: 1 | I36: 1 | K36: 42010.46042 | L36: 5.58 | M36: HW | N36: 0.947826087 | O36: 11:03:00 | P36: 12:00:00 | Q36: 06:00:00 | R36: 0.8416666667 | S36: 42010.47613 | T36: 7.516521739 | U36: 42010.5421 | V36: 42010.47905 | W36: 7.22173913 | X36: 42010.41875 | Y36: 42010.4489 | Z36: 5.537391304 | AA36: 42010.43848 | AB36: 42010.43958 | AC36: 5.137391304 | AD36: Opn | AE36: 42010.325 | AF36: 42010.43539 | AG36: 4.542608696 | AH36: 42010.41053 | AI36: 4.847826087 | AJ36: 42010.47668 | AK36: 7.416521739 | AL36: 42010.47723 | AM36: 7.411304348 | AN36: 42010.47321 | AO36: 7.12173913 | AP36: 42010.47486 | AQ36: 6.52173913 | AR36: 42010.45 | AS36: 42010.47083 | AT36: 42010.43137 | AU36: 5.137391304 | AV36: 42010.43137 | AW36: 4.937391304 | AX36: 42010.40998 | AY36: 4.732173913 | AZ36: 42010.40651 | BA36: 4.537391304 | BB36: 42010.40304 | BC36: 4.442608696 | BD36: 42010.361 | BE36: 4.337391304 | BF36: 42010.45 | BH36: 42010.50208 | BI36: 42010.49167
A37: 0 | B37: 0 | C37: 2019-01-07T17:13:00 | D37: 2019-01-07 | F37: 1 | I37: 1 | K37: 42010.71736 | L37: 1.2 | M37: LW | N37: 0.6259541985 | O37: 17:13:00 | P37: 17:00:00 | Q37: 23:00:00 | R37: 0.9638888889 | S37: 42010.75505 | T37: 1.435877863 | U37: 42010.82103 | V37: 42010.72493 | W37: 1.298473282 | X37: 42010.67569 | Y37: 42010.73744 | Z37: 1.248854962 | AA37: 42010.68686 | AB37: 42010.72728 | AC37: 1.086259542 | AD37: Cls | AE37: 42010.55417 | AF37: 42010.7005 | AG37: 1.048854962 | AH37: 42010.69678 | AI37: 1.148854962 | AJ37: 42010.75171 | AK37: 1.498473282 | AL37: 42010.75171 | AM37: 1.498473282 | AN37: 42010.74142 | AO37: 1.498473282 | AP37: 42010.74501 | AQ37: 1.361068702 | AR37: 42010.70694 | AS37: 42010.73125 | AT37: 42010.70694 | AU37: 1.248854962 | AV37: 42010.71364 | AW37: 1.186259542 | AX37: 42010.69678 | AY37: 1.048854962 | AZ37: 42010.69331 | BA37: 0.986259542 | BB37: 42010.68971 | BC37: 1.086259542 | BD37: 42010.64457 | BE37: 0.9366412214 | BF37: 42010.74167 | BH37: 42010.75903 | BI37: 42010.74861
A38: 0 | B38: 0 | C38: 2019-01-07T23:24:00 | D38: 2019-01-07 | F38: 1 | I38: 1 | K38: 42010.975 | L38: 5.25 | M38: HW | N38: 0.6608695652 | O38: 23:24:00 | P38: 1 | Q38: 18:00:00 | R38: 0.9 | S38: 42010.99132 | T38: 7.057391304 | U38: 42011.05729 | V38: 42010.99444 | W38: 6.791304348 | X38: 42010.93333 | Y38: 42010.96389 | Z38: 5.193043478 | AA38: 42010.95347 | AB38: 42010.95417 | AC38: 4.793043478 | AD38: Opn | AE38: 42010.83958 | AF38: 42010.94896 | AG38: 4.226956522 | AH38: 42010.92431 | AI38: 4.560869565 | AJ38: 42010.99167 | AK38: 6.957391304 | AL38: 42010.99201 | AM38: 6.923478261 | AN38: 42010.98819 | AO38: 6.691304348 | AP38: 42010.98924 | AQ38: 6.091304348 | AR38: 42010.96458 | AS38: 42010.98542 | AT38: 42010.94514 | AU38: 4.793043478 | AV38: 42010.94514 | AW38: 4.593043478 | AX38: 42010.92396 | AY38: 4.359130435 | AZ38: 42010.92049 | BA38: 4.193043478 | BB38: 42010.91701 | BC38: 4.126956522 | BD38: 42010.87639 | BE38: 3.993043478 | BF38: 42010.96458 | BH38: 42011.01667 | BI38: 42011.00625
A39: 0 | B39: 0 | C39: 2019-01-08T05:26:00 | D39: 2019-01-08 | E39: 2019-01-08 | F39: 1 | G39: Jan | H39: 8 | I39: 2 | J39: Tue | K39: 42011.22639 | L39: 1.31 | M39: LW | N39: 0.5419847328 | O39: 05:26:00 | P39: 05:00:00 | Q39: 11:00:00 | R39: 0.9277777778 | S39: 42011.26358 | T39: 1.578625954 | U39: 42011.32955 | V39: 42011.23459 | W39: 1.432824427 | X39: 42011.18472 | Y39: 42011.24572 | Z39: 1.349618321 | AA39: 42011.19664 | AB39: 42011.2358 | AC39: 1.195419847 | AD39: Cls | AE39: 42011.06875 | AF39: 42011.21003 | AG39: 1.149618321 | AH39: 42011.20606 | AI39: 1.249618321 | AJ39: 42011.26036 | AK39: 1.632824427 | AL39: 42011.26036 | AM39: 1.632824427 | AN39: 42011.25019 | AO39: 1.632824427 | AP39: 42011.25392 | AQ39: 1.487022901 | AR39: 42011.21597 | AS39: 42011.24028 | AT39: 42011.21597 | AU39: 1.349618321 | AV39: 42011.22242 | AW39: 1.295419847 | AX39: 42011.20606 | AY39: 1.149618321 | AZ39: 42011.20258 | BA39: 1.095419847 | BB39: 42011.19886 | BC39: 1.195419847 | BD39: 42011.15372 | BE39: 1.01221374 | BF39: 42011.25069 | BH39: 42011.26806 | BI39: 42011.25764
A40: 0 | B40: 0 | C40: 2019-01-08T11:37:00 | D40: 2019-01-08 | E40: Tue | F40: 1 | I40: 2 | K40: 42011.48403 | L40: 5.57 | M40: HW | N40: 0.9391304348 | O40: 11:37:00 | P40: 12:00:00 | Q40: 06:00:00 | R40: 0.9361111111 | S40: 42011.50072 | T40: 7.502608696 | U40: 42011.5667 | V40: 42011.50397 | W40: 7.208695652 | X40: 42011.44236 | Y40: 42011.47317 | Z40: 5.526956522 | AA40: 42011.46275 | AB40: 42011.46319 | AC40: 5.126956522 | AD40: Opn | AE40: 42011.34861 | AF40: 42011.45736 | AG40: 4.533043478 | AH40: 42011.43283 | AI40: 4.839130435 | AJ40: 42011.50095 | AK40: 7.402608696 | AL40: 42011.50117 | AM40: 7.396521739 | AN40: 42011.49747 | AO40: 7.108695652 | AP40: 42011.49814 | AQ40: 6.508695652 | AR40: 42011.47361 | AS40: 42011.49444 | AT40: 42011.45367 | AU40: 5.126956522 | AV40: 42011.45367 | AW40: 4.926956522 | AX40: 42011.43261 | AY40: 4.720869565 | AZ40: 42011.42914 | BA40: 4.526956522 | BB40: 42011.42567 | BC40: 4.433043478 | BD40: 42011.38592 | BE40: 4.326956522 | BF40: 42011.47361 | BH40: 42011.52569 | BI40: 42011.51528
A41: 0 | B41: 0 | C41: 2019-01-08T17:48:00 | D41: 2019-01-08 | F41: 1 | I41: 2 | K41: 42011.74167 | L41: 1.23 | M41: LW | N41: 0.6030534351 | O41: 17:48:00 | P41: 17:00:00 | Q41: 23:00:00 | R41: 0.8666666667 | S41: 42011.77801 | T41: 1.47480916 | U41: 42011.84398 | V41: 42011.75093 | W41: 1.335114504 | X41: 42011.7 | Y41: 42011.75972 | Z41: 1.276335878 | AA41: 42011.71319 | AB41: 42011.75023 | AC41: 1.116030534 | AD41: Cls | AE41: 42011.57778 | AF41: 42011.72616 | AG41: 1.076335878 | AH41: 42011.72176 | AI41: 1.176335878 | AJ41: 42011.775 | AK41: 1.535114504 | AL41: 42011.775 | AM41: 1.535114504 | AN41: 42011.76505 | AO41: 1.535114504 | AP41: 42011.76898 | AQ41: 1.395419847 | AR41: 42011.73125 | AS41: 42011.75556 | AT41: 42011.73125 | AU41: 1.276335878 | AV41: 42011.73727 | AW41: 1.216030534 | AX41: 42011.72176 | AY41: 1.076335878 | AZ41: 42011.71829 | BA41: 1.016030534 | BB41: 42011.71435 | BC41: 1.116030534 | BD41: 42011.66921 | BE41: 0.9572519084 | BF41: 42011.76597 | BH41: 42011.78333 | BI41: 42011.77292
A42: 0 | B42: 0 | C42: 2019-01-08T23:58:00 | D42: 2019-01-08 | F42: 1 | I42: 2 | K42: 42011.99861 | L42: 5.18 | M42: HW | N42: 0.6 | O42: 23:58:00 | P42: 1 | Q42: 18:00:00 | R42: 0.9944444445 | S42: 42012.01591 | T42: 6.96 | U42: 42012.08189 | V42: 42012.01937 | W42: 6.7 | X42: 42011.95694 | Y42: 42011.98816 | Z42: =IF($M42="HW",Y$2+(Y$1-Y$2)*$N42,Y$3+(Y$4-Y$3)*$N42) -> 5.12 | AA42: 42011.97774 | AB42: 42011.97778 | AC42: =IF($M42="HW",AB$2+(AB$1-AB$2)*$N42,AB$3+(AB$4-AB$3)*$N42) -> 4.72 | AD42: Opn | AE42: 42011.86319 | AF42: 42011.97093 | AG42: =IF($M42="HW",AF$2+(AF$1-AF$2)*$N42,AF$3+(AF$4-AF$3)*$N42) -> 4.16 | AH42: 42011.9466 | AI42: =IF($M42="HW",AH$2+(AH$1-AH$2)*$N42,AH$3+(AH$4-AH$3)*$N42) -> 4.5 | AJ42: 42012.01593 | AK42: =IF($M42="HW",AJ$2+(AJ$1-AJ$2)*$N42,AJ$3+(AJ$4-AJ$3)*$N42) -> 6.86 | AL42: 42012.01595 | AM42: =IF($M42="HW",AL$2+(AL$1-AL$2)*$N42,AL$3+(AL$4-AL$3)*$N42) -> 6.82 | AN42: 42012.01246 | AO42: =IF($M42="HW",AN$2+(AN$1-AN$2)*$N42,AN$3+(AN$4-AN$3)*$N42) -> 6.6 | AP42: 42012.01252 | AQ42: =IF($M42="HW",AP$2+(AP$1-AP$2)*$N42,AP$3+(AP$4-AP$3)*$N42) -> 6 | AR42: 42011.98819 | AS42: 42012.00903 | AT42: 42011.96744 | AU42: =IF($M42="HW",AT$2+(AT$1-AT$2)*$N42,AT$3+(AT$4-AT$3)*$N42) -> 4.72 | AV42: 42011.96744 | AW42: =IF($M42="HW",AV$2+(AV$1-AV$2)*$N42,AV$3+(AV$4-AV$3)*$N42) -> 4.52 | AX42: 42011.94659 | AY42: =IF($M42="HW",AX$2+(AX$1-AX$2)*$N42,AX$3+(AX$4-AX$3)*$N42) -> 4.28 | AZ42: 42011.94311 | BA42: =IF($M42="HW",AZ$2+(AZ$1-AZ$2)*$N42,AZ$3+(AZ$4-AZ$3)*$N42) -> 4.12 | BB42: 42011.93964 | BC42: =IF($M42="HW",BB$2+(BB$1-BB$2)*$N42,BB$3+(BB$4-BB$3)*$N42) -> 4.06 | BD42: 42011.90131 | BE42: =IF($M42="HW",BD$2+(BD$1-BD$2)*$N42,BD$3+(BD$4-BD$3)*$N42) -> 3.92 | BF42: 42011.98819 | BH42: 42012.04028 | BI42: 42012.02986
A43: 0 | B43: 0 | C43: 2019-01-09T06:00:00 | D43: 2019-01-09 | E43: 2019-01-09 | F43: 1 | G43: Jan | H43: 9 | I43: 3 | J43: Wed | K43: 42012.25 | L43: 1.39 | M43: LW | N43: 0.4809160305 | O43: 06:00:00 | P43: 05:00:00 | Q43: 11:00:00 | R43: 0.8333333333 | S43: 42012.28588 | T43: 1.682442748 | U43: 42012.35185 | V43: 42012.25984 | W43: 1.530534351 | X43: 42012.20833 | Y43: 42012.26736 | Z43: 1.422900763 | AA43: 42012.22222 | AB43: 42012.2581 | AC43: 1.27480916 | AD43: Cls | AE43: 42012.09236 | AF43: 42012.23495 | AG43: 1.222900763 | AH43: 42012.23032 | AI43: 1.322900763 | AJ43: 42012.28299 | AK43: 1.730534351 | AL43: 42012.28299 | AM43: 1.730534351 | AN43: 42012.27315 | AO43: 1.730534351 | AP43: 42012.2772 | AQ43: 1.578625954 | AR43: 42012.23958 | AS43: 42012.26389 | AT43: 42012.23958 | AU43: 1.422900763 | AV43: 42012.24537 | AW43: 1.37480916 | AX43: 42012.23032 | AY43: 1.222900763 | AZ43: 42012.22685 | BA43: 1.17480916 | BB43: 42012.2228 | BC43: 1.27480916 | BD43: 42012.17766 | BE43: 1.067175573 | BF43: 42012.27431 | BH43: 42012.29167 | BI43: 42012.28125
A44: 0 | B44: 0 | C44: 2019-01-09T12:11:00 | D44: 2019-01-09 | E44: Wed | F44: 1 | I44: 3 | K44: 42012.50764 | L44: 5.51 | M44: HW | N44: 0.8869565217 | O44: 12:11:00 | P44: 12:00:00 | Q44: 18:00:00 | R44: 0.9694444444 | S44: =IF($M44="HW",$K44+S$6+(S$5-S$6)*$R44,$K44+S$8+(S$7-S$8)*$R44) -> 42012.52468 | T44: 7.419130435 | U44: 42012.59065 | V44: 42012.52805 | W44: 7.130434783 | X44: =IF($M44="HW",$K44+X$6+(X$5-X$6)*$R44,$K44+X$8+(X$7-X$8)*$R44) -> 42012.46597 | Y44: 42012.49701 | Z44: 5.464347826 | AA44: 42012.48659 | AB44: 42012.48681 | AC44: 5.064347826 | AD44: Opn | AE44: 42012.37222 | AF44: 42012.48039 | AG44: 4.475652174 | AH44: 42012.45598 | AI44: 4.786956522 | AJ44: 42012.52479 | AK44: 7.319130435 | AL44: 42012.52489 | AM44: 7.307826087 | AN44: 42012.52132 | AO44: 7.030434783 | AP44: 42012.52163 | AQ44: 6.430434783 | AR44: =IF($M44="HW",$K44+AR$6+(AR$5-AR$6)*$R44,$K44+AR$8+(AR$7-AR$8)*$R44) -> 42012.49722 | AS44: 42012.51806 | AT44: 42012.47681 | AU44: 5.064347826 | AV44: 42012.47681 | AW44: 4.864347826 | AX44: 42012.45587 | AY44: 4.653043478 | AZ44: 42012.4524 | BA44: 4.464347826 | BB44: 42012.44893 | BC44: 4.375652174 | BD44: 42012.40999 | BE44: 4.264347826 | BF44: =IF($M44="HW",$K44+BF$6+(BF$5-BF$6)*$R44,$K44+BF$8+(BF$7-BF$8)*$R44) -> 42012.49722 | BH44: 42012.54931 | BI44: 42012.53889
A45: 0 | B45: 0 | C45: 2019-01-09T18:23:00 | D45: 2019-01-09 | F45: 1 | I45: 3 | K45: 42012.76597 | L45: 1.3 | M45: LW | N45: 0.5496183206 | O45: 18:23:00 | P45: 17:00:00 | Q45: 23:00:00 | R45: 0.7694444444 | S45: 42012.80096 | T45: 1.565648855 | U45: 42012.86694 | V45: 42012.77692 | W45: 1.420610687 | X45: 42012.72431 | Y45: 42012.782 | Z45: 1.340458015 | AA45: 42012.73953 | AB45: 42012.77319 | AC45: 1.185496183 | AD45: Cls | AE45: 42012.60139 | AF45: 42012.75181 | AG45: 1.140458015 | AH45: 42012.74674 | AI45: 1.240458015 | AJ45: 42012.79829 | AK45: 1.620610687 | AL45: 42012.79829 | AM45: 1.620610687 | AN45: 42012.78868 | AO45: 1.620610687 | AP45: 42012.79295 | AQ45: 1.475572519 | AR45: 42012.75556 | AS45: 42012.77986 | AT45: 42012.75556 | AU45: 1.340458015 | AV45: 42012.7609 | AW45: 1.285496183 | AX45: 42012.74674 | AY45: 1.140458015 | AZ45: 42012.74327 | BA45: 1.085496183 | BB45: 42012.73899 | BC45: 1.185496183 | BD45: 42012.69386 | BE45: 1.005343511 | BF45: 42012.79028 | BH45: 42012.80764 | BI45: 42012.79722
A46: 0 | B46: 0 | C46: 2019-01-10T00:33:00 | D46: 2019-01-10 | E46: 2019-01-10 | F46: 1 | G46: Jan | H46: 10 | I46: 4 | J46: Thu | K46: 42013.02292 | L46: 5.09 | M46: HW | N46: 0.5217391304 | O46: 00:33:00 | P46: 00:00:00 | Q46: 06:00:00 | R46: 0.9083333333 | S46: 42013.03932 | T46: 6.834782609 | U46: 42013.1053 | V46: 42013.04248 | W46: 6.582608696 | X46: 42012.98125 | Y46: 42013.01186 | Z46: 5.026086957 | AA46: 42013.00145 | AB46: 42013.00208 | AC46: 4.626086957 | AD46: Opn | AE46: 42012.8875 | AF46: 42012.99673 | AG46: 4.073913043 | AH46: 42012.97211 | AI46: 4.42173913 | AJ46: 42013.03964 | AK46: 6.734782609 | AL46: 42013.03996 | AM46: 6.686956522 | AN46: 42013.03617 | AO46: 6.482608696 | AP46: 42013.03712 | AQ46: 5.882608696 | AR46: 42013.0125 | AS46: 42013.03333 | AT46: 42012.99294 | AU46: 4.626086957 | AV46: 42012.99294 | AW46: 4.426086957 | AX46: 42012.97179 | AY46: 4.17826087 | AZ46: 42012.96832 | BA46: 4.026086957 | BB46: 42012.96484 | BC46: 3.973913043 | BD46: 42012.92442 | BE46: 3.826086957 | BF46: 42013.0125 | BH46: 42013.06458 | BI46: 42013.05417
A47: 0 | B47: 0 | C47: 2019-01-10T06:34:00 | D47: 2019-01-10 | E47: Thu | F47: 1 | I47: 4 | K47: 42013.27361 | L47: 1.51 | M47: LW | N47: 0.3893129771 | O47: 06:34:00 | P47: 05:00:00 | Q47: 11:00:00 | R47: 0.7388888889 | S47: 42013.30818 | T47: 1.838167939 | U47: 42013.37415 | V47: 42013.28509 | W47: 1.677099237 | X47: 42013.23194 | Y47: 42013.289 | Z47: 1.532824427 | AA47: 42013.2478 | AB47: 42013.2804 | AC47: 1.39389313 | AD47: Cls | AE47: 42013.11667 | AF47: 42013.25988 | AG47: 1.332824427 | AH47: 42013.25459 | AI47: 1.432824427 | AJ47: 42013.30561 | AK47: 1.877099237 | AL47: 42013.30561 | AM47: 1.877099237 | AN47: 42013.2961 | AO47: 1.877099237 | AP47: 42013.30048 | AQ47: 1.716030534 | AR47: 42013.26319 | AS47: 42013.2875 | AT47: 42013.26319 | AU47: 1.532824427 | AV47: 42013.26833 | AW47: 1.49389313 | AX47: 42013.25459 | AY47: 1.332824427 | AZ47: 42013.25112 | BA47: 1.29389313 | BB47: 42013.24674 | BC47: 1.39389313 | BD47: 42013.2016 | BE47: 1.149618321 | BF47: 42013.29792 | BH47: 42013.31528 | BI47: 42013.30486
A48: 0 | B48: 0 | C48: 2019-01-10T12:46:00 | D48: 2019-01-10 | F48: 1 | I48: 4 | K48: 42013.53194 | L48: 5.41 | M48: HW | N48: 0.8 | O48: 12:46:00 | P48: 12:00:00 | Q48: 18:00:00 | R48: 0.8722222222 | S48: 42013.54797 | T48: 7.28 | U48: 42013.61395 | V48: 42013.551 | W48: 7 | X48: 42013.49028 | Y48: 42013.52064 | Z48: 5.36 | AA48: 42013.51022 | AB48: 42013.51111 | AC48: 4.96 | AD48: Opn | AE48: 42013.39653 | AF48: 42013.50639 | AG48: 4.38 | AH48: 42013.48164 | AI48: 4.7 | AJ48: 42013.54842 | AK48: 7.18 | AL48: 42013.54886 | AM48: 7.16 | AN48: 42013.54495 | AO48: 6.9 | AP48: 42013.54628 | AQ48: 6.3 | AR48: 42013.52153 | AS48: 42013.54236 | AT48: 42013.50247 | AU48: 4.96 | AV48: 42013.50247 | AW48: 4.76 | AX48: 42013.48119 | AY48: 4.54 | AZ48: 42013.47772 | BA48: 4.36 | BB48: 42013.47425 | BC48: 4.28 | BD48: 42013.43295 | BE48: 4.16 | BF48: 42013.52153 | BH48: 42013.57361 | BI48: 42013.56319
A49: 0 | B49: 0 | C49: 2019-01-10T18:59:00 | D49: 2019-01-10 | F49: 1 | I49: 4 | K49: 42013.79097 | L49: 1.4 | M49: LW | N49: 0.4732824427 | O49: 18:59:00 | P49: 17:00:00 | Q49: 23:00:00 | R49: 0.6694444444 | S49: 42013.82458 | T49: 1.695419847 | U49: 42013.89055 | V49: 42013.80366 | W49: 1.542748092 | X49: 42013.74931 | Y49: 42013.80492 | Z49: 1.432061069 | AA49: 42013.76661 | AB49: 42013.7968 | AC49: 1.284732824 | AD49: Cls | AE49: 42013.62569 | AF49: 42013.7782 | AG49: 1.232061069 | AH49: 42013.77243 | AI49: 1.332061069 | AJ49: 42013.82225 | AK49: 1.742748092 | AL49: 42013.82225 | AM49: 1.742748092 | AN49: 42013.81298 | AO49: 1.742748092 | AP49: 42013.8176 | AQ49: 1.590076336 | AR49: 42013.78056 | AS49: 42013.80486 | AT49: 42013.78056 | AU49: 1.432061069 | AV49: 42013.7852 | AW49: 1.384732824 | AX49: 42013.77243 | AY49: 1.232061069 | AZ49: 42013.76896 | BA49: 1.184732824 | BB49: 42013.76434 | BC49: 1.284732824 | BD49: 42013.7192 | BE49: 1.074045802 | BF49: 42013.81528 | BH49: 42013.83264 | BI49: 42013.82222
A50: 0 | B50: 0 | C50: 2019-01-11T01:09:00 | D50: 2019-01-11 | E50: 2019-01-11 | F50: 1 | G50: Jan | H50: 11 | I50: 5 | J50: Fri | K50: 42014.04792 | L50: 4.97 | M50: HW | N50: 0.4173913043 | O50: 01:09:00 | P50: 00:00:00 | Q50: 06:00:00 | R50: 0.8083333333 | S50: 42014.06328 | T50: 6.667826087 | U50: 42014.12925 | V50: 42014.06609 | W50: 6.426086957 | X50: 42014.00625 | Y50: 42014.03617 | Z50: 4.900869565 | AA50: 42014.02575 | AB50: 42014.02708 | AC50: 4.500869565 | AD50: Opn | AE50: 42013.9125 | AF50: 42014.02347 | AG50: 3.959130435 | AH50: 42013.9985 | AI50: 4.317391304 | AJ50: 42014.06395 | AK50: 6.567826087 | AL50: 42014.06461 | AM50: 6.509565217 | AN50: 42014.06047 | AO50: 6.326086957 | AP50: 42014.06247 | AQ50: 5.726086957 | AR50: 42014.0375 | AS50: 42014.05833 | AT50: 42014.01933 | AU50: 4.500869565 | AV50: 42014.01933 | AW50: 4.300869565 | AX50: 42013.99783 | AY50: 4.042608696 | AZ50: 42013.99436 | BA50: 3.900869565 | BB50: 42013.99089 | BC50: 3.859130435 | BD50: 42013.94803 | BE50: 3.700869565 | BF50: 42014.0375 | BH50: 42014.08958 | BI50: 42014.07917
A51: 0 | B51: 0 | C51: 2019-01-11T07:10:00 | D51: 2019-01-11 | E51: Fri | F51: 1 | I51: 5 | K51: 42014.29861 | L51: 1.65 | M51: LW | N51: 0.2824427481 | O51: 07:10:00 | P51: 05:00:00 | Q51: 11:00:00 | R51: 0.6388888889 | S51: 42014.33179 | T51: 2.019847328 | U51: 42014.39776 | V51: 42014.31182 | W51: 1.848091603 | X51: 42014.25694 | Y51: 42014.31192 | Z51: 1.661068702 | AA51: 42014.27488 | AB51: 42014.30401 | AC51: 1.532824427 | AD51: Cls | AE51: 42014.14167 | AF51: 42014.28627 | AG51: 1.461068702 | AH51: 42014.28029 | AI51: 1.561068702 | AJ51: 42014.32957 | AK51: 2.048091603 | AL51: 42014.32957 | AM51: 2.048091603 | AN51: 42014.32041 | AO51: 2.048091603 | AP51: 42014.32514 | AQ51: 1.876335878 | AR51: 42014.28819 | AS51: 42014.3125 | AT51: 42014.28819 | AU51: 1.661068702 | AV51: 42014.29263 | AW51: 1.632824427 | AX51: 42014.28029 | AY51: 1.461068702 | AZ51: 42014.27681 | BA51: 1.432824427 | BB51: 42014.27209 | BC51: 1.532824427 | BD51: 42014.22695 | BE51: 1.245801527 | BF51: 42014.32292 | BH51: 42014.34028 | BI51: 42014.32986
A52: 0 | B52: 0 | C52: 2019-01-11T13:23:00 | D52: 2019-01-11 | F52: 1 | I52: 5 | K52: 42014.55764 | L52: 5.27 | M52: HW | N52: 0.6782608696 | O52: 13:23:00 | P52: 12:00:00 | Q52: 18:00:00 | R52: 0.7694444444 | S52: 42014.5726 | T52: 7.085217391 | U52: 42014.63857 | V52: 42014.57527 | W52: 6.817391304 | X52: 42014.51597 | Y52: 42014.54562 | Z52: 5.213913043 | AA52: 42014.5352 | AB52: 42014.53681 | AC52: 4.813913043 | AD52: Opn | AE52: 42014.42222 | AF52: 42014.53386 | AG52: 4.246086957 | AH52: 42014.50876 | AI52: 4.57826087 | AJ52: 42014.5734 | AK52: 6.985217391 | AL52: 42014.5742 | AM52: 6.953043478 | AN52: 42014.56993 | AO52: 6.717391304 | AP52: 42014.57233 | AQ52: 6.117391304 | AR52: 42014.54722 | AS52: 42014.56806 | AT52: 42014.52959 | AU52: 4.813913043 | AV52: 42014.52959 | AW52: 4.613913043 | AX52: 42014.50796 | AY52: 4.38173913 | AZ52: 42014.50448 | BA52: 4.213913043 | BB52: 42014.50101 | BC52: 4.146086957 | BD52: 42014.45721 | BE52: 4.013913043 | BF52: 42014.54722 | BH52: 42014.59931 | BI52: 42014.58889
A53: 0 | B53: 0 | C53: 2019-01-11T19:37:00 | D53: 2019-01-11 | F53: 1 | I53: 5 | K53: 42014.81736 | L53: 1.53 | M53: LW | N53: 0.3740458015 | O53: 19:37:00 | P53: 17:00:00 | Q53: 23:00:00 | R53: 0.5638888889 | S53: 42014.8495 | T53: 1.864122137 | U53: 42014.91547 | V53: 42014.83188 | W53: 1.701526718 | X53: 42014.77569 | Y53: 42014.82911 | Z53: 1.551145038 | AA53: 42014.7952 | AB53: 42014.82172 | AC53: 1.413740458 | AD53: Cls | AE53: 42014.65139 | AF53: 42014.80606 | AG53: 1.351145038 | AH53: 42014.79956 | AI53: 1.451145038 | AJ53: 42014.84754 | AK53: 1.901526718 | AL53: 42014.84754 | AM53: 1.901526718 | AN53: 42014.83864 | AO53: 1.901526718 | AP53: 42014.84362 | AQ53: 1.738931298 | AR53: 42014.80694 | AS53: 42014.83125 | AT53: 42014.80694 | AU53: 1.551145038 | AV53: 42014.81086 | AW53: 1.513740458 | AX53: 42014.79956 | AY53: 1.351145038 | AZ53: 42014.79608 | BA53: 1.313740458 | BB53: 42014.7911 | BC53: 1.413740458 | BD53: 42014.74596 | BE53: 1.163358779 | BF53: 42014.84167 | BH53: 42014.85903 | BI53: 42014.84861
A54: 0 | B54: 0 | C54: 2019-01-12T01:48:00 | D54: 2019-01-12 | E54: 2019-01-12 | F54: 1 | G54: Jan | H54: 12 | I54: 6 | J54: Sat | K54: 42015.075 | L54: 4.83 | M54: HW | N54: 0.2956521739 | O54: 01:48:00 | P54: 00:00:00 | Q54: 06:00:00 | R54: 0.7 | S54: 42015.08924 | T54: 6.473043478 | U54: 42015.15521 | V54: 42015.09167 | W54: 6.243478261 | X54: 42015.03333 | Y54: 42015.0625 | Z54: 4.754782609 | AA54: 42015.05208 | AB54: 42015.05417 | AC54: 4.354782609 | AD54: Opn | AE54: 42014.93958 | AF54: 42015.05243 | AG54: 3.825217391 | AH54: 42015.02708 | AI54: 4.195652174 | AJ54: 42015.09028 | AK54: 6.373043478 | AL54: 42015.09132 | AM54: 6.302608696 | AN54: 42015.08681 | AO54: 6.143478261 | AP54: 42015.08993 | AQ54: 5.543478261 | AR54: 42015.06458 | AS54: 42015.08542 | AT54: 42015.04792 | AU54: 4.354782609 | AV54: 42015.04792 | AW54: 4.154782609 | AX54: 42015.02604 | AY54: 3.884347826 | AZ54: 42015.02257 | BA54: 3.754782609 | BB54: 42015.0191 | BC54: 3.725217391 | BD54: 42014.97361 | BE54: 3.554782609 | BF54: 42015.06458 | BH54: 42015.11667 | BI54: 42015.10625
A55: 0 | B55: 0 | C55: 2019-01-12T07:49:00 | D55: 2019-01-12 | E55: Sat | F55: 1 | I55: 6 | K55: 42015.32569 | L55: 1.82 | M55: LW | N55: 0.1526717557 | O55: 07:49:00 | P55: 05:00:00 | Q55: 11:00:00 | R55: 0.5305555556 | S55: 42015.35737 | T55: 2.240458015 | U55: 42015.42334 | V55: 42015.34079 | W55: 2.055725191 | X55: 42015.28403 | Y55: 42015.33675 | Z55: 1.816793893 | AA55: 42015.30422 | AB55: 42015.32959 | AC55: 1.701526718 | AD55: Cls | AE55: 42015.16875 | AF55: 42015.31485 | AG55: 1.616793893 | AH55: 42015.30812 | AI55: 1.716793893 | AJ55: 42015.35553 | AK55: 2.255725191 | AL55: 42015.35553 | AM55: 2.255725191 | AN55: 42015.34674 | AO55: 2.255725191 | AP55: 42015.35184 | AQ55: 2.070992366 | AR55: 42015.31528 | AS55: 42015.33958 | AT55: 42015.31528 | AU55: 1.816793893 | AV55: 42015.31896 | AW55: 1.801526718 | AX55: 42015.30812 | AY55: 1.616793893 | AZ55: 42015.30465 | BA55: 1.601526718 | BB55: 42015.29955 | BC55: 1.701526718 | BD55: 42015.25441 | BE55: 1.36259542 | BF55: 42015.35 | BH55: 42015.36736 | BI55: 42015.35694
A56: 0 | B56: 0 | C56: 2019-01-12T14:03:00 | D56: 2019-01-12 | F56: 1 | I56: 6 | K56: 42015.58542 | L56: 5.12 | M56: HW | N56: 0.547826087 | O56: 14:03:00 | P56: 12:00:00 | Q56: 18:00:00 | R56: 0.6583333333 | S56: 42015.59922 | T56: 6.876521739 | U56: 42015.66519 | V56: 42015.6015 | W56: 6.62173913 | X56: 42015.54375 | Y56: 42015.57263 | Z56: 5.057391304 | AA56: 42015.56221 | AB56: 42015.56458 | AC56: 4.657391304 | AD56: Opn | AE56: 42015.45 | AF56: 42015.56357 | AG56: 4.102608696 | AH56: 42015.53808 | AI56: 4.447826087 | AJ56: 42015.60041 | AK56: 6.776521739 | AL56: 42015.60159 | AM56: 6.731304348 | AN56: 42015.59693 | AO56: 6.52173913 | AP56: 42015.60049 | AQ56: 5.92173913 | AR56: 42015.575 | AS56: 42015.59583 | AT56: 42015.55891 | AU56: 4.657391304 | AV56: 42015.55891 | AW56: 4.457391304 | AX56: 42015.53689 | AY56: 4.212173913 | AZ56: 42015.53342 | BA56: 4.057391304 | BB56: 42015.52995 | BC56: 4.002608696 | BD56: 42015.48345 | BE56: 3.857391304 | BF56: 42015.575 | BH56: 42015.62708 | BI56: 42015.61667
A57: 0 | B57: 0 | C57: 2019-01-12T20:18:00 | D57: 2019-01-12 | F57: 1 | I57: 6 | K57: 42015.84583 | L57: 1.66 | M57: LW | N57: 0.2748091603 | O57: 20:18:00 | P57: 17:00:00 | Q57: 23:00:00 | R57: 0.45 | S57: 42015.87639 | T57: 2.032824427 | U57: 42015.94236 | V57: 42015.86233 | W57: 1.860305344 | X57: 42015.80417 | Y57: 42015.85521 | Z57: 1.670229008 | AA57: 42015.82604 | AB57: 42015.84861 | AC57: 1.542748092 | AD57: Cls | AE57: 42015.67917 | AF57: 42015.83611 | AG57: 1.470229008 | AH57: 42015.82882 | AI57: 1.570229008 | AJ57: 42015.87483 | AK57: 2.060305344 | AL57: 42015.87483 | AM57: 2.060305344 | AN57: 42015.86632 | AO57: 2.060305344 | AP57: 42015.8717 | AQ57: 1.88778626 | AR57: 42015.83542 | AS57: 42015.85972 | AT57: 42015.83542 | AU57: 1.670229008 | AV57: 42015.83854 | AW57: 1.642748092 | AX57: 42015.82882 | AY57: 1.470229008 | AZ57: 42015.82535 | BA57: 1.442748092 | BB57: 42015.81997 | BC57: 1.542748092 | BD57: 42015.77483 | BE57: 1.252671756 | BF57: 42015.87014 | BH57: 42015.8875 | BI57: 42015.87708
A58: 0 | B58: 0 | C58: 2019-01-13T02:31:00 | D58: 2019-01-13 | E58: 2019-01-13 | F58: 1 | G58: Jan | H58: 13 | I58: 7 | J58: Sun | K58: 42016.10486 | L58: 4.69 | M58: HW | N58: 0.1739130435 | O58: 02:31:00 | P58: 00:00:00 | Q58: 06:00:00 | R58: 0.5805555556 | S58: 42016.11785 | T58: 6.27826087 | U58: 42016.18383 | V58: 42016.11987 | W58: 6.060869565 | X58: 42016.06319 | Y58: 42016.09153 | Z58: 4.608695652 | AA58: 42016.08111 | AB58: 42016.08403 | AC58: 4.208695652 | AD58: Opn | AE58: 42015.96944 | AF58: 42016.08437 | AG58: 3.691304348 | AH58: 42016.0586 | AI58: 4.073913043 | AJ58: 42016.11931 | AK58: 6.17826087 | AL58: 42016.12077 | AM58: 6.095652174 | AN58: 42016.11584 | AO58: 5.960869565 | AP58: 42016.12021 | AQ58: 5.360869565 | AR58: 42016.09444 | AS58: 42016.11528 | AT58: 42016.07944 | AU58: 4.208695652 | AV58: 42016.07944 | AW58: 4.008695652 | AX58: 42016.05715 | AY58: 3.726086957 | AZ58: 42016.05367 | BA58: 3.608695652 | BB58: 42016.0502 | BC58: 3.591304348 | BD58: 42016.00181 | BE58: 3.408695652 | BF58: 42016.09444 | BH58: 42016.14653 | BI58: 42016.13611
A59: 0 | B59: 0 | C59: 2019-01-13T08:34:00 | D59: 2019-01-13 | E59: Sun | F59: 1 | I59: 7 | K59: 42016.35694 | L59: 1.99 | M59: LW | N59: 0.02290076336 | O59: 08:34:00 | P59: 05:00:00 | Q59: 11:00:00 | R59: 0.4055555556 | S59: 42016.38688 | T59: 2.461068702 | U59: 42016.45285 | V59: 42016.37421 | W59: 2.263358779 | X59: 42016.31528 | Y59: 42016.36539 | Z59: 1.972519084 | AA59: 42016.33808 | AB59: 42016.3591 | AC59: 1.870229008 | AD59: Cls | AE59: 42016.19861 | AF59: 42016.34784 | AG59: 1.772519084 | AH59: 42016.34024 | AI59: 1.872519084 | AJ59: 42016.38547 | AK59: 2.463358779 | AL59: 42016.38547 | AM59: 2.463358779 | AN59: 42016.37712 | AO59: 2.463358779 | AP59: 42016.38266 | AQ59: 2.265648855 | AR59: 42016.34653 | AS59: 42016.37083 | AT59: 42016.34653 | AU59: 1.972519084 | AV59: 42016.34934 | AW59: 1.970229008 | AX59: 42016.34024 | AY59: 1.772519084 | AZ59: 42016.33677 | BA59: 1.770229008 | BB59: 42016.33123 | BC59: 1.870229008 | BD59: 42016.28609 | BE59: 1.479389313 | BF59: 42016.38125 | BH59: 42016.39861 | BI59: 42016.38819
A60: 0 | B60: 0 | C60: 2019-01-13T14:48:00 | D60: 2019-01-13 | F60: 1 | I60: 7 | K60: 42016.61667 | L60: 4.96 | M60: HW | N60: 0.4086956522 | O60: 14:48:00 | P60: 12:00:00 | Q60: 18:00:00 | R60: 0.5333333333 | S60: 42016.62917 | T60: 6.653913043 | U60: 42016.69514 | V60: 42016.63102 | W60: 6.413043478 | X60: 42016.575 | Y60: 42016.60301 | Z60: 4.890434783 | AA60: 42016.59259 | AB60: 42016.59583 | AC60: 4.490434783 | AD60: Opn | AE60: 42016.48125 | AF60: 42016.59699 | AG60: 3.949565217 | AH60: 42016.57106 | AI60: 4.308695652 | AJ60: 42016.63079 | AK60: 6.553913043 | AL60: 42016.63241 | AM60: 6.494782609 | AN60: 42016.62731 | AO60: 6.313043478 | AP60: 42016.63218 | AQ60: 5.713043478 | AR60: 42016.60625 | AS60: 42016.62708 | AT60: 42016.5919 | AU60: 4.490434783 | AV60: 42016.5919 | AW60: 4.290434783 | AX60: 42016.56944 | AY60: 4.031304348 | AZ60: 42016.56597 | BA60: 3.890434783 | BB60: 42016.5625 | BC60: 3.849565217 | BD60: 42016.51296 | BE60: 3.690434783 | BF60: 42016.60625 | BH60: 42016.65833 | BI60: 42016.64792
A61: 0 | B61: 0 | C61: 2019-01-13T21:07:00 | D61: 2019-01-13 | F61: 1 | I61: 7 | K61: 42016.87986 | L61: 1.8 | M61: LW | N61: 0.1679389313 | O61: 21:07:00 | P61: 17:00:00 | Q61: 23:00:00 | R61: 0.3138888889 | S61: =IF($M61="HW",$K61+S$6+(S$5-S$6)*$R61,$K61+S$8+(S$7-S$8)*$R61) -> 42016.90853 | T61: 2.214503817 | U61: 42016.9745 | V61: 42016.89872 | W61: 2.03129771 | X61: =IF($M61="HW",$K61+X$6+(X$5-X$6)*$R61,$K61+X$8+(X$7-X$8)*$R61) -> 42016.83819 | Y61: 42016.8864 | Z61: 1.798473282 | AA61: 42016.86291 | AB61: 42016.88075 | AC61: 1.681679389 | AD61: Cls | AE61: 42016.71042 | AF61: 42016.87203 | AG61: 1.598473282 | AH61: 42016.86379 | AI61: 1.698473282 | AJ61: 42016.90744 | AK61: 2.23129771 | AL61: 42016.90744 | AM61: 2.23129771 | AN61: 42016.8994 | AO61: 2.23129771 | AP61: 42016.90526 | AQ61: 2.048091603 | AR61: =IF($M61="HW",$K61+AR$6+(AR$5-AR$6)*$R61,$K61+AR$8+(AR$7-AR$8)*$R61) -> 42016.86944 | AS61: 42016.89375 | AT61: 42016.86944 | AU61: 1.798473282 | AV61: 42016.87162 | AW61: 1.781679389 | AX61: 42016.86379 | AY61: 1.598473282 | AZ61: 42016.86032 | BA61: 1.581679389 | BB61: 42016.85447 | BC61: 1.681679389 | BD61: 42016.80933 | BE61: 1.348854962 | BF61: =IF($M61="HW",$K61+BF$6+(BF$5-BF$6)*$R61,$K61+BF$8+(BF$7-BF$8)*$R61) -> 42016.90417 | BH61: 42016.92153 | BI61: 42016.91111
A62: 0 | B62: 0 | C62: 2019-01-14T03:23:00 | D62: 2019-01-14 | E62: 2019-01-14 | F62: 1 | G62: Jan | H62: 14 | I62: 1 | J62: Mon | K62: 42017.14097 | L62: 4.57 | M62: HW | N62: 0.06956521739 | O62: 03:23:00 | P62: 00:00:00 | Q62: 06:00:00 | R62: 0.4361111111 | S62: 42017.15246 | T62: 6.111304348 | U62: 42017.21843 | V62: 42017.15397 | W62: 5.904347826 | X62: 42017.09931 | Y62: 42017.12664 | Z62: 4.483478261 | AA62: 42017.11622 | AB62: 42017.12014 | AC62: 4.083478261 | AD62: Opn | AE62: 42017.00556 | AF62: 42017.12298 | AG62: 3.576521739 | AH62: 42017.09672 | AI62: 3.969565217 | AJ62: 42017.15442 | AK62: 6.011304348 | AL62: 42017.15638 | AM62: 5.91826087 | AN62: 42017.15095 | AO62: 5.804347826 | AP62: 42017.15682 | AQ62: 5.204347826 | AR62: 42017.13056 | AS62: 42017.15139 | AT62: 42017.11755 | AU62: 4.083478261 | AV62: 42017.11755 | AW62: 3.883478261 | AX62: 42017.09476 | AY62: 3.590434783 | AZ62: 42017.09129 | BA62: 3.483478261 | BB62: 42017.08782 | BC62: 3.476521739 | BD62: 42017.03592 | BE62: 3.283478261 | BF62: 42017.13056 | BH62: 42017.18264 | BI62: 42017.17222
A63: 0 | B63: 0 | C63: 2019-01-14T09:28:00 | D63: 2019-01-14 | E63: Mon | F63: 1 | I63: 1 | K63: 42017.39444 | L63: 2.14 | M63: LW | N63: -0.09160305344 | O63: 09:28:00 | P63: 05:00:00 | Q63: 11:00:00 | R63: 0.2555555556 | S63: 42017.4223 | T63: 2.655725191 | U63: 42017.48827 | V63: 42017.41431 | W63: 2.446564885 | X63: 42017.35278 | Y63: 42017.39977 | Z63: 2.109923664 | AA63: 42017.3787 | AB63: 42017.39452 | AC63: 2.019083969 | AD63: Cls | AE63: 42017.23472 | AF63: 42017.38742 | AG63: 1.909923664 | AH63: 42017.37878 | AI63: 2.009923664 | AJ63: 42017.42141 | AK63: 2.646564885 | AL63: 42017.42141 | AM63: 2.646564885 | AN63: 42017.41358 | AO63: 2.646564885 | AP63: 42017.41964 | AQ63: 2.43740458 | AR63: 42017.38403 | AS63: 42017.40833 | AT63: 42017.38403 | AU63: 2.109923664 | AV63: 42017.3858 | AW63: 2.119083969 | AX63: 42017.37878 | AY63: 1.909923664 | AZ63: 42017.37531 | BA63: 1.919083969 | BB63: 42017.36925 | BC63: 2.019083969 | BD63: 42017.32411 | BE63: 1.582442748 | BF63: 42017.41875 | BH63: 42017.43611 | BI63: 42017.42569
A64: 0 | B64: 0 | C64: 2019-01-14T15:42:00 | D64: 2019-01-14 | F64: 1 | I64: 1 | K64: 42017.65417 | L64: 4.81 | M64: HW | N64: 0.2782608696 | O64: 15:42:00 | P64: 12:00:00 | Q64: 18:00:00 | R64: 0.3833333333 | S64: 42017.6651 | T64: 6.445217391 | U64: 42017.73108 | V64: 42017.66644 | W64: 6.217391304 | X64: 42017.6125 | Y64: 42017.63947 | Z64: 4.733913043 | AA64: 42017.62905 | AB64: 42017.63333 | AC64: 4.333913043 | AD64: Opn | AE64: 42017.51875 | AF64: 42017.63709 | AG64: 3.806086957 | AH64: 42017.61065 | AI64: 4.17826087 | AJ64: 42017.66725 | AK64: 6.345217391 | AL64: 42017.66939 | AM64: 6.273043478 | AN64: 42017.66377 | AO64: 6.117391304 | AP64: 42017.6702 | AQ64: 5.517391304 | AR64: 42017.64375 | AS64: 42017.66458 | AT64: 42017.63148 | AU64: 4.333913043 | AV64: 42017.63148 | AW64: 4.133913043 | AX64: 42017.60851 | AY64: 3.86173913 | AZ64: 42017.60503 | BA64: 3.733913043 | BB64: 42017.60156 | BC64: 3.706086957 | BD64: 42017.54838 | BE64: 3.533913043 | BF64: 42017.64375 | BH64: 42017.69583 | BI64: 42017.68542
A65: 0 | B65: 0 | C65: 2019-01-14T22:05:00 | D65: 2019-01-14 | F65: 1 | I65: 1 | K65: 42017.92014 | L65: 1.91 | M65: LW | N65: 0.08396946565 | O65: 22:05:00 | P65: 17:00:00 | Q65: 23:00:00 | R65: 0.1527777778 | S65: 42017.94657 | T65: 2.357251908 | U65: 42018.01254 | V65: 42017.94179 | W65: 2.165648855 | X65: 42017.87847 | Y65: 42017.92332 | Z65: 1.899236641 | AA65: 42017.90654 | AB65: 42017.91879 | AC65: 1.790839695 | AD65: Cls | AE65: 42017.74792 | AF65: 42017.91454 | AG65: 1.699236641 | AH65: 42017.90519 | AI65: 1.799236641 | AJ65: 42017.94604 | AK65: 2.365648855 | AL65: 42017.94604 | AM65: 2.365648855 | AN65: 42017.93856 | AO65: 2.365648855 | AP65: 42017.94497 | AQ65: 2.174045802 | AR65: 42017.90972 | AS65: 42017.93403 | AT65: 42017.90972 | AU65: 1.899236641 | AV65: 42017.91078 | AW65: 1.890839695 | AX65: 42017.90519 | AY65: 1.699236641 | AZ65: 42017.90172 | BA65: 1.690839695 | BB65: 42017.8953 | BC65: 1.790839695 | BD65: 42017.85016 | BE65: 1.424427481 | BF65: 42017.94444 | BH65: 42017.96181 | BI65: 42017.95139
A66: 0 | B66: 0 | C66: 2019-01-15T04:24:00 | D66: 2019-01-15 | E66: 2019-01-15 | F66: 1 | G66: Jan | H66: 15 | I66: 2 | J66: Tue | K66: 42018.18333 | L66: 4.49 | M66: HW | N66: 0 | O66: 04:24:00 | P66: 00:00:00 | Q66: 06:00:00 | R66: 0.2666666667 | S66: 42018.19306 | T66: 6 | U66: 42018.25903 | V66: 42018.19398 | W66: 5.8 | X66: 42018.14167 | Y66: 42018.16782 | Z66: 4.4 | AA66: 42018.15741 | AB66: 42018.1625 | AC66: 4 | AD66: Opn | AE66: 42018.04792 | AF66: 42018.16829 | AG66: 3.5 | AH66: 42018.14144 | AI66: 3.9 | AJ66: 42018.1956 | AK66: 5.9 | AL66: 42018.19815 | AM66: 5.8 | AN66: 42018.19213 | AO66: 5.7 | AP66: 42018.19977 | AQ66: 5.1 | AR66: 42018.17292 | AS66: 42018.19375 | AT66: 42018.16227 | AU66: 4 | AV66: 42018.16227 | AW66: 3.8 | AX66: 42018.13889 | AY66: 3.5 | AZ66: 42018.13542 | BA66: 3.4 | BB66: 42018.13194 | BC66: 3.4 | BD66: 42018.07593 | BE66: 3.2 | BF66: 42018.17292 | BH66: 42018.225 | BI66: 42018.21458
A67: 0 | B67: 0 | C67: 2019-01-15T10:32:00 | D67: 2019-01-15 | E67: Tue | F67: 1 | I67: 2 | K67: 42018.43889 | L67: 2.23 | M67: LW | N67: -0.1603053435 | O67: 10:32:00 | P67: 05:00:00 | Q67: 11:00:00 | R67: 0.07777777779 | S67: 42018.46427 | T67: 2.772519084 | U67: 42018.53025 | V67: 42018.46184 | W67: 2.55648855 | X67: 42018.39722 | Y67: 42018.44051 | Z67: 2.192366412 | AA67: 42018.42685 | AB67: 42018.4365 | AC67: 2.108396947 | AD67: Cls | AE67: 42018.27708 | AF67: 42018.43434 | AG67: 1.992366412 | AH67: 42018.42446 | AI67: 2.092366412 | AJ67: 42018.464 | AK67: 2.75648855 | AL67: 42018.464 | AM67: 2.75648855 | AN67: 42018.45679 | AO67: 2.75648855 | AP67: 42018.46346 | AQ67: 2.540458015 | AR67: 42018.42847 | AS67: 42018.45278 | AT67: 42018.42847 | AU67: 2.192366412 | AV67: 42018.42901 | AW67: 2.208396947 | AX67: 42018.42446 | AY67: 1.992366412 | AZ67: 42018.42099 | BA67: 2.008396947 | BB67: 42018.41431 | BC67: 2.108396947 | BD67: 42018.36917 | BE67: 1.644274809 | BF67: 42018.46319 | BH67: 42018.48056 | BI67: 42018.47014
A68: 0 | B68: 0 | C68: 2019-01-15T16:46:00 | D68: 2019-01-15 | F68: 1 | I68: 2 | K68: 42018.69861 | L68: 4.72 | M68: HW | N68: 0.2 | O68: 16:46:00 | P68: 12:00:00 | Q68: 18:00:00 | R68: 0.2055555556 | S68: 42018.7077 | T68: 6.32 | U68: 42018.77367 | V68: 42018.70841 | W68: 6.1 | X68: 42018.65694 | Y68: 42018.68268 | Z68: 4.64 | AA68: 42018.67226 | AB68: 42018.67778 | AC68: 4.24 | AD68: Opn | AE68: 42018.56319 | AF68: 42018.68463 | AG68: 3.72 | AH68: 42018.65756 | AI68: 4.1 | AJ68: 42018.71046 | AK68: 6.22 | AL68: 42018.71321 | AM68: 6.14 | AN68: 42018.70698 | AO68: 6 | AP68: 42018.71526 | AQ68: 5.4 | AR68: 42018.68819 | AS68: 42018.70903 | AT68: 42018.6784 | AU68: 4.24 | AV68: 42018.6784 | AW68: 4.04 | AX68: 42018.6548 | AY68: 3.76 | AZ68: 42018.65133 | BA68: 3.64 | BB68: 42018.64786 | BC68: 3.62 | BD68: 42018.59035 | BE68: 3.44 | BF68: 42018.68819 | BH68: 42018.74028 | BI68: 42018.72986
A69: 0 | B69: 0 | C69: 2019-01-15T23:11:00 | D69: 2019-01-15 | F69: 1 | I69: 2 | K69: 42018.96597 | L69: 1.94 | M69: LW | N69: 0.06106870229 | O69: 23:11:00 | P69: 1.208333333 | Q69: 23:00:00 | R69: 0.03055555555 | S69: 42018.9907 | T69: 2.396183206 | U69: 42019.05667 | V69: 42018.98975 | W69: 2.202290076 | X69: 42018.92431 | Y69: 42018.96661 | Z69: 1.926717557 | AA69: 42018.95492 | AB69: 42018.96292 | AC69: 1.820610687 | AD69: Cls | AE69: 42018.79236 | AF69: 42018.96208 | AG69: 1.726717557 | AH69: 42018.95187 | AI69: 1.826717557 | AJ69: 42018.9906 | AK69: 2.402290076 | AL69: 42018.9906 | AM69: 2.402290076 | AN69: 42018.98355 | AO69: 2.402290076 | AP69: 42018.99038 | AQ69: 2.208396947 | AR69: 42018.95556 | AS69: 42018.97986 | AT69: 42018.95556 | AU69: 1.926717557 | AV69: 42018.95577 | AW69: 1.920610687 | AX69: 42018.95187 | AY69: 1.726717557 | AZ69: 42018.9484 | BA69: 1.720610687 | BB69: 42018.94156 | BC69: 1.820610687 | BD69: 42018.89642 | BE69: 1.445038168 | BF69: 42018.99028 | BH69: 42019.00764 | BI69: 42018.99722
A70: 0 | B70: 0 | C70: 2019-01-16T05:35:00 | D70: 2019-01-16 | E70: 2019-01-16 | F70: 1 | G70: Jan | H70: 16 | I70: 3 | J70: Wed | K70: 42019.23264 | L70: 4.51 | M70: HW | N70: 0.01739130435 | O70: 05:35:00 | P70: 00:00:00 | Q70: 06:00:00 | R70: 0.06944444444 | S70: 42019.24031 | T70: 6.027826087 | U70: 42019.30628 | V70: 42019.24055 | W70: 5.826086957 | X70: 42019.19097 | Y70: 42019.21576 | Z70: 4.420869565 | AA70: 42019.20534 | AB70: 42019.21181 | AC70: 4.020869565 | AD70: Opn | AE70: 42019.09722 | AF70: 42019.22102 | AG70: 3.519130435 | AH70: 42019.19348 | AI70: 3.917391304 | AJ70: 42019.24354 | AK70: 5.927826087 | AL70: 42019.24677 | AM70: 5.829565217 | AN70: 42019.24007 | AO70: 5.726086957 | AP70: 42019.24976 | AQ70: 5.126086957 | AR70: 42019.22222 | AS70: 42019.24306 | AT70: 42019.21431 | AU70: 4.020869565 | AV70: 42019.21431 | AW70: 3.820869565 | AX70: 42019.19025 | AY70: 3.522608696 | AZ70: 42019.18678 | BA70: 3.420869565 | BB70: 42019.1833 | BC70: 3.419130435 | BD70: 42019.12249 | BE70: 3.220869565 | BF70: 42019.22222 | BH70: 42019.27431 | BI70: 42019.26389
A71: 0 | B71: 0 | C71: 2019-01-16T11:43:00 | D71: 2019-01-16 | E71: Wed | F71: 1 | I71: 3 | K71: 42019.48819 | L71: 2.18 | M71: LW | N71: -0.1221374046 | O71: 11:43:00 | P71: 17:00:00 | Q71: 11:00:00 | R71: 0.1194444444 | S71: 42019.51416 | T71: 2.707633588 | U71: 42019.58013 | V71: 42019.51043 | W71: 2.495419847 | X71: 42019.44653 | Y71: 42019.49068 | Z71: 2.146564885 | AA71: 42019.47529 | AB71: 42019.48638 | AC71: 2.058778626 | AD71: Cls | AE71: 42019.32639 | AF71: 42019.48306 | AG71: 1.946564885 | AH71: 42019.47348 | AI71: 2.046564885 | AJ71: 42019.51374 | AK71: 2.695419847 | AL71: 42019.51374 | AM71: 2.695419847 | AN71: 42019.50639 | AO71: 2.695419847 | AP71: 42019.51291 | AQ71: 2.483206107 | AR71: 42019.47778 | AS71: 42019.50208 | AT71: 42019.47778 | AU71: 2.146564885 | AV71: 42019.47861 | AW71: 2.158778626 | AX71: 42019.47348 | AY71: 1.946564885 | AZ71: 42019.47 | BA71: 1.958778626 | BB71: 42019.46347 | BC71: 2.058778626 | BD71: 42019.41834 | BE71: 1.609923664 | BF71: 42019.5125 | BH71: 42019.52986 | BI71: 42019.51944
A72: 0 | B72: 0 | C72: 2019-01-16T17:57:00 | D72: 2019-01-16 | F72: 1 | I72: 3 | K72: 42019.74792 | L72: 4.74 | M72: HW | N72: 0.2173913043 | O72: 17:57:00 | P72: 12:00:00 | Q72: 18:00:00 | R72: 0.008333333331 | S72: 42019.75495 | T72: 6.347826087 | U72: 42019.82092 | V72: 42019.75498 | W72: 6.126086957 | X72: 42019.70625 | Y72: 42019.73061 | Z72: 4.660869565 | AA72: 42019.7202 | AB72: 42019.72708 | AC72: 4.260869565 | AD72: Opn | AE72: 42019.6125 | AF72: 42019.73736 | AG72: 3.739130435 | AH72: 42019.70961 | AI72: 4.117391304 | AJ72: 42019.75839 | AK72: 6.247826087 | AL72: 42019.76183 | AM72: 6.169565217 | AN72: 42019.75492 | AO72: 6.026086957 | AP72: 42019.76525 | AQ72: 5.426086957 | AR72: 42019.7375 | AS72: 42019.75833 | AT72: 42019.73044 | AU72: 4.260869565 | AV72: 42019.73044 | AW72: 4.060869565 | AX72: 42019.70616 | AY72: 3.782608696 | AZ72: 42019.70269 | BA72: 3.660869565 | BB72: 42019.69922 | BC72: 3.639130435 | BD72: 42019.63692 | BE72: 3.460869565 | BF72: 42019.7375 | BH72: 42019.78958 | BI72: 42019.77917
A73: 0 | B73: 0 | C73: 2019-01-17T00:19:00 | D73: 2019-01-17 | E73: 2019-01-17 | F73: 1 | G73: Jan | H73: 17 | I73: 4 | J73: Thu | K73: 42020.01319 | L73: 1.84 | M73: LW | N73: 0.1374045802 | O73: 00:19:00 | P73: 05:00:00 | Q73: -0.04166666667 | R73: 0.2194444444 | S73: 42020.04055 | T73: 2.266412214 | U73: 42020.10652 | V73: 42020.03369 | W73: 2.080152672 | X73: 42019.97153 | Y73: 42020.01777 | Z73: 1.835114504 | AA73: 42019.99821 | AB73: 42020.01277 | AC73: 1.721374046 | AD73: Cls | AE73: 42019.84167 | AF73: 42020.00667 | AG73: 1.635114504 | AH73: 42019.99778 | AI73: 1.735114504 | AJ73: 42020.03979 | AK73: 2.280152672 | AL73: 42020.03979 | AM73: 2.280152672 | AN73: 42020.03208 | AO73: 2.280152672 | AP73: 42020.03826 | AQ73: 2.09389313 | AR73: 42020.00278 | AS73: 42020.02708 | AT73: 42020.00278 | AU73: 1.835114504 | AV73: 42020.0043 | AW73: 1.821374046 | AX73: 42019.99778 | AY73: 1.635114504 | AZ73: 42019.99431 | BA73: 1.621374046 | BB73: 42019.98813 | BC73: 1.721374046 | BD73: 42019.94299 | BE73: 1.376335878 | BF73: 42020.0375 | BH73: 42020.05486 | BI73: 42020.04444
A74: 0 | B74: 0 | C74: 2019-01-17T06:45:00 | D74: 2019-01-17 | E74: Thu | F74: 1 | I74: 4 | K74: 42020.28125 | L74: 4.67 | M74: HW | N74: 0.1565217391 | O74: 06:45:00 | P74: 12:00:00 | Q74: 06:00:00 | R74: 0.125 | S74: 42020.2895 | T74: 6.250434783 | U74: 42020.35547 | V74: 42020.28993 | W74: 6.034782609 | X74: 42020.23958 | Y74: 42020.26476 | Z74: =IF($M74="HW",Y$2+(Y$1-Y$2)*$N74,Y$3+(Y$4-Y$3)*$N74) -> 4.587826087 | AA74: 42020.25434 | AB74: 42020.26042 | AC74: =IF($M74="HW",AB$2+(AB$1-AB$2)*$N74,AB$3+(AB$4-AB$3)*$N74) -> 4.187826087 | AD74: Opn | AE74: 42020.14583 | AF74: 42020.26866 | AG74: =IF($M74="HW",AF$2+(AF$1-AF$2)*$N74,AF$3+(AF$4-AF$3)*$N74) -> 3.672173913 | AH74: 42020.24132 | AI74: =IF($M74="HW",AH$2+(AH$1-AH$2)*$N74,AH$3+(AH$4-AH$3)*$N74) -> 4.056521739 | AJ74: 42020.29253 | AK74: =IF($M74="HW",AJ$2+(AJ$1-AJ$2)*$N74,AJ$3+(AJ$4-AJ$3)*$N74) -> 6.150434783 | AL74: 42020.29557 | AM74: =IF($M74="HW",AL$2+(AL$1-AL$2)*$N74,AL$3+(AL$4-AL$3)*$N74) -> 6.066086957 | AN74: 42020.28906 | AO74: =IF($M74="HW",AN$2+(AN$1-AN$2)*$N74,AN$3+(AN$4-AN$3)*$N74) -> 5.934782609 | AP74: 42020.29818 | AQ74: =IF($M74="HW",AP$2+(AP$1-AP$2)*$N74,AP$3+(AP$4-AP$3)*$N74) -> 5.334782609 | AR74: 42020.27083 | AS74: 42020.29167 | AT74: 42020.26215 | AU74: =IF($M74="HW",AT$2+(AT$1-AT$2)*$N74,AT$3+(AT$4-AT$3)*$N74) -> 4.187826087 | AV74: 42020.26215 | AW74: =IF($M74="HW",AV$2+(AV$1-AV$2)*$N74,AV$3+(AV$4-AV$3)*$N74) -> 3.987826087 | AX74: 42020.23828 | AY74: =IF($M74="HW",AX$2+(AX$1-AX$2)*$N74,AX$3+(AX$4-AX$3)*$N74) -> 3.703478261 | AZ74: 42020.23481 | BA74: =IF($M74="HW",AZ$2+(AZ$1-AZ$2)*$N74,AZ$3+(AZ$4-AZ$3)*$N74) -> 3.587826087 | BB74: 42020.23134 | BC74: =IF($M74="HW",BB$2+(BB$1-BB$2)*$N74,BB$3+(BB$4-BB$3)*$N74) -> 3.572173913 | BD74: 42020.17188 | BE74: =IF($M74="HW",BD$2+(BD$1-BD$2)*$N74,BD$3+(BD$4-BD$3)*$N74) -> 3.387826087 | BF74: 42020.27083 | BH74: 42020.32292 | BI74: 42020.3125
A75: 0 | B75: 0 | C75: 2019-01-17T12:53:00 | D75: 2019-01-17 | F75: 1 | I75: 4 | K75: 42020.53681 | L75: 1.98 | M75: LW | N75: =IF(M75="HW",(L75-K$2)/(K$1-K$2),(L75-K$3)/(K$4-K$3)) -> 0.03053435115 | O75: 12:53:00 | P75: =IF(M75="HW",IF(AND(O75>=L$5,O75<L$6),L$5,IF(AND(O75>=L$6,O75<M$5),M$5,IF(AND(O75>=M$5,O75<M$6),M$5,IF(O75>=M$6,L$5+1,L$5)))),IF(AND(O75>=L$7,O75<L$8),L$7,IF(AND(O75>=L$8,O75<M$7),M$7,IF(AND(O75>=M$7,O75<M$8),M$7,IF(O75>=M$8,L$7+1,L$7))))) -> 17:00:00 | Q75: =IF(M75="HW",IF(AND(O75>=L$5,O75<L$6),L$6,IF(AND(O75>=L$6,O75<M$5),L$6,IF(AND(O75>=M$5,O75<M$6),M$6,IF(O75>=M$6,M$6,M$6-1)))),IF(AND(O75>=L$7,O75<L$8),L$8,IF(AND(O75>=L$8,O75<M$7),L$8,IF(AND(O75>=M$7,O75<M$8),M$8,IF(O75>=M$8,M$8,M$8-1))))) -> 11:00:00 | R75: 0.3138888889 | S75: 42020.56547 | T75: =IF($M75="HW",S$2+(S$1-S$2)*$N75,S$3+(S$4-S$3)*$N75) -> 2.448091603 | U75: 42020.63144 | V75: 42020.55566 | W75: =IF($M75="HW",V$2+(V$1-V$2)*$N75,V$3+(V$4-V$3)*$N75) -> 2.251145038 | X75: 42020.49514 | Y75: 42020.54334 | Z75: 1.963358779 | AA75: 42020.51985 | AB75: =IF($M75="HW",$K75+AB$6+(AB$5-AB$6)*$R75,$K75+AB$8+(AB$7-AB$8)*$R75) -> 42020.53769 | AC75: 1.860305344 | AD75: =IF($M75="HW","Opn","Cls") -> Cls | AE75: 42020.375 | AF75: =IF($M75="HW",$K75+AF$6+(AF$5-AF$6)*$R75,$K75+AF$8+(AF$7-AF$8)*$R75) -> 42020.52897 | AG75: 1.763358779 | AH75: =IF($M75="HW",$K75+AH$6+(AH$5-AH$6)*$R75,$K75+AH$8+(AH$7-AH$8)*$R75) -> 42020.52074 | AI75: 1.863358779 | AJ75: =IF($M75="HW",$K75+AJ$6+(AJ$5-AJ$6)*$R75,$K75+AJ$8+(AJ$7-AJ$8)*$R75) -> 42020.56438 | AK75: 2.451145038 | AL75: =IF($M75="HW",$K75+AL$6+(AL$5-AL$6)*$R75,$K75+AL$8+(AL$7-AL$8)*$R75) -> 42020.56438 | AM75: 2.451145038 | AN75: =IF($M75="HW",$K75+AN$6+(AN$5-AN$6)*$R75,$K75+AN$8+(AN$7-AN$8)*$R75) -> 42020.55635 | AO75: 2.451145038 | AP75: =IF($M75="HW",$K75+AP$6+(AP$5-AP$6)*$R75,$K75+AP$8+(AP$7-AP$8)*$R75) -> 42020.5622 | AQ75: 2.254198473 | AR75: 42020.52639 | AS75: 42020.55069 | AT75: =IF($M75="HW",$K75+AT$6+(AT$5-AT$6)*$R75,$K75+AT$8+(AT$7-AT$8)*$R75) -> 42020.52639 | AU75: 1.963358779 | AV75: =IF($M75="HW",$K75+AV$6+(AV$5-AV$6)*$R75,$K75+AV$8+(AV$7-AV$8)*$R75) -> 42020.52857 | AW75: 1.960305344 | AX75: =IF($M75="HW",$K75+AX$6+(AX$5-AX$6)*$R75,$K75+AX$8+(AX$7-AX$8)*$R75) -> 42020.52074 | AY75: 1.763358779 | AZ75: =IF($M75="HW",$K75+AZ$6+(AZ$5-AZ$6)*$R75,$K75+AZ$8+(AZ$7-AZ$8)*$R75) -> 42020.51726 | BA75: 1.760305344 | BB75: =IF($M75="HW",$K75+BB$6+(BB$5-BB$6)*$R75,$K75+BB$8+(BB$7-BB$8)*$R75) -> 42020.51141 | BC75: 1.860305344 | BD75: =IF($M75="HW",$K75+BD$6+(BD$5-BD$6)*$R75,$K75+BD$8+(BD$7-BD$8)*$R75) -> 42020.46627 | BE75: 1.472519084 | BF75: 42020.56111 | BH75: 42020.57847 | BI75: 42020.56806
A76: 0 | B76: 0 | C76: 2019-01-17T19:07:00 | D76: =DATE(YEAR(K76),MONTH(K76),DAY(K76)) -> 2019-01-17 | F76: =MONTH(K76) -> 1 | G76: =IF(H76="","",TEXT(F76*29,"mmm")) ->  | H76: =IF(I76=I75,"",DAY(K76)) ->  | I76: =WEEKDAY(K76,2) -> 4 | J76: =IF(I76=I75,"",TEXT(I76+2,"ddd")) ->  | K76: =C76+B76/24 -> 42020.79653 | L76: 4.9 | M76: HW | N76: 0.3565217391 | O76: =C76-INT(C76) -> 19:07:00 | P76: 1 | Q76: 18:00:00 | R76: =ABS((O76-Q76)/(P76-Q76)) -> 0.1861111111 | S76: 42020.80541 | T76: 6.570434783 | U76: 42020.87138 | V76: 42020.80606 | W76: 6.334782609 | X76: 42020.75486 | Y76: 42020.78046 | Z76: 4.827826087 | AA76: =IF($M76="HW",$K76+AA$6+(AA$5-AA$6)*$R76,$K76+AA$8+(AA$7-AA$8)*$R76) -> 42020.77004 | AB76: 42020.77569 | AC76: 4.427826087 | AD76: Opn | AE76: =IF($M76="HW",$AB76-AD$8,$AB75+AD$8) -> 42020.66111 | AF76: 42020.78288 | AG76: 3.892173913 | AH76: 42020.75575 | AI76: 4.256521739 | AJ76: 42020.80824 | AK76: 6.470434783 | AL76: 42020.81106 | AM76: 6.406086957 | AN76: 42020.80476 | AO76: 6.234782609 | AP76: 42020.81324 | AQ76: 5.634782609 | AR76: 42020.78611 | AS76: 42020.80694 | AT76: 42020.77658 | AU76: 4.427826087 | AV76: 42020.77658 | AW76: 4.227826087 | AX76: 42020.75292 | AY76: 3.963478261 | AZ76: 42020.74945 | BA76: 3.827826087 | BB76: 42020.74598 | BC76: 3.792173913 | BD76: 42020.688 | BE76: 3.627826087 | BF76: 42020.78611 | BH76: 42020.83819 | BI76: 42020.82778
A77: 0 | B77: 0 | C77: 2019-01-18T01:22:00 | D77: 2019-01-18 | E77: =IF(D77=D76,IF(J76="","",J76),D77) -> 2019-01-18 | F77: 1 | G77: Jan | H77: 18 | I77: 5 | J77: Fri | K77: 42021.05694 | L77: 1.63 | M77: LW | N77: 0.2977099237 | O77: 01:22:00 | P77: 05:00:00 | Q77: -0.04166666667 | R77: 0.3944444444 | S77: =IF($M77="HW",$K77+S$6+(S$5-S$6)*$R77,$K77+S$8+(S$7-S$8)*$R77) -> 42021.08673 | T77: 1.99389313 | U77: 42021.1527 | V77: 42021.0744 | W77: 1.823664122 | X77: =IF($M77="HW",$K77+X$6+(X$5-X$6)*$R77,$K77+X$8+(X$7-X$8)*$R77) -> 42021.01528 | Y77: 42021.06516 | Z77: 1.642748092 | AA77: 42021.03831 | AB77: 42021.05895 | AC77: 1.512977099 | AD77: Cls | AE77: 42020.89028 | AF77: 42021.04799 | AG77: 1.442748092 | AH77: 42021.04032 | AI77: 1.542748092 | AJ77: 42021.08536 | AK77: 2.023664122 | AL77: 42021.08536 | AM77: 2.023664122 | AN77: 42021.07704 | AO77: 2.023664122 | AP77: 42021.08262 | AQ77: 1.853435115 | AR77: =IF($M77="HW",$K77+AR$6+(AR$5-AR$6)*$R77,$K77+AR$8+(AR$7-AR$8)*$R77) -> 42021.04653 | AS77: 42021.07083 | AT77: 42021.04653 | AU77: 1.642748092 | AV77: 42021.04927 | AW77: 1.612977099 | AX77: 42021.04032 | AY77: 1.442748092 | AZ77: 42021.03684 | BA77: 1.412977099 | BB77: 42021.03127 | BC77: 1.512977099 | BD77: 42020.98613 | BE77: 1.232061069 | BF77: =IF($M77="HW",$K77+BF$6+(BF$5-BF$6)*$R77,$K77+BF$8+(BF$7-BF$8)*$R77) -> 42021.08125 | BH77: 42021.09861 | BI77: 42021.08819
A78: 0 | B78: 0 | C78: 2019-01-18T07:46:00 | D78: 2019-01-18 | E78: Fri | F78: 1 | I78: 5 | K78: 42021.32361 | L78: 4.95 | M78: HW | N78: 0.4 | O78: 07:46:00 | P78: 12:00:00 | Q78: 06:00:00 | R78: 0.2944444444 | S78: 42021.33362 | T78: 6.64 | U78: 42021.39959 | V78: 42021.33465 | W78: 6.4 | X78: 42021.28194 | Y78: 42021.30829 | Z78: 4.88 | AA78: 42021.29788 | AB78: 42021.30278 | AC78: 4.48 | AD78: Opn | AE78: 42021.18819 | AF78: 42021.30808 | AG78: 3.94 | AH78: 42021.28133 | AI78: 4.3 | AJ78: 42021.33607 | AK78: 6.54 | AL78: 42021.33852 | AM78: 6.48 | AN78: 42021.3326 | AO78: 6.3 | AP78: 42021.33995 | AQ78: 5.7 | AR78: 42021.31319 | AS78: 42021.33403 | AT78: 42021.30216 | AU78: 4.48 | AV78: 42021.30216 | AW78: 4.28 | AX78: 42021.27888 | AY78: 4.02 | AZ78: 42021.27541 | BA78: 3.88 | BB78: 42021.27193 | BC78: 3.84 | BD78: 42021.21659 | BE78: 3.68 | BF78: 42021.31319 | BH78: 42021.36528 | BI78: 42021.35486
A79: 0 | B79: 0 | C79: 2019-01-18T13:53:00 | D79: 2019-01-18 | F79: 1 | I79: 5 | K79: 42021.57847 | L79: 1.65 | M79: LW | N79: 0.2824427481 | O79: 13:53:00 | P79: 17:00:00 | Q79: 11:00:00 | R79: 0.4805555556 | S79: 42021.60945 | T79: 2.019847328 | U79: 42021.67542 | V79: 42021.59443 | W79: 1.848091603 | X79: 42021.53681 | Y79: 42021.58848 | Z79: 1.661068702 | AA79: 42021.55804 | AB79: 42021.58167 | AC79: 1.532824427 | AD79: Cls | AE79: 42021.41736 | AF79: 42021.56833 | AG79: 1.461068702 | AH79: 42021.56125 | AI79: 1.561068702 | AJ79: 42021.60778 | AK79: 2.048091603 | AL79: 42021.60778 | AM79: 2.048091603 | AN79: 42021.59917 | AO79: 2.048091603 | AP79: 42021.60445 | AQ79: 1.876335878 | AR79: 42021.56806 | AS79: 42021.59236 | AT79: 42021.56806 | AU79: 1.661068702 | AV79: 42021.57139 | AW79: 1.632824427 | AX79: 42021.56125 | AY79: 1.461068702 | AZ79: 42021.55777 | BA79: 1.432824427 | BB79: 42021.5525 | BC79: 1.532824427 | BD79: 42021.50736 | BE79: 1.245801527 | BF79: 42021.60278 | BH79: 42021.62014 | BI79: 42021.60972
A80: 0 | B80: 0 | C80: 2019-01-18T20:07:00 | D80: 2019-01-18 | F80: 1 | I80: 5 | K80: 42021.83819 | L80: 5.15 | M80: HW | N80: 0.5739130435 | O80: 20:07:00 | P80: 1 | Q80: 18:00:00 | R80: 0.3527777778 | S80: 42021.84881 | T80: 6.91826087 | U80: 42021.91479 | V80: 42021.85004 | W80: 6.660869565 | X80: 42021.79653 | Y80: 42021.82328 | Z80: 5.088695652 | AA80: 42021.81287 | AB80: 42021.81736 | AC80: 4.688695652 | AD80: Opn | AE80: 42021.70278 | AF80: 42021.82165 | AG80: 4.131304348 | AH80: 42021.7951 | AI80: 4.473913043 | AJ80: 42021.85106 | AK80: 6.81826087 | AL80: 42021.85331 | AM80: 6.775652174 | AN80: 42021.84759 | AO80: 6.560869565 | AP80: 42021.85433 | AQ80: 5.960869565 | AR80: 42021.82778 | AS80: 42021.84861 | AT80: 42021.81593 | AU80: 4.688695652 | AV80: 42021.81593 | AW80: 4.488695652 | AX80: 42021.79285 | AY80: 4.246086957 | AZ80: 42021.78938 | BA80: 4.088695652 | BB80: 42021.78591 | BC80: 4.031304348 | BD80: 42021.73198 | BE80: 3.888695652 | BF80: 42021.82778 | BH80: 42021.87986 | BI80: 42021.86944
A81: 0 | B81: 0 | C81: 2019-01-19T02:17:00 | D81: 2019-01-19 | E81: 2019-01-19 | F81: 1 | G81: Jan | H81: 19 | I81: 6 | J81: Sat | K81: 42022.09514 | L81: 1.36 | M81: LW | N81: 0.5038167939 | O81: 02:17:00 | P81: 05:00:00 | Q81: -0.04166666667 | R81: 0.5472222222 | S81: 42022.12704 | T81: 1.64351145 | U81: 42022.19302 | V81: 42022.10994 | W81: 1.49389313 | X81: 42022.05347 | Y81: 42022.10654 | Z81: 1.395419847 | AA81: 42022.07332 | AB81: 42022.09927 | AC81: 1.245038168 | AD81: Cls | AE81: 42021.93194 | AF81: 42022.08407 | AG81: 1.195419847 | AH81: 42022.07745 | AI81: 1.295419847 | AJ81: 42022.12514 | AK81: 1.69389313 | AL81: 42022.12514 | AM81: 1.69389313 | AN81: 42022.1163 | AO81: 1.69389313 | AP81: 42022.12134 | AQ81: 1.544274809 | AR81: 42022.08472 | AS81: 42022.10903 | AT81: 42022.08472 | AU81: 1.395419847 | AV81: 42022.08852 | AW81: 1.345038168 | AX81: 42022.07745 | AY81: 1.195419847 | AZ81: 42022.07398 | BA81: 1.145038168 | BB81: 42022.06893 | BC81: 1.245038168 | BD81: 42022.02379 | BE81: 1.046564885 | BF81: 42022.11944 | BH81: 42022.13681 | BI81: 42022.12639
A82: 0 | B82: 0 | C82: 2019-01-19T08:38:00 | D82: 2019-01-19 | E82: Sat | F82: 1 | I82: 6 | K82: 42022.35972 | L82: 5.27 | M82: HW | N82: 0.6782608696 | O82: 08:38:00 | P82: 12:00:00 | Q82: 06:00:00 | R82: 0.4388888889 | S82: 42022.37124 | T82: 7.085217391 | U82: 42022.43721 | V82: 42022.37276 | W82: 6.817391304 | X82: 42022.31806 | Y82: 42022.34541 | Z82: 5.213913043 | AA82: 42022.33499 | AB82: 42022.33889 | AC82: 4.813913043 | AD82: Opn | AE82: 42022.22431 | AF82: 42022.34169 | AG82: 4.246086957 | AH82: 42022.31543 | AI82: 4.57826087 | AJ82: 42022.37319 | AK82: 6.985217391 | AL82: 42022.37514 | AM82: 6.953043478 | AN82: 42022.36971 | AO82: 6.717391304 | AP82: 42022.37556 | AQ82: 6.117391304 | AR82: 42022.34931 | AS82: 42022.37014 | AT82: 42022.33627 | AU82: 4.813913043 | AV82: 42022.33627 | AW82: 4.613913043 | AX82: 42022.31348 | AY82: 4.38173913 | AZ82: 42022.31001 | BA82: 4.213913043 | BB82: 42022.30654 | BC82: 4.146086957 | BD82: 42022.25471 | BE82: 4.013913043 | BF82: 42022.34931 | BH82: 42022.40139 | BI82: 42022.39097
A83: 0 | B83: 0 | C83: 2019-01-19T14:46:00 | D83: 2019-01-19 | F83: 1 | I83: 6 | K83: 42022.61528 | L83: 1.26 | M83: LW | N83: 0.5801526718 | O83: 14:46:00 | P83: 17:00:00 | Q83: 11:00:00 | R83: 0.6277777778 | S83: 42022.6483 | T83: 1.513740458 | U83: 42022.71427 | V83: 42022.62868 | W83: 1.371755725 | X83: 42022.57361 | Y83: 42022.62836 | Z83: 1.303816794 | AA83: 42022.59178 | AB83: 42022.62052 | AC83: 1.145801527 | AD83: Cls | AE83: 42022.45347 | AF83: 42022.60309 | AG83: 1.103816794 | AH83: 42022.59703 | AI83: 1.203816794 | AJ83: 42022.64612 | AK83: 1.571755725 | AL83: 42022.64612 | AM83: 1.571755725 | AN83: 42022.637 | AO83: 1.571755725 | AP83: 42022.64176 | AQ83: 1.429770992 | AR83: 42022.60486 | AS83: 42022.62917 | AT83: 42022.60486 | AU83: 1.303816794 | AV83: 42022.60922 | AW83: 1.245801527 | AX83: 42022.59703 | AY83: 1.103816794 | AZ83: 42022.59356 | BA83: 1.045801527 | BB83: 42022.58879 | BC83: 1.145801527 | BD83: 42022.54365 | BE83: 0.9778625954 | BF83: 42022.63958 | BH83: 42022.65694 | BI83: 42022.64653
A84: 0 | B84: 0 | C84: 2019-01-19T21:01:00 | D84: 2019-01-19 | F84: 1 | I84: 6 | K84: 42022.87569 | L84: 5.42 | M84: HW | N84: 0.8086956522 | O84: 21:01:00 | P84: 1 | Q84: 18:00:00 | R84: 0.5027777778 | S84: 42022.88788 | T84: 7.293913043 | U84: 42022.95385 | V84: 42022.88962 | W84: 7.013043478 | X84: 42022.83403 | Y84: 42022.86182 | Z84: 5.370434783 | AA84: 42022.85141 | AB84: 42022.85486 | AC84: 4.970434783 | AD84: Opn | AE84: 42022.74028 | AF84: 42022.85655 | AG84: 4.389565217 | AH84: 42022.83052 | AI84: 4.708695652 | AJ84: 42022.8896 | AK84: 7.193913043 | AL84: 42022.89133 | AM84: 7.174782609 | AN84: 42022.88613 | AO84: 6.913043478 | AP84: 42022.89131 | AQ84: 6.313043478 | AR84: 42022.86528 | AS84: 42022.88611 | AT84: 42022.85135 | AU84: 4.970434783 | AV84: 42022.85135 | AW84: 4.770434783 | AX84: 42022.82879 | AY84: 4.551304348 | AZ84: 42022.82532 | BA84: 4.370434783 | BB84: 42022.82185 | BC84: 4.289565217 | BD84: 42022.77157 | BE84: 4.170434783 | BF84: 42022.86528 | BH84: 42022.91736 | BI84: 42022.90694
A85: 0 | B85: 0 | C85: 2019-01-20T03:06:00 | D85: 2019-01-20 | E85: 2019-01-20 | F85: 1 | G85: Jan | H85: 20 | I85: 7 | J85: Sun | K85: 42023.12917 | L85: 1.07 | M85: LW | N85: 0.7251908397 | O85: 03:06:00 | P85: 05:00:00 | Q85: -0.04166666667 | R85: 0.6833333333 | S85: 42023.16296 | T85: 1.267175573 | U85: 42023.22894 | V85: 42023.14161 | W85: 1.139694656 | X85: 42023.0875 | Y85: 42023.1434 | Z85: 1.129770992 | AA85: 42023.10451 | AB85: 42023.13519 | AC85: 0.9572519084 | AD85: Cls | AE85: 42022.96944 | AF85: 42023.1162 | AG85: 0.9297709924 | AH85: 42023.11053 | AI85: 1.029770992 | AJ85: 42023.16059 | AK85: 1.339694656 | AL85: 42023.16059 | AM85: 1.339694656 | AN85: 42023.15127 | AO85: 1.339694656 | AP85: 42023.15584 | AQ85: 1.21221374 | AR85: 42023.11875 | AS85: 42023.14306 | AT85: 42023.11875 | AU85: 1.129770992 | AV85: 42023.1235 | AW85: 1.057251908 | AX85: 42023.11053 | AY85: 0.9297709924 | AZ85: 42023.10706 | BA85: 0.8572519084 | BB85: 42023.10249 | BC85: 0.9572519084 | BD85: 42023.05735 | BE85: 0.8473282443 | BF85: 42023.15347 | BH85: 42023.17083 | BI85: 42023.16042
A86: 0 | B86: 0 | C86: 2019-01-20T09:26:00 | D86: 2019-01-20 | E86: Sun | F86: 1 | I86: 7 | K86: 42023.39306 | L86: 5.59 | M86: HW | N86: 0.9565217391 | O86: 09:26:00 | P86: 12:00:00 | Q86: 06:00:00 | R86: 0.5722222222 | S86: 42023.40596 | T86: 7.530434783 | U86: 42023.47193 | V86: 42023.40795 | W86: 7.234782609 | X86: 42023.35139 | Y86: 42023.37967 | Z86: 5.547826087 | AA86: 42023.36925 | AB86: 42023.37222 | AC86: 5.147826087 | AD86: Opn | AE86: 42023.25764 | AF86: 42023.3727 | AG86: 4.552173913 | AH86: 42023.34691 | AI86: 4.856521739 | AJ86: 42023.40745 | AK86: 7.430434783 | AL86: 42023.40893 | AM86: 7.426086957 | AN86: 42023.40397 | AO86: 7.134782609 | AP86: 42023.40843 | AQ86: 6.534782609 | AR86: 42023.38264 | AS86: 42023.40347 | AT86: 42023.36775 | AU86: 5.147826087 | AV86: 42023.36775 | AW86: 4.947826087 | AX86: 42023.34543 | AY86: 4.743478261 | AZ86: 42023.34196 | BA86: 4.547826087 | BB86: 42023.33848 | BC86: 4.452173913 | BD86: 42023.28989 | BE86: 4.347826087 | BF86: 42023.38264 | BH86: 42023.43472 | BI86: 42023.42431
A87: 0 | B87: 0 | C87: 2019-01-20T15:35:00 | D87: 2019-01-20 | F87: 1 | I87: 7 | K87: 42023.64931 | L87: 0.89 | M87: LW | N87: 0.8625954198 | O87: 15:35:00 | P87: 17:00:00 | Q87: 11:00:00 | R87: 0.7638888889 | S87: 42023.68422 | T87: 1.033587786 | U87: 42023.75019 | V87: 42023.66035 | W87: 0.9198473282 | X87: 42023.60764 | Y87: 42023.66522 | Z87: 0.9648854962 | AA87: 42023.62297 | AB87: 42023.65644 | AC87: 0.7786259542 | AD87: Cls | AE87: 42023.48681 | AF87: 42023.63522 | AG87: 0.7648854962 | AH87: 42023.63011 | AI87: 0.8648854962 | AJ87: 42023.68157 | AK87: 1.119847328 | AL87: 42023.68157 | AM87: 1.119847328 | AN87: 42023.67197 | AO87: 1.119847328 | AP87: 42023.67626 | AQ87: 1.00610687 | AR87: 42023.63889 | AS87: 42023.66319 | AT87: 42023.63889 | AU87: 0.9648854962 | AV87: 42023.64419 | AW87: 0.8786259542 | AX87: 42023.63011 | AY87: 0.7648854962 | AZ87: 42023.62664 | BA87: 0.6786259542 | BB87: 42023.62235 | BC87: 0.7786259542 | BD87: 42023.57721 | BE87: 0.7236641221 | BF87: 42023.67361 | BH87: 42023.69097 | BI87: 42023.68056
A88: 0 | B88: 0 | C88: 2019-01-20T21:50:00 | D88: 2019-01-20 | F88: 1 | I88: 7 | K88: 42023.90972 | L88: 5.65 | M88: HW | N88: 1.008695652 | O88: 21:50:00 | P88: 1 | Q88: 18:00:00 | R88: 0.6388888889 | S88: 42023.92332 | T88: 7.613913043 | U88: 42023.98929 | V88: 42023.92554 | W88: 7.313043478 | X88: 42023.86806 | Y88: 42023.8968 | Z88: 5.610434783 | AA88: 42023.88638 | AB88: 42023.88889 | AC88: 5.210434783 | AD88: Opn | AE88: 42023.77431 | AF88: 42023.88821 | AG88: 4.609565217 | AH88: 42023.86265 | AI88: 4.908695652 | AJ88: 42023.92458 | AK88: 7.513913043 | AL88: 42023.92583 | AM88: 7.514782609 | AN88: 42023.9211 | AO88: 7.213043478 | AP88: 42023.92486 | AQ88: 6.613043478 | AR88: 42023.89931 | AS88: 42023.92014 | AT88: 42023.88349 | AU88: 5.210434783 | AV88: 42023.88349 | AW88: 5.010434783 | AX88: 42023.8614 | AY88: 4.811304348 | AZ88: 42023.85793 | BA88: 4.610434783 | BB88: 42023.85446 | BC88: 4.509565217 | BD88: 42023.80748 | BE88: 4.410434783 | BF88: 42023.89931 | BH88: 42023.95139 | BI88: 42023.94097
A89: 0 | B89: 0 | C89: 2019-01-21T03:54:00 | D89: 2019-01-21 | E89: 2019-01-21 | F89: 1 | G89: Jan | H89: 21 | I89: 1 | J89: Mon | K89: 42024.1625 | L89: 0.83 | M89: LW | N89: 0.9083969466 | O89: 03:54:00 | P89: 05:00:00 | Q89: -0.04166666667 | R89: 0.8166666667 | S89: 42024.19815 | T89: 0.9557251908 | U89: 42024.26412 | V89: 42024.17263 | W89: 0.8465648855 | X89: 42024.12083 | Y89: 42024.17951 | Z89: 0.9099236641 | AA89: 42024.13507 | AB89: 42024.17037 | AC89: 0.7190839695 | AD89: Cls | AE89: 42024.00347 | AF89: 42024.14769 | AG89: 0.7099236641 | AH89: 42024.14294 | AI89: 0.8099236641 | AJ89: 42024.19531 | AK89: 1.046564885 | AL89: 42024.19531 | AM89: 1.046564885 | AN89: 42024.18553 | AO89: 1.046564885 | AP89: 42024.18964 | AQ89: 0.9374045802 | AR89: 42024.15208 | AS89: 42024.17639 | AT89: 42024.15208 | AU89: 0.9099236641 | AV89: 42024.15775 | AW89: 0.8190839695 | AX89: 42024.14294 | AY89: 0.7099236641 | AZ89: 42024.13947 | BA89: 0.6190839695 | BB89: 42024.13536 | BC89: 0.7190839695 | BD89: 42024.09022 | BE89: 0.6824427481 | BF89: 42024.18681 | BH89: 42024.20417 | BI89: 42024.19375
A90: 0 | B90: 0 | C90: 2019-01-21T10:12:00 | D90: 2019-01-21 | E90: Mon | F90: 1 | I90: 1 | K90: 42024.425 | L90: 5.86 | M90: HW | N90: 1.191304348 | O90: 10:12:00 | P90: 12:00:00 | Q90: 06:00:00 | R90: 0.7 | S90: 42024.43924 | T90: 7.906086957 | U90: 42024.50521 | V90: 42024.44167 | W90: 7.586956522 | X90: 42024.38333 | Y90: 42024.4125 | Z90: 5.829565217 | AA90: 42024.40208 | AB90: 42024.40417 | AC90: 5.429565217 | AD90: Opn | AE90: 42024.28958 | AF90: 42024.40243 | AG90: 4.810434783 | AH90: 42024.37708 | AI90: 5.091304348 | AJ90: 42024.44028 | AK90: 7.806086957 | AL90: 42024.44132 | AM90: 7.825217391 | AN90: 42024.43681 | AO90: 7.486956522 | AP90: 42024.43993 | AQ90: 6.886956522 | AR90: 42024.41458 | AS90: 42024.43542 | AT90: 42024.39792 | AU90: 5.429565217 | AV90: 42024.39792 | AW90: 5.229565217 | AX90: 42024.37604 | AY90: 5.048695652 | AZ90: 42024.37257 | BA90: 4.829565217 | BB90: 42024.3691 | BC90: 4.710434783 | BD90: 42024.32361 | BE90: 4.629565217 | BF90: 42024.41458 | BH90: 42024.46667 | BI90: 42024.45625
A91: 0 | B91: 0 | C91: 2019-01-21T16:23:00 | D91: 2019-01-21 | F91: 1 | I91: 1 | K91: 42024.68264 | L91: 0.59 | M91: LW | N91: 1.091603053 | O91: 16:23:00 | P91: 17:00:00 | Q91: 11:00:00 | R91: 0.8972222222 | S91: 42024.71941 | T91: 0.6442748092 | U91: 42024.78538 | V91: 42024.69137 | W91: 0.5534351145 | X91: 42024.64097 | Y91: 42024.70133 | Z91: 0.6900763359 | AA91: 42024.65353 | AB91: 42024.69163 | AC91: 0.4809160305 | AD91: Cls | AE91: 42024.51875 | AF91: 42024.66671 | AG91: 0.4900763359 | AH91: 42024.66252 | AI91: 0.5900763359 | AJ91: 42024.71629 | AK91: 0.7534351145 | AL91: 42024.71629 | AM91: 0.7534351145 | AN91: 42024.70623 | AO91: 0.7534351145 | AP91: 42024.71006 | AQ91: 0.6625954198 | AR91: 42024.67222 | AS91: 42024.69653 | AT91: 42024.67222 | AU91: 0.6900763359 | AV91: 42024.67845 | AW91: 0.5809160305 | AX91: 42024.66252 | AY91: 0.4900763359 | AZ91: 42024.65905 | BA91: 0.3809160305 | BB91: 42024.65522 | BC91: 0.4809160305 | BD91: 42024.61008 | BE91: 0.5175572519 | BF91: 42024.70694 | BH91: 42024.72431 | BI91: 42024.71389
A92: 0 | B92: 0 | C92: 2019-01-21T22:38:00 | D92: 2019-01-21 | F92: 1 | I92: 1 | K92: 42024.94306 | L92: 5.81 | M92: HW | N92: 1.147826087 | O92: 22:38:00 | P92: 1 | Q92: 18:00:00 | R92: 0.7722222222 | S92: 42024.95804 | T92: 7.836521739 | U92: 42025.02402 | V92: 42024.96073 | W92: 7.52173913 | X92: 42024.90139 | Y92: 42024.93106 | Z92: 5.777391304 | AA92: 42024.92064 | AB92: 42024.92222 | AC92: 5.377391304 | AD92: Opn | AE92: 42024.80764 | AF92: 42024.91923 | AG92: 4.762608696 | AH92: 42024.89414 | AI92: 5.047826087 | AJ92: 42024.95883 | AK92: 7.736521739 | AL92: 42024.95963 | AM92: 7.751304348 | AN92: 42024.95536 | AO92: 7.42173913 | AP92: 42024.95774 | AQ92: 6.82173913 | AR92: 42024.93264 | AS92: 42024.95347 | AT92: 42024.91497 | AU92: 5.377391304 | AV92: 42024.91497 | AW92: 5.177391304 | AX92: 42024.89334 | AY92: 4.992173913 | AZ92: 42024.88987 | BA92: 4.777391304 | BB92: 42024.8864 | BC92: 4.662608696 | BD92: 42024.84267 | BE92: 4.577391304 | BF92: 42024.93264 | BH92: 42024.98472 | BI92: 42024.97431
A93: 0 | B93: 0 | C93: 2019-01-22T04:40:00 | D93: 2019-01-22 | E93: 2019-01-22 | F93: 1 | G93: Jan | H93: 22 | I93: 2 | J93: Tue | K93: 42025.19444 | L93: 0.66 | M93: LW | N93: 1.038167939 | O93: 04:40:00 | P93: 05:00:00 | Q93: -0.04166666667 | R93: 0.9444444444 | S93: 42025.23187 | T93: 0.7351145038 | U93: 42025.29784 | V93: 42025.20235 | W93: 0.6389312977 | X93: 42025.15278 | Y93: 42025.21412 | Z93: 0.7541984733 | AA93: 42025.16435 | AB93: 42025.20409 | AC93: 0.5503816794 | AD93: Cls | AE93: 42025.03681 | AF93: 42025.17785 | AG93: 0.5541984733 | AH93: 42025.174 | AI93: 0.6541984733 | AJ93: 42025.22859 | AK93: 0.8389312977 | AL93: 42025.22859 | AM93: 0.8389312977 | AN93: 42025.21836 | AO93: 0.8389312977 | AP93: 42025.22203 | AQ93: 0.7427480916 | AR93: 42025.18403 | AS93: 42025.20833 | AT93: 42025.18403 | AU93: 0.7541984733 | AV93: 42025.19059 | AW93: 0.6503816794 | AX93: 42025.174 | AY93: 0.5541984733 | AZ93: 42025.17052 | BA93: 0.4503816794 | BB93: 42025.16686 | BC93: 0.5503816794 | BD93: 42025.12172 | BE93: 0.565648855 | BF93: 42025.21875 | BH93: 42025.23611 | BI93: 42025.22569
A94: 0 | B94: 0 | C94: 2019-01-22T10:58:00 | D94: 2019-01-22 | E94: Tue | F94: 1 | I94: 2 | K94: 42025.45694 | L94: 6.04 | M94: HW | N94: 1.347826087 | O94: 10:58:00 | P94: 12:00:00 | Q94: 06:00:00 | R94: 0.8277777778 | S94: =IF($M94="HW",$K94+S$6+(S$5-S$6)*$R94,$K94+S$8+(S$7-S$8)*$R94) -> 42025.47251 | T94: 8.156521739 | U94: 42025.53848 | V94: 42025.47539 | W94: 7.82173913 | X94: =IF($M94="HW",$K94+X$6+(X$5-X$6)*$R94,$K94+X$8+(X$7-X$8)*$R94) -> 42025.41528 | Y94: 42025.44533 | Z94: 6.017391304 | AA94: 42025.43492 | AB94: 42025.43611 | AC94: 5.617391304 | AD94: Opn | AE94: 42025.32153 | AF94: 42025.43216 | AG94: 4.982608696 | AH94: 42025.40725 | AI94: 5.247826087 | AJ94: 42025.47311 | AK94: 8.056521739 | AL94: 42025.47371 | AM94: 8.091304348 | AN94: 42025.46964 | AO94: 7.72173913 | AP94: 42025.47143 | AQ94: 7.12173913 | AR94: =IF($M94="HW",$K94+AR$6+(AR$5-AR$6)*$R94,$K94+AR$8+(AR$7-AR$8)*$R94) -> 42025.44653 | AS94: 42025.46736 | AT94: 42025.42809 | AU94: 5.617391304 | AV94: 42025.42809 | AW94: 5.417391304 | AX94: 42025.40666 | AY94: 5.252173913 | AZ94: 42025.40318 | BA94: 5.017391304 | BB94: 42025.39971 | BC94: 4.882608696 | BD94: 42025.35733 | BE94: 4.817391304 | BF94: =IF($M94="HW",$K94+BF$6+(BF$5-BF$6)*$R94,$K94+BF$8+(BF$7-BF$8)*$R94) -> 42025.44653 | BH94: 42025.49861 | BI94: 42025.48819
A95: 0 | B95: 0 | C95: 2019-01-22T17:10:00 | D95: 2019-01-22 | F95: 1 | I95: 2 | K95: 42025.71528 | L95: 0.39 | M95: LW | N95: 1.244274809 | O95: 17:10:00 | P95: 17:00:00 | Q95: 23:00:00 | R95: 0.9722222222 | S95: 42025.75309 | T95: 0.3847328244 | U95: 42025.81906 | V95: 42025.7227 | W95: 0.3091603053 | X95: 42025.67361 | Y95: 42025.73553 | Z95: 0.506870229 | AA95: 42025.68461 | AB95: 42025.72531 | AC95: 0.2824427481 | AD95: Cls | AE95: 42025.55069 | AF95: 42025.6983 | AG95: 0.306870229 | AH95: 42025.69464 | AI95: 0.406870229 | AJ95: 42025.74971 | AK95: 0.5091603053 | AL95: 42025.74971 | AM95: 0.5091603053 | AN95: 42025.73939 | AO95: 0.5091603053 | AP95: 42025.74296 | AQ95: 0.4335877863 | AR95: 42025.70486 | AS95: 42025.72917 | AT95: 42025.70486 | AU95: 0.506870229 | AV95: 42025.71161 | AW95: 0.3824427481 | AX95: 42025.69464 | AY95: 0.306870229 | AZ95: 42025.69117 | BA95: 0.1824427481 | BB95: 42025.6876 | BC95: 0.2824427481 | BD95: 42025.64246 | BE95: 0.3801526718 | BF95: 42025.73958 | BH95: 42025.75694 | BI95: 42025.74653
A96: 0 | B96: 0 | C96: 2019-01-22T23:26:00 | D96: 2019-01-22 | F96: 1 | I96: 2 | K96: 42025.97639 | L96: 5.86 | M96: HW | N96: 1.191304348 | O96: 23:26:00 | P96: 1 | Q96: 18:00:00 | R96: 0.9055555556 | S96: 42025.99277 | T96: 7.906086957 | U96: 42026.05874 | V96: 42025.99591 | W96: 7.586956522 | X96: 42025.93472 | Y96: 42025.96532 | Z96: 5.829565217 | AA96: 42025.9549 | AB96: 42025.95556 | AC96: 5.429565217 | AD96: Opn | AE96: 42025.84097 | AF96: 42025.95025 | AG96: 4.810434783 | AH96: 42025.92562 | AI96: 5.091304348 | AJ96: 42025.99309 | AK96: 7.806086957 | AL96: 42025.99342 | AM96: 7.825217391 | AN96: 42025.98962 | AO96: 7.486956522 | AP96: 42025.99061 | AQ96: 6.886956522 | AR96: 42025.96597 | AS96: 42025.98681 | AT96: 42025.94645 | AU96: 5.429565217 | AV96: 42025.94645 | AW96: 5.229565217 | AX96: 42025.92529 | AY96: 5.048695652 | AZ96: 42025.92182 | BA96: 4.829565217 | BB96: 42025.91834 | BC96: 4.710434783 | BD96: 42025.87785 | BE96: 4.629565217 | BF96: 42025.96597 | BH96: 42026.01806 | BI96: 42026.00764
A97: 0 | B97: 0 | C97: 2019-01-23T05:27:00 | D97: 2019-01-23 | E97: 2019-01-23 | F97: 1 | G97: Jan | H97: 23 | I97: 3 | J97: Wed | K97: 42026.22708 | L97: 0.59 | M97: LW | N97: 1.091603053 | O97: 05:27:00 | P97: 05:00:00 | Q97: 11:00:00 | R97: 0.925 | S97: 42026.26424 | T97: 0.6442748092 | U97: 42026.33021 | V97: 42026.23533 | W97: 0.5534351145 | X97: 42026.18542 | Y97: 42026.24635 | Z97: 0.6900763359 | AA97: 42026.1974 | AB97: 42026.23646 | AC97: 0.4809160305 | AD97: Cls | AE97: 42026.07014 | AF97: 42026.21076 | AG97: 0.4900763359 | AH97: 42026.20677 | AI97: 0.5900763359 | AJ97: 42026.26102 | AK97: 0.7534351145 | AL97: 42026.26102 | AM97: 0.7534351145 | AN97: 42026.25087 | AO97: 0.7534351145 | AP97: 42026.2546 | AQ97: 0.6625954198 | AR97: 42026.21667 | AS97: 42026.24097 | AT97: 42026.21667 | AU97: 0.6900763359 | AV97: 42026.22309 | AW97: 0.5809160305 | AX97: 42026.20677 | AY97: 0.4900763359 | AZ97: 42026.2033 | BA97: 0.3809160305 | BB97: 42026.19957 | BC97: 0.4809160305 | BD97: 42026.15443 | BE97: 0.5175572519 | BF97: 42026.25139 | BH97: 42026.26875 | BI97: 42026.25833
A98: 0 | B98: 0 | C98: 2019-01-23T11:44:00 | D98: 2019-01-23 | E98: Wed | F98: 1 | I98: 3 | K98: 42026.48889 | L98: 6.11 | M98: HW | N98: 1.408695652 | O98: 11:44:00 | P98: 12:00:00 | Q98: 06:00:00 | R98: 0.9555555556 | S98: 42026.50579 | T98: 8.253913043 | U98: 42026.57176 | V98: 42026.5091 | W98: 7.913043478 | X98: 42026.44722 | Y98: 42026.47816 | Z98: 6.090434783 | AA98: 42026.46775 | AB98: 42026.46806 | AC98: 5.690434783 | AD98: Opn | AE98: 42026.35347 | AF98: 42026.46188 | AG98: 5.049565217 | AH98: 42026.43742 | AI98: 5.308695652 | AJ98: 42026.50594 | AK98: 8.153913043 | AL98: 42026.5061 | AM98: 8.194782609 | AN98: 42026.50247 | AO98: 7.813043478 | AP98: 42026.50293 | AQ98: 7.213043478 | AR98: 42026.47847 | AS98: 42026.49931 | AT98: 42026.45826 | AU98: 5.690434783 | AV98: 42026.45826 | AW98: 5.490434783 | AX98: 42026.43727 | AY98: 5.331304348 | AZ98: 42026.4338 | BA98: 5.090434783 | BB98: 42026.43032 | BC98: 4.949565217 | BD98: 42026.39105 | BE98: 4.890434783 | BF98: 42026.47847 | BH98: 42026.53056 | BI98: 42026.52014
A99: 0 | B99: 0 | C99: 2019-01-23T17:58:00 | D99: 2019-01-23 | F99: 1 | I99: 3 | K99: 42026.74861 | L99: 0.33 | M99: LW | N99: 1.290076336 | O99: 17:58:00 | P99: 17:00:00 | Q99: 23:00:00 | R99: 0.8388888889 | S99: 42026.78457 | T99: 0.306870229 | U99: 42026.85054 | V99: 42026.75835 | W99: 0.2358778626 | X99: 42026.70694 | Y99: 42026.76609 | Z99: 0.4519083969 | AA99: 42026.72072 | AB99: 42026.75679 | AC99: 0.2229007634 | AD99: Cls | AE99: 42026.58264 | AF99: 42026.73349 | AG99: 0.2519083969 | AH99: 42026.7289 | AI99: 0.3519083969 | AJ99: 42026.78166 | AK99: 0.4358778626 | AL99: 42026.78166 | AM99: 0.4358778626 | AN99: 42026.7718 | AO99: 0.4358778626 | AP99: 42026.77583 | AQ99: 0.3648854962 | AR99: 42026.73819 | AS99: 42026.7625 | AT99: 42026.73819 | AU99: 0.4519083969 | AV99: 42026.74402 | AW99: 0.3229007634 | AX99: 42026.7289 | AY99: 0.2519083969 | AZ99: 42026.72542 | BA99: 0.1229007634 | BB99: 42026.72139 | BC99: 0.2229007634 | BD99: 42026.67625 | BE99: 0.3389312977 | BF99: 42026.77292 | BH99: 42026.79028 | BI99: 42026.77986
A100: 0 | B100: 0 | C100: 2019-01-24T00:13:00 | D100: 2019-01-24 | E100: 2019-01-24 | F100: 1 | G100: Jan | H100: 24 | I100: 4 | J100: Thu | K100: 42027.00903 | L100: 5.81 | M100: HW | N100: 1.147826087 | O100: 00:13:00 | P100: 00:00:00 | Q100: 06:00:00 | R100: 0.9638888889 | S100: 42027.02601 | T100: 7.836521739 | U100: 42027.09198 | V100: 42027.02936 | W100: 7.52173913 | X100: 42026.96736 | Y100: 42026.99836 | Z100: 5.777391304 | AA100: 42026.98794 | AB100: 42026.98819 | AC100: 5.377391304 | AD100: Opn | AE100: 42026.87361 | AF100: 42026.98188 | AG100: 4.762608696 | AH100: 42026.95745 | AI100: 5.047826087 | AJ100: 42027.02614 | AK100: 7.736521739 | AL100: 42027.02626 | AM100: 7.751304348 | AN100: 42027.02267 | AO100: 7.42173913 | AP100: 42027.02304 | AQ100: 6.82173913 | AR100: 42026.99861 | AS100: 42027.01944 | AT100: 42026.97828 | AU100: 5.377391304 | AV100: 42026.97828 | AW100: 5.177391304 | AX100: 42026.95732 | AY100: 4.992173913 | AZ100: 42026.95385 | BA100: 4.777391304 | BB100: 42026.95038 | BC100: 4.662608696 | BD100: 42026.9113 | BE100: 4.577391304 | BF100: 42026.99861 | BH100: 42027.05069 | BI100: 42027.04028
A101: 0 | B101: 0 | C101: 2019-01-24T06:14:00 | D101: 2019-01-24 | E101: Thu | F101: 1 | I101: 4 | K101: 42027.25972 | L101: 0.64 | M101: LW | N101: 1.053435115 | O101: 06:14:00 | P101: 05:00:00 | Q101: 11:00:00 | R101: 0.7944444444 | S101: 42027.29506 | T101: 0.7091603053 | U101: 42027.36103 | V101: 42027.27024 | W101: 0.6145038168 | X101: 42027.21806 | Y101: 42027.27627 | Z101: 0.7358778626 | AA101: 42027.23275 | AB101: 42027.26728 | AC101: 0.5305343511 | AD101: Cls | AE101: 42027.10278 | AF101: 42027.24522 | AG101: 0.5358778626 | AH101: 42027.24032 | AI101: 0.6358778626 | AJ101: 42027.2923 | AK101: 0.8145038168 | AL101: 42027.2923 | AM101: 0.8145038168 | AN101: 42027.2826 | AO101: 0.8145038168 | AP101: 42027.28679 | AQ101: 0.7198473282 | AR101: 42027.24931 | AS101: 42027.27361 | AT101: 42027.24931 | AU101: 0.7358778626 | AV101: 42027.25482 | AW101: 0.6305343511 | AX101: 42027.24032 | AY101: 0.5358778626 | AZ101: 42027.23684 | BA101: 0.4305343511 | BB101: 42027.23266 | BC101: 0.5305343511 | BD101: 42027.18752 | BE101: 0.5519083969 | BF101: 42027.28403 | BH101: 42027.30139 | BI101: 42027.29097
A102: 0 | B102: 0 | C102: 2019-01-24T12:31:00 | D102: 2019-01-24 | F102: 1 | I102: 4 | K102: 42027.52153 | L102: 6.06 | M102: HW | N102: 1.365217391 | O102: 12:31:00 | P102: 12:00:00 | Q102: 18:00:00 | R102: 0.9138888889 | S102: 42027.53799 | T102: 8.184347826 | U102: 42027.60396 | V102: 42027.54117 | W102: 7.847826087 | X102: 42027.47986 | Y102: 42027.51051 | Z102: 6.03826087 | AA102: 42027.5001 | AB102: 42027.50069 | AC102: 5.63826087 | AD102: Opn | AE102: 42027.38611 | AF102: 42027.49524 | AG102: 5.00173913 | AH102: 42027.47064 | AI102: 5.265217391 | AJ102: 42027.53829 | AK102: 8.084347826 | AL102: 42027.53859 | AM102: 8.120869565 | AN102: 42027.53482 | AO102: 7.747826087 | AP102: 42027.53572 | AQ102: 7.147826087 | AR102: 42027.51111 | AS102: 42027.53194 | AT102: 42027.49147 | AU102: 5.63826087 | AV102: 42027.49147 | AW102: 5.43826087 | AX102: 42027.47034 | AY102: 5.274782609 | AZ102: 42027.46687 | BA102: 5.03826087 | BB102: 42027.4634 | BC102: 4.90173913 | BD102: 42027.42311 | BE102: 4.83826087 | BF102: 42027.51111 | BH102: 42027.56319 | BI102: 42027.55278
A103: 0 | B103: 0 | C103: 2019-01-24T18:47:00 | D103: 2019-01-24 | F103: 1 | I103: 4 | K103: 42027.78264 | L103: 0.41 | M103: LW | N103: 1.229007634 | O103: 18:47:00 | P103: 17:00:00 | Q103: 23:00:00 | R103: 0.7027777778 | S103: 42027.81671 | T103: 0.4106870229 | U103: 42027.88268 | V103: 42027.79474 | W103: 0.3335877863 | X103: 42027.74097 | Y103: 42027.79728 | Z103: 0.5251908397 | AA103: 42027.75758 | AB103: 42027.78893 | AC103: 0.3022900763 | AD103: Cls | AE103: 42027.61528 | AF103: 42027.76941 | AG103: 0.3251908397 | AH103: 42027.76387 | AI103: 0.4251908397 | AJ103: 42027.81427 | AK103: 0.5335877863 | AL103: 42027.81427 | AM103: 0.5335877863 | AN103: 42027.80488 | AO103: 0.5335877863 | AP103: 42027.80938 | AQ103: 0.4564885496 | AR103: 42027.77222 | AS103: 42027.79653 | AT103: 42027.77222 | AU103: 0.5251908397 | AV103: 42027.7771 | AW103: 0.4022900763 | AX103: 42027.76387 | AY103: 0.3251908397 | AZ103: 42027.7604 | BA103: 0.2022900763 | BB103: 42027.75589 | BC103: 0.3022900763 | BD103: 42027.71075 | BE103: 0.3938931298 | BF103: 42027.80694 | BH103: 42027.82431 | BI103: 42027.81389
A104: 0 | B104: 0 | C104: 2019-01-25T01:02:00 | D104: 2019-01-25 | E104: 2019-01-25 | F104: 1 | G104: Jan | H104: 25 | I104: 5 | J104: Fri | K104: 42028.04306 | L104: 5.65 | M104: HW | N104: 1.008695652 | O104: 01:02:00 | P104: 00:00:00 | Q104: 06:00:00 | R104: 0.8277777778 | S104: 42028.05862 | T104: 7.613913043 | U104: 42028.12459 | V104: 42028.0615 | W104: 7.313043478 | X104: 42028.00139 | Y104: 42028.03144 | Z104: 5.610434783 | AA104: 42028.02103 | AB104: 42028.02222 | AC104: 5.210434783 | AD104: Opn | AE104: 42027.90764 | AF104: 42028.01827 | AG104: 4.609565217 | AH104: 42027.99336 | AI104: 4.908695652 | AJ104: 42028.05922 | AK104: 7.513913043 | AL104: 42028.05982 | AM104: 7.514782609 | AN104: 42028.05575 | AO104: 7.213043478 | AP104: 42028.05754 | AQ104: 6.613043478 | AR104: 42028.03264 | AS104: 42028.05347 | AT104: 42028.0142 | AU104: 5.210434783 | AV104: 42028.0142 | AW104: 5.010434783 | AX104: 42027.99277 | AY104: 4.811304348 | AZ104: 42027.98929 | BA104: 4.610434783 | BB104: 42027.98582 | BC104: 4.509565217 | BD104: 42027.94344 | BE104: 4.410434783 | BF104: 42028.03264 | BH104: 42028.08472 | BI104: 42028.07431
A105: 0 | B105: 0 | C105: 2019-01-25T07:02:00 | D105: 2019-01-25 | E105: Fri | F105: 1 | I105: 5 | K105: 42028.29306 | L105: 0.8 | M105: LW | N105: 0.9312977099 | O105: 07:02:00 | P105: 05:00:00 | Q105: 11:00:00 | R105: 0.6611111111 | S105: 42028.32654 | T105: 0.9167938931 | U105: 42028.39252 | V105: 42028.30588 | W105: 0.8099236641 | X105: 42028.25139 | Y105: 42028.30683 | Z105: 0.8824427481 | AA105: 42028.26887 | AB105: 42028.29877 | AC105: 0.6893129771 | AD105: Cls | AE105: 42028.13681 | AF105: 42028.2804 | AG105: 0.6824427481 | AH105: 42028.27458 | AI105: 0.7824427481 | AJ105: 42028.32425 | AK105: 1.009923664 | AL105: 42028.32425 | AM105: 1.009923664 | AN105: 42028.31501 | AO105: 1.009923664 | AP105: 42028.31966 | AQ105: 0.9030534351 | AR105: 42028.28264 | AS105: 42028.30694 | AT105: 42028.28264 | AU105: 0.8824427481 | AV105: 42028.28723 | AW105: 0.7893129771 | AX105: 42028.27458 | AY105: 0.6824427481 | AZ105: 42028.2711 | BA105: 0.5893129771 | BB105: 42028.26645 | BC105: 0.6893129771 | BD105: 42028.22132 | BE105: 0.6618320611 | BF105: 42028.31736 | BH105: 42028.33472 | BI105: 42028.32431
A106: 0 | B106: 0 | C106: 2019-01-25T13:20:00 | D106: 2019-01-25 | F106: 1 | I106: 5 | K106: 42028.55556 | L106: 5.9 | M106: HW | N106: 1.226086957 | O106: 13:20:00 | P106: 12:00:00 | Q106: 18:00:00 | R106: 0.7777777778 | S106: 42028.5706 | T106: 7.96173913 | U106: 42028.63657 | V106: 42028.5733 | W106: 7.639130435 | X106: 42028.51389 | Y106: 42028.5436 | Z106: 5.871304348 | AA106: 42028.53318 | AB106: 42028.53472 | AC106: 5.471304348 | AD106: Opn | AE106: 42028.42014 | AF106: 42028.53164 | AG106: 4.848695652 | AH106: 42028.50656 | AI106: 5.126086957 | AJ106: 42028.57137 | AK106: 7.86173913 | AL106: 42028.57215 | AM106: 7.884347826 | AN106: 42028.5679 | AO106: 7.539130435 | AP106: 42028.57022 | AQ106: 6.939130435 | AR106: 42028.54514 | AS106: 42028.56597 | AT106: 42028.52739 | AU106: 5.471304348 | AV106: 42028.52739 | AW106: 5.271304348 | AX106: 42028.50579 | AY106: 5.093913043 | AZ106: 42028.50231 | BA106: 4.871304348 | BB106: 42028.49884 | BC106: 4.748695652 | BD106: 42028.45525 | BE106: 4.671304348 | BF106: 42028.54514 | BH106: 42028.59722 | BI106: 42028.58681
A107: 0 | B107: 0 | C107: 2019-01-25T19:37:00 | D107: 2019-01-25 | F107: 1 | I107: 5 | K107: 42028.81736 | L107: 0.61 | M107: LW | N107: 1.076335878 | O107: 19:37:00 | P107: 17:00:00 | Q107: 23:00:00 | R107: 0.5638888889 | S107: 42028.8495 | T107: 0.6702290076 | U107: 42028.91547 | V107: 42028.83188 | W107: 0.5778625954 | X107: 42028.77569 | Y107: 42028.82911 | Z107: 0.7083969466 | AA107: 42028.7952 | AB107: 42028.82172 | AC107: 0.5007633588 | AD107: Cls | AE107: 42028.64931 | AF107: 42028.80606 | AG107: 0.5083969466 | AH107: 42028.79956 | AI107: 0.6083969466 | AJ107: 42028.84754 | AK107: 0.7778625954 | AL107: 42028.84754 | AM107: 0.7778625954 | AN107: 42028.83864 | AO107: 0.7778625954 | AP107: 42028.84362 | AQ107: 0.6854961832 | AR107: 42028.80694 | AS107: 42028.83125 | AT107: 42028.80694 | AU107: 0.7083969466 | AV107: 42028.81086 | AW107: 0.6007633588 | AX107: 42028.79956 | AY107: 0.5083969466 | AZ107: 42028.79608 | BA107: 0.4007633588 | BB107: 42028.7911 | BC107: 0.5007633588 | BD107: 42028.74596 | BE107: 0.5312977099 | BF107: 42028.84167 | BH107: 42028.85903 | BI107: 42028.84861
A108: 0 | B108: 0 | C108: 2019-01-26T01:52:00 | D108: 2019-01-26 | E108: 2019-01-26 | F108: 1 | G108: Jan | H108: 26 | I108: 6 | J108: Sat | K108: 42029.07778 | L108: 5.41 | M108: HW | N108: 0.8 | O108: 01:52:00 | P108: 00:00:00 | Q108: 06:00:00 | R108: 0.6888888889 | S108: 42029.0919 | T108: 7.28 | U108: 42029.15787 | V108: 42029.09429 | W108: 7 | X108: 42029.03611 | Y108: 42029.0652 | Z108: 5.36 | AA108: 42029.05478 | AB108: 42029.05694 | AC108: 4.96 | AD108: Opn | AE108: 42028.94236 | AF108: 42029.0554 | AG108: 4.38 | AH108: 42029.03002 | AI108: 4.7 | AJ108: 42029.09298 | AK108: 7.18 | AL108: 42029.09406 | AM108: 7.16 | AN108: 42029.08951 | AO108: 6.9 | AP108: 42029.09275 | AQ108: 6.3 | AR108: 42029.06736 | AS108: 42029.08819 | AT108: 42029.05085 | AU108: 4.96 | AV108: 42029.05085 | AW108: 4.76 | AX108: 42029.02894 | AY108: 4.54 | AZ108: 42029.02546 | BA108: 4.36 | BB108: 42029.02199 | BC108: 4.28 | BD108: 42028.97623 | BE108: 4.16 | BF108: 42029.06736 | BH108: 42029.11944 | BI108: 42029.10903
A109: 0 | B109: 0 | C109: 2019-01-26T07:52:00 | D109: 2019-01-26 | E109: Sat | F109: 1 | I109: 6 | K109: 42029.32778 | L109: 1.04 | M109: LW | N109: 0.7480916031 | O109: 07:52:00 | P109: 05:00:00 | Q109: 11:00:00 | R109: 0.5222222222 | S109: 42029.35934 | T109: 1.228244275 | U109: 42029.42531 | V109: 42029.34302 | W109: 1.103053435 | X109: 42029.28611 | Y109: 42029.33866 | Z109: 1.102290076 | AA109: 42029.30648 | AB109: 42029.33156 | AC109: 0.927480916 | AD109: Cls | AE109: 42029.17153 | AF109: 42029.31705 | AG109: 0.9022900763 | AH109: 42029.31026 | AI109: 1.002290076 | AJ109: 42029.35752 | AK109: 1.303053435 | AL109: 42029.35752 | AM109: 1.303053435 | AN109: 42029.34877 | AO109: 1.303053435 | AP109: 42029.3539 | AQ109: 1.177862595 | AR109: 42029.31736 | AS109: 42029.34167 | AT109: 42029.31736 | AU109: 1.102290076 | AV109: 42029.32099 | AW109: 1.027480916 | AX109: 42029.31026 | AY109: 0.9022900763 | AZ109: 42029.30679 | BA109: 0.827480916 | BB109: 42029.30166 | BC109: 0.927480916 | BD109: 42029.25652 | BE109: 0.8267175573 | BF109: 42029.35208 | BH109: 42029.36944 | BI109: 42029.35903
A110: 0 | B110: 0 | C110: 2019-01-26T14:10:00 | D110: 2019-01-26 | F110: 1 | I110: 6 | K110: 42029.59028 | L110: 5.64 | M110: HW | N110: 1 | O110: 14:10:00 | P110: 12:00:00 | Q110: 18:00:00 | R110: 0.6388888889 | S110: =IF($M110="HW",$K110+S$6+(S$5-S$6)*$R110,$K110+S$8+(S$7-S$8)*$R110) -> 42029.60388 | T110: 7.6 | U110: 42029.66985 | V110: 42029.6061 | W110: 7.3 | X110: =IF($M110="HW",$K110+X$6+(X$5-X$6)*$R110,$K110+X$8+(X$7-X$8)*$R110) -> 42029.54861 | Y110: 42029.57735 | Z110: 5.6 | AA110: 42029.56694 | AB110: 42029.56944 | AC110: 5.2 | AD110: Opn | AE110: 42029.45486 | AF110: 42029.56877 | AG110: 4.6 | AH110: 42029.54321 | AI110: 4.9 | AJ110: 42029.60513 | AK110: 7.5 | AL110: 42029.60639 | AM110: 7.5 | AN110: 42029.60166 | AO110: 7.2 | AP110: 42029.60542 | AQ110: 6.6 | AR110: =IF($M110="HW",$K110+AR$6+(AR$5-AR$6)*$R110,$K110+AR$8+(AR$7-AR$8)*$R110) -> 42029.57986 | AS110: 42029.60069 | AT110: 42029.56404 | AU110: 5.2 | AV110: 42029.56404 | AW110: 5 | AX110: 42029.54196 | AY110: 4.8 | AZ110: 42029.53848 | BA110: 4.6 | BB110: 42029.53501 | BC110: 4.5 | BD110: 42029.48804 | BE110: 4.4 | BF110: =IF($M110="HW",$K110+BF$6+(BF$5-BF$6)*$R110,$K110+BF$8+(BF$7-BF$8)*$R110) -> 42029.57986 | BH110: 42029.63194 | BI110: 42029.62153
A111: 0 | B111: 0 | C111: 2019-01-26T20:30:00 | D111: 2019-01-26 | F111: 1 | I111: 6 | K111: 42029.85417 | L111: 0.91 | M111: LW | N111: 0.8473282443 | O111: 20:30:00 | P111: 17:00:00 | Q111: 23:00:00 | R111: 0.4166666667 | S111: 42029.88426 | T111: 1.059541985 | U111: 42029.95023 | V111: 42029.87124 | W111: 0.9442748092 | X111: 42029.8125 | Y111: 42029.86285 | Z111: 0.9832061069 | AA111: 42029.83507 | AB111: 42029.85648 | AC111: 0.7984732824 | AD111: Cls | AE111: 42029.68403 | AF111: 42029.84491 | AG111: 0.7832061069 | AH111: 42029.83738 | AI111: 0.8832061069 | AJ111: 42029.88281 | AK111: 1.144274809 | AL111: 42029.88281 | AM111: 1.144274809 | AN111: 42029.87442 | AO111: 1.144274809 | AP111: 42029.87992 | AQ111: 1.029007634 | AR111: 42029.84375 | AS111: 42029.86806 | AT111: 42029.84375 | AU111: 0.9832061069 | AV111: 42029.84664 | AW111: 0.8984732824 | AX111: 42029.83738 | AY111: 0.7832061069 | AZ111: 42029.83391 | BA111: 0.6984732824 | BB111: 42029.82841 | BC111: 0.7984732824 | BD111: 42029.78328 | BE111: 0.7374045802 | BF111: 42029.87847 | BH111: 42029.89583 | BI111: 42029.88542
A112: 0 | B112: 0 | C112: 2019-01-27T02:44:00 | D112: 2019-01-27 | E112: 2019-01-27 | F112: 1 | G112: Jan | H112: 27 | I112: 7 | J112: Sun | K112: 42030.11389 | L112: 5.13 | M112: HW | N112: 0.5565217391 | O112: 02:44:00 | P112: 00:00:00 | Q112: 06:00:00 | R112: 0.5444444444 | S112: 42030.1265 | T112: 6.890434783 | U112: 42030.19248 | V112: 42030.1284 | W112: 6.634782609 | X112: 42030.07222 | Y112: 42030.10031 | Z112: 5.067826087 | AA112: 42030.08989 | AB112: 42030.09306 | AC112: 4.667826087 | AD112: Opn | AE112: 42029.97847 | AF112: 42030.09402 | AG112: 4.112173913 | AH112: 42030.06813 | AI112: 4.456521739 | AJ112: 42030.12809 | AK112: 6.790434783 | AL112: 42030.12967 | AM112: 6.746086957 | AN112: 42030.12461 | AO112: 6.534782609 | AP112: 42030.12936 | AQ112: 5.934782609 | AR112: 42030.10347 | AS112: 42030.12431 | AT112: 42030.08897 | AU112: 4.667826087 | AV112: 42030.08897 | AW112: 4.467826087 | AX112: 42030.06655 | AY112: 4.223478261 | AZ112: 42030.06308 | BA112: 4.067826087 | BB112: 42030.05961 | BC112: 4.012173913 | BD112: 42030.01034 | BE112: 3.867826087 | BF112: 42030.10347 | BH112: 42030.15556 | BI112: 42030.14514
A113: 0 | B113: 0 | C113: 2019-01-27T08:45:00 | D113: 2019-01-27 | E113: Sun | F113: 1 | I113: 7 | K113: 42030.36458 | L113: 1.35 | M113: LW | N113: 0.5114503817 | O113: 08:45:00 | P113: 05:00:00 | Q113: 11:00:00 | R113: 0.375 | S113: 42030.3941 | T113: 1.630534351 | U113: 42030.46007 | V113: 42030.38238 | W113: 1.481679389 | X113: 42030.32292 | Y113: 42030.3724 | Z113: 1.386259542 | AA113: 42030.34635 | AB113: 42030.36632 | AC113: 1.235114504 | AD113: Cls | AE113: 42030.20764 | AF113: 42030.3559 | AG113: 1.186259542 | AH113: 42030.34809 | AI113: 1.286259542 | AJ113: 42030.3928 | AK113: 1.681679389 | AL113: 42030.3928 | AM113: 1.681679389 | AN113: 42030.38455 | AO113: 1.681679389 | AP113: 42030.39019 | AQ113: 1.532824427 | AR113: 42030.35417 | AS113: 42030.37847 | AT113: 42030.35417 | AU113: 1.386259542 | AV113: 42030.35677 | AW113: 1.335114504 | AX113: 42030.34809 | AY113: 1.186259542 | AZ113: 42030.34462 | BA113: 1.135114504 | BB113: 42030.33898 | BC113: 1.235114504 | BD113: 42030.29384 | BE113: 1.039694656 | BF113: 42030.38889 | BH113: 42030.40625 | BI113: 42030.39583
A114: 0 | B114: 0 | C114: 2019-01-27T15:04:00 | D114: 2019-01-27 | F114: 1 | I114: 7 | K114: 42030.62778 | L114: 5.33 | M114: HW | N114: 0.7304347826 | O114: 15:04:00 | P114: 12:00:00 | Q114: 18:00:00 | R114: 0.4888888889 | S114: 42030.63981 | T114: 7.168695652 | U114: 42030.70579 | V114: 42030.64151 | W114: 6.895652174 | X114: 42030.58611 | Y114: 42030.61381 | Z114: 5.276521739 | AA114: 42030.6034 | AB114: 42030.60694 | AC114: 4.876521739 | AD114: Opn | AE114: 42030.49236 | AF114: 42030.60887 | AG114: 4.303478261 | AH114: 42030.58279 | AI114: 4.630434783 | AJ114: 42030.64159 | AK114: 7.068695652 | AL114: 42030.64336 | AM114: 7.04173913 | AN114: 42030.63812 | AO114: 6.795652174 | AP114: 42030.64344 | AQ114: 6.195652174 | AR114: 42030.61736 | AS114: 42030.63819 | AT114: 42030.60363 | AU114: 4.876521739 | AV114: 42030.60363 | AW114: 4.676521739 | AX114: 42030.58102 | AY114: 4.449565217 | AZ114: 42030.57755 | BA114: 4.276521739 | BB114: 42030.57407 | BC114: 4.203478261 | BD114: 42030.52346 | BE114: 4.076521739 | BF114: 42030.61736 | BH114: 42030.66944 | BI114: 42030.65903
A115: 0 | B115: 0 | C115: 2019-01-27T21:27:00 | D115: 2019-01-27 | F115: 1 | I115: 7 | K115: 42030.89375 | L115: 1.25 | M115: LW | N115: 0.5877862595 | O115: 21:27:00 | P115: 17:00:00 | Q115: 23:00:00 | R115: 0.2583333333 | S115: 42030.92164 | T115: 1.500763359 | U115: 42030.98762 | V115: 42030.91357 | W115: 1.359541985 | X115: 42030.85208 | Y115: 42030.89913 | Z115: 1.294656489 | AA115: 42030.87795 | AB115: 42030.89387 | AC115: 1.135877863 | AD115: Cls | AE115: 42030.72153 | AF115: 42030.88669 | AG115: 1.094656489 | AH115: 42030.87807 | AI115: 1.194656489 | AJ115: 42030.92075 | AK115: 1.559541985 | AL115: 42030.92075 | AM115: 1.559541985 | AN115: 42030.91291 | AO115: 1.559541985 | AP115: 42030.91895 | AQ115: 1.418320611 | AR115: 42030.88333 | AS115: 42030.90764 | AT115: 42030.88333 | AU115: 1.294656489 | AV115: 42030.88513 | AW115: 1.235877863 | AX115: 42030.87807 | AY115: 1.094656489 | AZ115: 42030.87459 | BA115: 1.035877863 | BB115: 42030.86855 | BC115: 1.135877863 | BD115: 42030.82341 | BE115: 0.9709923664 | BF115: 42030.91806 | BH115: 42030.93542 | BI115: 42030.925
A116: 0 | B116: 0 | C116: 2019-01-28T03:42:00 | D116: 2019-01-28 | E116: 2019-01-28 | F116: 1 | G116: Jan | H116: 28 | I116: 1 | J116: Mon | K116: 42031.15417 | L116: 4.86 | M116: HW | N116: 0.3217391304 | O116: 03:42:00 | P116: 00:00:00 | Q116: 06:00:00 | R116: 0.3833333333 | S116: 42031.1651 | T116: 6.514782609 | U116: 42031.23108 | V116: 42031.16644 | W116: 6.282608696 | X116: 42031.1125 | Y116: 42031.13947 | Z116: 4.786086957 | AA116: 42031.12905 | AB116: 42031.13333 | AC116: 4.386086957 | AD116: Opn | AE116: 42031.01875 | AF116: 42031.13709 | AG116: 3.853913043 | AH116: 42031.11065 | AI116: 4.22173913 | AJ116: 42031.16725 | AK116: 6.414782609 | AL116: 42031.16939 | AM116: 6.346956522 | AN116: 42031.16377 | AO116: 6.182608696 | AP116: 42031.1702 | AQ116: 5.582608696 | AR116: 42031.14375 | AS116: 42031.16458 | AT116: 42031.13148 | AU116: 4.386086957 | AV116: 42031.13148 | AW116: 4.186086957 | AX116: 42031.10851 | AY116: 3.91826087 | AZ116: 42031.10503 | BA116: 3.786086957 | BB116: 42031.10156 | BC116: 3.753913043 | BD116: 42031.04838 | BE116: 3.586086957 | BF116: 42031.14375 | BH116: 42031.19583 | BI116: 42031.18542
A117: 0 | B117: 0 | C117: 2019-01-28T09:45:00 | D117: 2019-01-28 | E117: Mon | F117: 1 | I117: 1 | K117: 42031.40625 | L117: 1.66 | M117: LW | N117: 0.2748091603 | O117: 09:45:00 | P117: 05:00:00 | Q117: 11:00:00 | R117: 0.2083333333 | S117: 42031.43345 | T117: 2.032824427 | U117: 42031.49942 | V117: 42031.42694 | W117: 1.860305344 | X117: 42031.36458 | Y117: 42031.41059 | Z117: 1.670229008 | AA117: 42031.39149 | AB117: 42031.40567 | AC117: 1.542748092 | AD117: Cls | AE117: 42031.24792 | AF117: 42031.39988 | AG117: 1.470229008 | AH117: 42031.39091 | AI117: 1.570229008 | AJ117: 42031.43273 | AK117: 2.060305344 | AL117: 42031.43273 | AM117: 2.060305344 | AN117: 42031.42506 | AO117: 2.060305344 | AP117: 42031.43128 | AQ117: 1.88778626 | AR117: 42031.39583 | AS117: 42031.42014 | AT117: 42031.39583 | AU117: 1.670229008 | AV117: 42031.39728 | AW117: 1.642748092 | AX117: 42031.39091 | AY117: 1.470229008 | AZ117: 42031.38744 | BA117: 1.442748092 | BB117: 42031.38122 | BC117: 1.542748092 | BD117: 42031.33608 | BE117: 1.252671756 | BF117: 42031.43056 | BH117: 42031.44792 | BI117: 42031.4375
A118: 0 | B118: 0 | C118: 2019-01-28T16:07:00 | D118: 2019-01-28 | F118: 1 | I118: 1 | K118: 42031.67153 | L118: 5.01 | M118: HW | N118: 0.452173913 | O118: 16:07:00 | P118: 12:00:00 | Q118: 18:00:00 | R118: 0.3138888889 | S118: 42031.68174 | T118: 6.723478261 | U118: 42031.74771 | V118: 42031.68283 | W118: 6.47826087 | X118: 42031.62986 | Y118: 42031.65635 | Z118: 4.942608696 | AA118: 42031.64593 | AB118: 42031.65069 | AC118: 4.542608696 | AD118: Opn | AE118: 42031.53611 | AF118: 42031.65566 | AG118: 3.997391304 | AH118: 42031.62897 | AI118: 4.352173913 | AJ118: 42031.68412 | AK118: 6.623478261 | AL118: 42031.68651 | AM118: 6.568695652 | AN118: 42031.68065 | AO118: 6.37826087 | AP118: 42031.6878 | AQ118: 5.77826087 | AR118: 42031.66111 | AS118: 42031.68194 | AT118: 42031.64981 | AU118: 4.542608696 | AV118: 42031.64981 | AW118: 4.342608696 | AX118: 42031.62659 | AY118: 4.087826087 | AZ118: 42031.62312 | BA118: 3.942608696 | BB118: 42031.61965 | BC118: 3.897391304 | BD118: 42031.56478 | BE118: 3.742608696 | BF118: 42031.66111 | BH118: 42031.71319 | BI118: 42031.70278
A119: 0 | B119: 0 | C119: 2019-01-28T22:32:00 | D119: 2019-01-28 | F119: 1 | I119: 1 | K119: 42031.93889 | L119: 1.57 | M119: LW | N119: 0.3435114504 | O119: 22:32:00 | P119: 17:00:00 | Q119: 23:00:00 | R119: 0.07777777779 | S119: 42031.96427 | T119: 1.916030534 | U119: 42032.03025 | V119: 42031.96184 | W119: 1.750381679 | X119: 42031.89722 | Y119: 42031.94051 | Z119: 1.58778626 | AA119: 42031.92685 | AB119: 42031.9365 | AC119: 1.453435115 | AD119: Cls | AE119: 42031.76528 | AF119: 42031.93434 | AG119: 1.38778626 | AH119: 42031.92446 | AI119: 1.48778626 | AJ119: 42031.964 | AK119: 1.950381679 | AL119: 42031.964 | AM119: 1.950381679 | AN119: 42031.95679 | AO119: 1.950381679 | AP119: 42031.96346 | AQ119: 1.784732824 | AR119: 42031.92847 | AS119: 42031.95278 | AT119: 42031.92847 | AU119: 1.58778626 | AV119: 42031.92901 | AW119: 1.553435115 | AX119: 42031.92446 | AY119: 1.38778626 | AZ119: 42031.92099 | BA119: 1.353435115 | BB119: 42031.91431 | BC119: 1.453435115 | BD119: 42031.86917 | BE119: 1.190839695 | BF119: 42031.96319 | BH119: 42031.98056 | BI119: 42031.97014
A120: 0 | B120: 0 | C120: 2019-01-29T04:50:00 | D120: 2019-01-29 | E120: 2019-01-29 | F120: 1 | G120: Jan | H120: 29 | I120: 2 | J120: Tue | K120: 42032.20139 | L120: 4.65 | M120: HW | N120: 0.1391304348 | O120: 04:50:00 | P120: 00:00:00 | Q120: 06:00:00 | R120: 0.1944444444 | S120: 42032.21036 | T120: 6.222608696 | U120: 42032.27633 | V120: 42032.21103 | W120: 6.008695652 | X120: 42032.15972 | Y120: 42032.18538 | Z120: 4.566956522 | AA120: 42032.17496 | AB120: 42032.18056 | AC120: 4.166956522 | AD120: Opn | AE120: 42032.06597 | AF120: 42032.1876 | AG120: 3.653043478 | AH120: 42032.16049 | AI120: 4.039130435 | AJ120: 42032.21316 | AK120: 6.122608696 | AL120: 42032.21595 | AM120: 6.036521739 | AN120: 42032.20968 | AO120: 5.908695652 | AP120: 42032.21807 | AQ120: 5.308695652 | AR120: 42032.19097 | AS120: 42032.21181 | AT120: 42032.18133 | AU120: 4.166956522 | AV120: 42032.18133 | AW120: 3.966956522 | AX120: 42032.1577 | AY120: 3.680869565 | AZ120: 42032.15422 | BA120: 3.566956522 | BB120: 42032.15075 | BC120: 3.553043478 | BD120: 42032.09298 | BE120: 3.366956522 | BF120: 42032.19097 | BH120: 42032.24306 | BI120: 42032.23264
A121: 0 | B121: 0 | C121: 2019-01-29T10:55:00 | D121: 2019-01-29 | E121: Tue | F121: 1 | I121: 2 | K121: 42032.45486 | L121: 1.9 | M121: LW | N121: 0.09160305344 | O121: 10:55:00 | P121: 05:00:00 | Q121: 11:00:00 | R121: 0.0138888889 | S121: 42032.47936 | T121: 2.344274809 | U121: 42032.54533 | V121: 42032.47893 | W121: 2.153435115 | X121: 42032.41319 | Y121: 42032.45515 | Z121: 1.890076336 | AA121: 42032.44416 | AB121: 42032.45158 | AC121: 1.780916031 | AD121: Cls | AE121: 42032.29514 | AF121: 42032.4512 | AG121: 1.690076336 | AH121: 42032.44088 | AI121: 1.790076336 | AJ121: 42032.47931 | AK121: 2.353435115 | AL121: 42032.47931 | AM121: 2.353435115 | AN121: 42032.47232 | AO121: 2.353435115 | AP121: 42032.47921 | AQ121: 2.16259542 | AR121: 42032.44444 | AS121: 42032.46875 | AT121: 42032.44444 | AU121: 1.890076336 | AV121: 42032.44454 | AW121: 1.880916031 | AX121: 42032.44088 | AY121: 1.690076336 | AZ121: 42032.4374 | BA121: 1.680916031 | BB121: 42032.43051 | BC121: 1.780916031 | BD121: 42032.38537 | BE121: 1.417557252 | BF121: 42032.47917 | BH121: 42032.49653 | BI121: 42032.48611
A122: 0 | B122: 0 | C122: 2019-01-29T17:21:00 | D122: 2019-01-29 | F122: 1 | I122: 2 | K122: 42032.72292 | L122: 4.77 | M122: HW | N122: 0.2434782609 | O122: 17:21:00 | P122: 12:00:00 | Q122: 18:00:00 | R122: 0.1083333333 | S122: 42032.73099 | T122: 6.389565217 | U122: 42032.79696 | V122: 42032.73137 | W122: 6.165217391 | X122: 42032.68125 | Y122: 42032.70631 | Z122: 4.692173913 | AA122: 42032.69589 | AB122: 42032.70208 | AC122: 4.292173913 | AD122: Opn | AE122: 42032.5875 | AF122: 42032.71062 | AG122: 3.767826087 | AH122: 42032.68322 | AI122: 4.143478261 | AJ122: 42032.73409 | AK122: 6.289565217 | AL122: 42032.73718 | AM122: 6.213913043 | AN122: 42032.73061 | AO122: 6.065217391 | AP122: 42032.7399 | AQ122: 5.465217391 | AR122: 42032.7125 | AS122: 42032.73333 | AT122: 42032.70405 | AU122: 4.292173913 | AV122: 42032.70405 | AW122: 4.092173913 | AX122: 42032.68012 | AY122: 3.816521739 | AZ122: 42032.67665 | BA122: 3.692173913 | BB122: 42032.67318 | BC122: 3.667826087 | BD122: 42032.61331 | BE122: 3.492173913 | BF122: 42032.7125 | BH122: 42032.76458 | BI122: 42032.75417
A123: 0 | B123: 0 | C123: 2019-01-29T23:45:00 | D123: 2019-01-29 | F123: 1 | I123: 2 | K123: 42032.98958 | L123: 1.78 | M123: LW | N123: 0.1832061069 | O123: 23:45:00 | P123: 1.208333333 | Q123: 23:00:00 | R123: 0.125 | S123: 42033.01562 | T123: 2.188549618 | U123: 42033.0816 | V123: 42033.01172 | W123: 2.006870229 | X123: 42032.94792 | Y123: 42032.99219 | Z123: 1.780152672 | AA123: 42032.97656 | AB123: 42032.98785 | AC123: 1.661832061 | AD123: Cls | AE123: 42032.81667 | AF123: 42032.98438 | AG123: 1.580152672 | AH123: 42032.97483 | AI123: 1.680152672 | AJ123: 42033.01519 | AK123: 2.206870229 | AL123: 42033.01519 | AM123: 2.206870229 | AN123: 42033.00781 | AO123: 2.206870229 | AP123: 42033.01432 | AQ123: 2.02519084 | AR123: 42032.97917 | AS123: 42033.00347 | AT123: 42032.97917 | AU123: 1.780152672 | AV123: 42032.98003 | AW123: 1.761832061 | AX123: 42032.97483 | AY123: 1.580152672 | AZ123: 42032.97135 | BA123: 1.561832061 | BB123: 42032.96484 | BC123: 1.661832061 | BD123: 42032.9197 | BE123: 1.335114504 | BF123: 42033.01389 | BH123: 42033.03125 | BI123: 42033.02083
A124: 0 | B124: 0 | C124: 2019-01-30T06:06:00 | D124: 2019-01-30 | E124: 2019-01-30 | F124: 1 | G124: Jan | H124: 30 | I124: 3 | J124: Wed | K124: 42033.25417 | L124: 4.59 | M124: HW | N124: 0.08695652174 | O124: 06:06:00 | P124: 12:00:00 | Q124: 06:00:00 | R124: 0.01666666666 | S124: 42033.26128 | T124: 6.139130435 | U124: 42033.32726 | V124: 42033.26134 | W124: 5.930434783 | X124: 42033.2125 | Y124: 42033.23692 | Z124: 4.504347826 | AA124: 42033.2265 | AB124: 42033.23333 | AC124: 4.104347826 | AD124: Opn | AE124: 42033.11875 | AF124: 42033.24346 | AG124: 3.595652174 | AH124: 42033.21574 | AI124: 3.986956522 | AJ124: 42033.2647 | AK124: 6.039130435 | AL124: 42033.26811 | AM124: 5.947826087 | AN124: 42033.26123 | AO124: 5.830434783 | AP124: 42033.27147 | AQ124: 5.230434783 | AR124: 42033.24375 | AS124: 42033.26458 | AT124: 42033.23657 | AU124: 4.104347826 | AV124: 42033.23657 | AW124: 3.904347826 | AX124: 42033.21233 | AY124: 3.613043478 | AZ124: 42033.20885 | BA124: 3.504347826 | BB124: 42033.20538 | BC124: 3.495652174 | BD124: 42033.14329 | BE124: 3.304347826 | BF124: 42033.24375 | BH124: 42033.29583 | BI124: 42033.28542
A125: 0 | B125: 0 | C125: 2019-01-30T12:13:00 | D125: 2019-01-30 | E125: Wed | F125: 1 | I125: 3 | K125: 42033.50903 | L125: 1.98 | M125: LW | N125: 0.03053435115 | O125: 12:13:00 | P125: 17:00:00 | Q125: 11:00:00 | R125: 0.2027777778 | S125: 42033.53615 | T125: 2.448091603 | U125: 42033.60212 | V125: 42033.52981 | W125: 2.251145038 | X125: 42033.46736 | Y125: 42033.51325 | Z125: 1.963358779 | AA125: 42033.49439 | AB125: 42033.50837 | AC125: 1.860305344 | AD125: Cls | AE125: 42033.34792 | AF125: 42033.50274 | AG125: 1.763358779 | AH125: 42033.49373 | AI125: 1.863358779 | AJ125: 42033.53545 | AK125: 2.451145038 | AL125: 42033.53545 | AM125: 2.451145038 | AN125: 42033.5278 | AO125: 2.451145038 | AP125: 42033.53404 | AQ125: 2.254198473 | AR125: 42033.49861 | AS125: 42033.52292 | AT125: 42033.49861 | AU125: 1.963358779 | AV125: 42033.50002 | AW125: 1.960305344 | AX125: 42033.49373 | AY125: 1.763358779 | AZ125: 42033.49026 | BA125: 1.760305344 | BB125: 42033.48402 | BC125: 1.860305344 | BD125: 42033.43888 | BE125: 1.472519084 | BF125: 42033.53333 | BH125: 42033.55069 | BI125: 42033.54028
A126: 0 | B126: 0 | C126: 2019-01-30T18:41:00 | D126: 2019-01-30 | F126: 1 | I126: 3 | K126: 42033.77847 | L126: 4.7 | M126: HW | N126: 0.1826086957 | O126: 18:41:00 | P126: 1 | Q126: 18:00:00 | R126: 0.1138888889 | S126: 42033.7866 | T126: 6.292173913 | U126: 42033.85258 | V126: 42033.787 | W126: 6.073913043 | X126: 42033.73681 | Y126: 42033.7619 | Z126: 4.619130435 | AA126: 42033.75149 | AB126: 42033.75764 | AC126: 4.219130435 | AD126: Opn | AE126: 42033.64306 | AF126: 42033.76608 | AG126: 3.700869565 | AH126: 42033.7387 | AI126: 4.082608696 | AJ126: 42033.78968 | AK126: 6.192173913 | AL126: 42033.79276 | AM126: 6.110434783 | AN126: 42033.78621 | AO126: 5.973913043 | AP126: 42033.79544 | AQ126: 5.373913043 | AR126: 42033.76806 | AS126: 42033.78889 | AT126: 42033.75953 | AU126: 4.219130435 | AV126: 42033.75953 | AW126: 4.019130435 | AX126: 42033.73562 | AY126: 3.737391304 | AZ126: 42033.73215 | BA126: 3.619130435 | BB126: 42033.72867 | BC126: 3.600869565 | BD126: 42033.66894 | BE126: 3.419130435 | BF126: 42033.76806 | BH126: 42033.82014 | BI126: 42033.80972
A127: 0 | B127: 0 | C127: 2019-01-31T00:55:00 | D127: 2019-01-31 | E127: 2019-01-31 | F127: 1 | G127: Jan | H127: 31 | I127: 4 | J127: Thu | K127: 42034.03819 | L127: 1.82 | M127: LW | N127: 0.1526717557 | O127: 00:55:00 | P127: 05:00:00 | Q127: -0.04166666667 | R127: 0.3194444444 | S127: =IF($M127="HW",$K127+S$6+(S$5-S$6)*$R127,$K127+S$8+(S$7-S$8)*$R127) -> 42034.06694 | T127: 2.240458015 | U127: 42034.13291 | V127: 42034.05695 | W127: 2.055725191 | X127: =IF($M127="HW",$K127+X$6+(X$5-X$6)*$R127,$K127+X$8+(X$7-X$8)*$R127) -> 42033.99653 | Y127: 42034.04485 | Z127: 1.816793893 | AA127: 42034.02112 | AB127: 42034.03916 | AC127: 1.701526718 | AD127: Cls | AE127: 42033.87222 | AF127: 42034.03029 | AG127: 1.616793893 | AH127: 42034.02209 | AI127: 1.716793893 | AJ127: 42034.06583 | AK127: 2.255725191 | AL127: 42034.06583 | AM127: 2.255725191 | AN127: 42034.05777 | AO127: 2.255725191 | AP127: 42034.06361 | AQ127: 2.070992366 | AR127: =IF($M127="HW",$K127+AR$6+(AR$5-AR$6)*$R127,$K127+AR$8+(AR$7-AR$8)*$R127) -> 42034.02778 | AS127: 42034.05208 | AT127: 42034.02778 | AU127: 1.816793893 | AV127: 42034.03 | AW127: 1.801526718 | AX127: 42034.02209 | AY127: 1.616793893 | AZ127: 42034.01861 | BA127: 1.601526718 | BB127: 42034.01278 | BC127: 1.701526718 | BD127: 42033.96764 | BE127: 1.36259542 | BF127: =IF($M127="HW",$K127+BF$6+(BF$5-BF$6)*$R127,$K127+BF$8+(BF$7-BF$8)*$R127) -> 42034.0625 | BH127: 42034.07986 | BI127: 42034.06944
A128: 0 | B128: 0 | C128: 2019-01-31T07:18:00 | D128: 2019-01-31 | E128: Thu | F128: 1 | I128: 4 | K128: 42034.30417 | L128: 4.69 | M128: HW | N128: 0.1739130435 | O128: 07:18:00 | P128: 12:00:00 | Q128: 06:00:00 | R128: 0.2166666667 | S128: 42034.31337 | T128: 6.27826087 | U128: 42034.37934 | V128: 42034.31412 | W128: 6.060869565 | X128: 42034.2625 | Y128: 42034.28831 | Z128: 4.608695652 | AA128: 42034.27789 | AB128: 42034.28333 | AC128: 4.208695652 | AD128: Opn | AE128: 42034.16875 | AF128: 42034.28999 | AG128: 3.691304348 | AH128: 42034.26296 | AI128: 4.073913043 | AJ128: 42034.31609 | AK128: 6.17826087 | AL128: 42034.31881 | AM128: 6.095652174 | AN128: 42034.31262 | AO128: 5.960869565 | AP128: 42034.32078 | AQ128: 5.360869565 | AR128: 42034.29375 | AS128: 42034.31458 | AT128: 42034.2838 | AU128: 4.208695652 | AV128: 42034.2838 | AW128: 4.008695652 | AX128: 42034.26024 | AY128: 3.726086957 | AZ128: 42034.25677 | BA128: 3.608695652 | BB128: 42034.2533 | BC128: 3.591304348 | BD128: 42034.19606 | BE128: 3.408695652 | BF128: 42034.29375 | BH128: 42034.34583 | BI128: 42034.33542
A129: 0 | B129: 0 | C129: 2019-01-31T13:24:00 | D129: 2019-01-31 | F129: 1 | I129: 4 | K129: 42034.55833 | L129: 1.9 | M129: LW | N129: 0.09160305344 | O129: 13:24:00 | P129: 17:00:00 | Q129: 11:00:00 | R129: 0.4 | S129: 42034.58819 | T129: 2.344274809 | U129: 42034.65417 | V129: 42034.57569 | W129: 2.153435115 | X129: 42034.51667 | Y129: 42034.56667 | Z129: 1.890076336 | AA129: 42034.53958 | AB129: 42034.56042 | AC129: 1.780916031 | AD129: Cls | AE129: 42034.39792 | AF129: 42034.54931 | AG129: 1.690076336 | AH129: 42034.54167 | AI129: 1.790076336 | AJ129: 42034.58681 | AK129: 2.353435115 | AL129: 42034.58681 | AM129: 2.353435115 | AN129: 42034.57847 | AO129: 2.353435115 | AP129: 42034.58403 | AQ129: 2.16259542 | AR129: 42034.54792 | AS129: 42034.57222 | AT129: 42034.54792 | AU129: 1.890076336 | AV129: 42034.55069 | AW129: 1.880916031 | AX129: 42034.54167 | AY129: 1.690076336 | AZ129: 42034.53819 | BA129: 1.680916031 | BB129: 42034.53264 | BC129: 1.780916031 | BD129: 42034.4875 | BE129: 1.417557252 | BF129: 42034.58264 | BH129: 42034.6 | BI129: 42034.58958
A130: 0 | B130: 0 | C130: 2019-01-31T19:50:00 | D130: 2019-01-31 | F130: 1 | I130: 4 | K130: 42034.82639 | L130: 4.76 | M130: HW | N130: 0.2347826087 | O130: 19:50:00 | P130: 1 | Q130: 18:00:00 | R130: 0.3055555556 | S130: 42034.83652 | T130: 6.375652174 | U130: 42034.90249 | V130: 42034.83758 | W130: 6.152173913 | X130: 42034.78472 | Y130: 42034.81115 | Z130: 4.68173913 | AA130: 42034.80073 | AB130: 42034.80556 | AC130: 4.28173913 | AD130: Opn | AE130: 42034.69097 | AF130: 42034.81067 | AG130: 3.75826087 | AH130: 42034.78395 | AI130: 4.134782609 | AJ130: 42034.83893 | AK130: 6.275652174 | AL130: 42034.84134 | AM130: 6.199130435 | AN130: 42034.83546 | AO130: 6.052173913 | AP130: 42034.84269 | AQ130: 5.452173913 | AR130: 42034.81597 | AS130: 42034.83681 | AT130: 42034.80478 | AU130: 4.28173913 | AV130: 42034.80478 | AW130: 4.08173913 | AX130: 42034.78154 | AY130: 3.805217391 | AZ130: 42034.77807 | BA130: 3.68173913 | BB130: 42034.77459 | BC130: 3.65826087 | BD130: 42034.71952 | BE130: 3.48173913 | BF130: 42034.81597 | BH130: 42034.86806 | BI130: 42034.85764
A131: 0 | B131: 0 | C131: 2019-02-01T01:55:00 | D131: 2019-02-01 | E131: 2019-02-01 | F131: 2 | G131: Feb | H131: 1 | I131: 5 | J131: Fri | K131: 42035.07986 | L131: 1.75 | M131: LW | N131: 0.2061068702 | O131: 01:55:00 | P131: 05:00:00 | Q131: -0.04166666667 | R131: 0.4861111111 | S131: 42035.11092 | T131: 2.149618321 | U131: 42035.17689 | V131: 42035.09573 | W131: 1.970229008 | X131: 42035.03819 | Y131: 42035.08999 | Z131: 1.752671756 | AA131: 42035.05932 | AB131: 42035.08314 | AC131: 1.632061069 | AD131: Cls | AE131: 42034.92014 | AF131: 42035.06964 | AG131: 1.552671756 | AH131: 42035.0626 | AI131: 1.652671756 | AJ131: 42035.10923 | AK131: 2.170229008 | AL131: 42035.10923 | AM131: 2.170229008 | AN131: 42035.1006 | AO131: 2.170229008 | AP131: 42035.10585 | AQ131: 1.990839695 | AR131: 42035.06944 | AS131: 42035.09375 | AT131: 42035.06944 | AU131: 1.752671756 | AV131: 42035.07282 | AW131: 1.732061069 | AX131: 42035.0626 | AY131: 1.552671756 | AZ131: 42035.05912 | BA131: 1.532061069 | BB131: 42035.05387 | BC131: 1.632061069 | BD131: 42035.00873 | BE131: 1.314503817 | BF131: 42035.10417 | BH131: 42035.12153 | BI131: 42035.11111
A132: 0 | B132: 0 | C132: 2019-02-01T08:15:00 | D132: 2019-02-01 | E132: Fri | F132: 2 | I132: 5 | K132: 42035.34375 | L132: 4.88 | M132: HW | N132: 0.3391304348 | O132: 08:15:00 | P132: 12:00:00 | Q132: 06:00:00 | R132: 0.375 | S132: 42035.3546 | T132: 6.542608696 | U132: 42035.42057 | V132: 42035.3559 | W132: 6.308695652 | X132: 42035.30208 | Y132: 42035.32899 | Z132: 4.806956522 | AA132: 42035.31858 | AB132: 42035.32292 | AC132: 4.406956522 | AD132: Opn | AE132: 42035.20833 | AF132: 42035.32682 | AG132: 3.873043478 | AH132: 42035.30035 | AI132: 4.239130435 | AJ132: 42035.35677 | AK132: 6.442608696 | AL132: 42035.35894 | AM132: 6.376521739 | AN132: 42035.3533 | AO132: 6.208695652 | AP132: 42035.35981 | AQ132: 5.608695652 | AR132: 42035.33333 | AS132: 42035.35417 | AT132: 42035.32118 | AU132: 4.406956522 | AV132: 42035.32118 | AW132: 4.206956522 | AX132: 42035.29818 | AY132: 3.940869565 | AZ132: 42035.2947 | BA132: 3.806956522 | BB132: 42035.29123 | BC132: 3.773043478 | BD132: 42035.23785 | BE132: 3.606956522 | BF132: 42035.33333 | BH132: 42035.38542 | BI132: 42035.375
A133: 0 | B133: 0 | C133: 2019-02-01T14:22:00 | D133: 2019-02-01 | F133: 2 | I133: 5 | K133: 42035.59861 | L133: 1.72 | M133: LW | N133: 0.2290076336 | O133: 14:22:00 | P133: 17:00:00 | Q133: 11:00:00 | R133: 0.5611111111 | S133: 42035.63071 | T133: 2.110687023 | U133: 42035.69668 | V133: 42035.61318 | W133: 1.933587786 | X133: 42035.55694 | Y133: 42035.6103 | Z133: 1.72519084 | AA133: 42035.5765 | AB133: 42035.60293 | AC133: 1.602290076 | AD133: Cls | AE133: 42035.4375 | AF133: 42035.58735 | AG133: 1.52519084 | AH133: 42035.58083 | AI133: 1.62519084 | AJ133: 42035.62876 | AK133: 2.133587786 | AL133: 42035.62876 | AM133: 2.133587786 | AN133: 42035.61987 | AO133: 2.133587786 | AP133: 42035.62486 | AQ133: 1.95648855 | AR133: 42035.58819 | AS133: 42035.6125 | AT133: 42035.58819 | AU133: 1.72519084 | AV133: 42035.59209 | AW133: 1.702290076 | AX133: 42035.58083 | AY133: 1.52519084 | AZ133: 42035.57735 | BA133: 1.502290076 | BB133: 42035.57236 | BC133: 1.602290076 | BD133: 42035.52722 | BE133: 1.29389313 | BF133: 42035.62292 | BH133: 42035.64028 | BI133: 42035.62986
A134: 0 | B134: 0 | C134: 2019-02-01T20:43:00 | D134: 2019-02-01 | F134: 2 | I134: 5 | K134: 42035.86319 | L134: 4.89 | M134: HW | N134: 0.347826087 | O134: 20:43:00 | P134: 1 | Q134: 18:00:00 | R134: 0.4527777778 | S134: 42035.87486 | T134: 6.556521739 | U134: 42035.94083 | V134: 42035.87643 | W134: 6.32173913 | X134: 42035.82153 | Y134: 42035.84898 | Z134: 4.817391304 | AA134: 42035.83856 | AB134: 42035.84236 | AC134: 4.417391304 | AD134: Opn | AE134: 42035.72778 | AF134: 42035.84492 | AG134: 3.882608696 | AH134: 42035.81871 | AI134: 4.247826087 | AJ134: 42035.87676 | AK134: 6.456521739 | AL134: 42035.87866 | AM134: 6.391304348 | AN134: 42035.87328 | AO134: 6.22173913 | AP134: 42035.87898 | AQ134: 5.62173913 | AR134: 42035.85278 | AS134: 42035.87361 | AT134: 42035.83954 | AU134: 4.417391304 | AV134: 42035.83954 | AW134: 4.217391304 | AX134: 42035.81681 | AY134: 3.952173913 | AZ134: 42035.81334 | BA134: 3.817391304 | BB134: 42035.80987 | BC134: 3.782608696 | BD134: 42035.75837 | BE134: 3.617391304 | BF134: 42035.85278 | BH134: 42035.90486 | BI134: 42035.89444
A135: 0 | B135: 0 | C135: 2019-02-02T02:44:00 | D135: 2019-02-02 | E135: 2019-02-02 | F135: 2 | G135: Feb | H135: 2 | I135: 6 | J135: Sat | K135: 42036.11389 | L135: 1.62 | M135: LW | N135: 0.3053435115 | O135: 02:44:00 | P135: 05:00:00 | Q135: -0.04166666667 | R135: 0.6222222222 | S135: 42036.14684 | T135: 1.980916031 | U135: 42036.21281 | V135: 42036.12739 | W135: 1.811450382 | X135: 42036.07222 | Y135: 42036.12685 | Z135: 1.633587786 | AA135: 42036.09051 | AB135: 42036.11906 | AC135: 1.503053435 | AD135: Cls | AE135: 42035.95694 | AF135: 42036.10177 | AG135: 1.433587786 | AH135: 42036.09568 | AI135: 1.533587786 | AJ135: 42036.14468 | AK135: 2.011450382 | AL135: 42036.14468 | AM135: 2.011450382 | AN135: 42036.13557 | AO135: 2.011450382 | AP135: 42036.14035 | AQ135: 1.841984733 | AR135: 42036.10347 | AS135: 42036.12778 | AT135: 42036.10347 | AU135: 1.633587786 | AV135: 42036.10779 | AW135: 1.603053435 | AX135: 42036.09568 | AY135: 1.433587786 | AZ135: 42036.09221 | BA135: 1.403053435 | BB135: 42036.08742 | BC135: 1.503053435 | BD135: 42036.04228 | BE135: 1.22519084 | BF135: 42036.13819 | BH135: 42036.15556 | BI135: 42036.14514
A136: 0 | B136: 0 | C136: 2019-02-02T09:01:00 | D136: 2019-02-02 | E136: Sat | F136: 2 | I136: 6 | K136: 42036.37569 | L136: 5.1 | M136: HW | N136: 0.5304347826 | O136: 09:01:00 | P136: 12:00:00 | Q136: 06:00:00 | R136: 0.5027777778 | S136: 42036.38788 | T136: 6.848695652 | U136: 42036.45385 | V136: 42036.38962 | W136: 6.595652174 | X136: 42036.33403 | Y136: 42036.36182 | Z136: 5.036521739 | AA136: 42036.35141 | AB136: 42036.35486 | AC136: 4.636521739 | AD136: Opn | AE136: 42036.24028 | AF136: 42036.35655 | AG136: 4.083478261 | AH136: 42036.33052 | AI136: 4.430434783 | AJ136: 42036.3896 | AK136: 6.748695652 | AL136: 42036.39133 | AM136: 6.70173913 | AN136: 42036.38613 | AO136: 6.495652174 | AP136: 42036.39131 | AQ136: 5.895652174 | AR136: 42036.36528 | AS136: 42036.38611 | AT136: 42036.35135 | AU136: 4.636521739 | AV136: 42036.35135 | AW136: 4.436521739 | AX136: 42036.32879 | AY136: 4.189565217 | AZ136: 42036.32532 | BA136: 4.036521739 | BB136: 42036.32185 | BC136: 3.983478261 | BD136: 42036.27157 | BE136: 3.836521739 | BF136: 42036.36528 | BH136: 42036.41736 | BI136: 42036.40694
A137: 0 | B137: 0 | C137: 2019-02-02T15:08:00 | D137: 2019-02-02 | F137: 2 | I137: 6 | K137: 42036.63056 | L137: 1.53 | M137: LW | N137: 0.3740458015 | O137: 15:08:00 | P137: 17:00:00 | Q137: 11:00:00 | R137: 0.6888888889 | S137: 42036.66443 | T137: 1.864122137 | U137: 42036.7304 | V137: 42036.6429 | W137: 1.701526718 | X137: 42036.58889 | Y137: 42036.64491 | Z137: 1.551145038 | AA137: 42036.60579 | AB137: 42036.63665 | AC137: 1.413740458 | AD137: Cls | AE137: 42036.46944 | AF137: 42036.61752 | AG137: 1.351145038 | AH137: 42036.61188 | AI137: 1.451145038 | AJ137: 42036.66204 | AK137: 1.901526718 | AL137: 42036.66204 | AM137: 1.901526718 | AN137: 42036.6527 | AO137: 1.901526718 | AP137: 42036.65725 | AQ137: 1.738931298 | AR137: 42036.62014 | AS137: 42036.64444 | AT137: 42036.62014 | AU137: 1.551145038 | AV137: 42036.62492 | AW137: 1.513740458 | AX137: 42036.61188 | AY137: 1.351145038 | AZ137: 42036.60841 | BA137: 1.313740458 | BB137: 42036.60386 | BC137: 1.413740458 | BD137: 42036.55872 | BE137: 1.163358779 | BF137: 42036.65486 | BH137: 42036.67222 | BI137: 42036.66181
A138: 0 | B138: 0 | C138: 2019-02-02T21:26:00 | D138: 2019-02-02 | F138: 2 | I138: 6 | K138: 42036.89306 | L138: 5.02 | M138: HW | N138: 0.4608695652 | O138: 21:26:00 | P138: 1 | Q138: 18:00:00 | R138: 0.5722222222 | S138: 42036.90596 | T138: 6.737391304 | U138: 42036.97193 | V138: 42036.90795 | W138: 6.491304348 | X138: 42036.85139 | Y138: 42036.87967 | Z138: =IF($M138="HW",Y$2+(Y$1-Y$2)*$N138,Y$3+(Y$4-Y$3)*$N138) -> 4.953043478 | AA138: 42036.86925 | AB138: 42036.87222 | AC138: =IF($M138="HW",AB$2+(AB$1-AB$2)*$N138,AB$3+(AB$4-AB$3)*$N138) -> 4.553043478 | AD138: Opn | AE138: 42036.75764 | AF138: 42036.8727 | AG138: =IF($M138="HW",AF$2+(AF$1-AF$2)*$N138,AF$3+(AF$4-AF$3)*$N138) -> 4.006956522 | AH138: 42036.84691 | AI138: =IF($M138="HW",AH$2+(AH$1-AH$2)*$N138,AH$3+(AH$4-AH$3)*$N138) -> 4.360869565 | AJ138: 42036.90745 | AK138: =IF($M138="HW",AJ$2+(AJ$1-AJ$2)*$N138,AJ$3+(AJ$4-AJ$3)*$N138) -> 6.637391304 | AL138: 42036.90893 | AM138: =IF($M138="HW",AL$2+(AL$1-AL$2)*$N138,AL$3+(AL$4-AL$3)*$N138) -> 6.583478261 | AN138: 42036.90397 | AO138: =IF($M138="HW",AN$2+(AN$1-AN$2)*$N138,AN$3+(AN$4-AN$3)*$N138) -> 6.391304348 | AP138: 42036.90843 | AQ138: =IF($M138="HW",AP$2+(AP$1-AP$2)*$N138,AP$3+(AP$4-AP$3)*$N138) -> 5.791304348 | AR138: 42036.88264 | AS138: 42036.90347 | AT138: 42036.86775 | AU138: =IF($M138="HW",AT$2+(AT$1-AT$2)*$N138,AT$3+(AT$4-AT$3)*$N138) -> 4.553043478 | AV138: 42036.86775 | AW138: =IF($M138="HW",AV$2+(AV$1-AV$2)*$N138,AV$3+(AV$4-AV$3)*$N138) -> 4.353043478 | AX138: 42036.84543 | AY138: =IF($M138="HW",AX$2+(AX$1-AX$2)*$N138,AX$3+(AX$4-AX$3)*$N138) -> 4.099130435 | AZ138: 42036.84196 | BA138: =IF($M138="HW",AZ$2+(AZ$1-AZ$2)*$N138,AZ$3+(AZ$4-AZ$3)*$N138) -> 3.953043478 | BB138: 42036.83848 | BC138: =IF($M138="HW",BB$2+(BB$1-BB$2)*$N138,BB$3+(BB$4-BB$3)*$N138) -> 3.906956522 | BD138: 42036.78989 | BE138: =IF($M138="HW",BD$2+(BD$1-BD$2)*$N138,BD$3+(BD$4-BD$3)*$N138) -> 3.753043478 | BF138: 42036.88264 | BH138: 42036.93472 | BI138: 42036.92431
A139: 0 | B139: 0 | C139: 2019-02-03T03:25:00 | D139: 2019-02-03 | E139: 2019-02-03 | F139: 2 | G139: Feb | H139: 3 | I139: 7 | J139: Sun | K139: 42037.14236 | L139: 1.48 | M139: LW | N139: =IF(M139="HW",(L139-K$2)/(K$1-K$2),(L139-K$3)/(K$4-K$3)) -> 0.4122137405 | O139: 03:25:00 | P139: =IF(M139="HW",IF(AND(O139>=L$5,O139<L$6),L$5,IF(AND(O139>=L$6,O139<M$5),M$5,IF(AND(O139>=M$5,O139<M$6),M$5,IF(O139>=M$6,L$5+1,L$5)))),IF(AND(O139>=L$7,O139<L$8),L$7,IF(AND(O139>=L$8,O139<M$7),M$7,IF(AND(O139>=M$7,O139<M$8),M$7,IF(O139>=M$8,L$7+1,L$7))))) -> 05:00:00 | Q139: =IF(M139="HW",IF(AND(O139>=L$5,O139<L$6),L$6,IF(AND(O139>=L$6,O139<M$5),L$6,IF(AND(O139>=M$5,O139<M$6),M$6,IF(O139>=M$6,M$6,M$6-1)))),IF(AND(O139>=L$7,O139<L$8),L$8,IF(AND(O139>=L$8,O139<M$7),L$8,IF(AND(O139>=M$7,O139<M$8),M$8,IF(O139>=M$8,M$8,M$8-1))))) -> -0.04166666667 | R139: 0.7361111111 | S139: 42037.17689 | T139: =IF($M139="HW",S$2+(S$1-S$2)*$N139,S$3+(S$4-S$3)*$N139) -> 1.799236641 | U139: 42037.24286 | V139: 42037.15389 | W139: =IF($M139="HW",V$2+(V$1-V$2)*$N139,V$3+(V$4-V$3)*$N139) -> 1.640458015 | X139: 42037.10069 | Y139: 42037.1577 | Z139: 1.505343511 | AA139: 42037.11661 | AB139: =IF($M139="HW",$K139+AB$6+(AB$5-AB$6)*$R139,$K139+AB$8+(AB$7-AB$8)*$R139) -> 42037.14911 | AC139: 1.364122137 | AD139: =IF($M139="HW","Opn","Cls") -> Cls | AE139: 42036.98681 | AF139: =IF($M139="HW",$K139+AF$6+(AF$5-AF$6)*$R139,$K139+AF$8+(AF$7-AF$8)*$R139) -> 42037.12867 | AG139: 1.305343511 | AH139: =IF($M139="HW",$K139+AH$6+(AH$5-AH$6)*$R139,$K139+AH$8+(AH$7-AH$8)*$R139) -> 42037.12336 | AI139: 1.405343511 | AJ139: =IF($M139="HW",$K139+AJ$6+(AJ$5-AJ$6)*$R139,$K139+AJ$8+(AJ$7-AJ$8)*$R139) -> 42037.17433 | AK139: 1.840458015 | AL139: =IF($M139="HW",$K139+AL$6+(AL$5-AL$6)*$R139,$K139+AL$8+(AL$7-AL$8)*$R139) -> 42037.17433 | AM139: 1.840458015 | AN139: =IF($M139="HW",$K139+AN$6+(AN$5-AN$6)*$R139,$K139+AN$8+(AN$7-AN$8)*$R139) -> 42037.16483 | AO139: 1.840458015 | AP139: =IF($M139="HW",$K139+AP$6+(AP$5-AP$6)*$R139,$K139+AP$8+(AP$7-AP$8)*$R139) -> 42037.16922 | AQ139: 1.681679389 | AR139: 42037.13194 | AS139: 42037.15625 | AT139: =IF($M139="HW",$K139+AT$6+(AT$5-AT$6)*$R139,$K139+AT$8+(AT$7-AT$8)*$R139) -> 42037.13194 | AU139: 1.505343511 | AV139: =IF($M139="HW",$K139+AV$6+(AV$5-AV$6)*$R139,$K139+AV$8+(AV$7-AV$8)*$R139) -> 42037.13706 | AW139: 1.464122137 | AX139: =IF($M139="HW",$K139+AX$6+(AX$5-AX$6)*$R139,$K139+AX$8+(AX$7-AX$8)*$R139) -> 42037.12336 | AY139: 1.305343511 | AZ139: =IF($M139="HW",$K139+AZ$6+(AZ$5-AZ$6)*$R139,$K139+AZ$8+(AZ$7-AZ$8)*$R139) -> 42037.11989 | BA139: 1.264122137 | BB139: =IF($M139="HW",$K139+BB$6+(BB$5-BB$6)*$R139,$K139+BB$8+(BB$7-BB$8)*$R139) -> 42037.1155 | BC139: 1.364122137 | BD139: =IF($M139="HW",$K139+BD$6+(BD$5-BD$6)*$R139,$K139+BD$8+(BD$7-BD$8)*$R139) -> 42037.07036 | BE139: 1.129007634 | BF139: 42037.16667 | BH139: 42037.18403 | BI139: 42037.17361
A140: 0 | B140: 0 | C140: 2019-02-03T09:40:00 | D140: =DATE(YEAR(K140),MONTH(K140),DAY(K140)) -> 2019-02-03 | E140: Sun | F140: =MONTH(K140) -> 2 | G140: =IF(H140="","",TEXT(F140*29,"mmm")) ->  | H140: =IF(I140=I139,"",DAY(K140)) ->  | I140: =WEEKDAY(K140,2) -> 7 | J140: =IF(I140=I139,"",TEXT(I140+2,"ddd")) ->  | K140: =C140+B140/24 -> 42037.40278 | L140: 5.3 | M140: HW | N140: 0.7043478261 | O140: =C140-INT(C140) -> 09:40:00 | P140: 12:00:00 | Q140: 06:00:00 | R140: =ABS((O140-Q140)/(P140-Q140)) -> 0.6111111111 | S140: 42037.41609 | T140: 7.126956522 | U140: 42037.48206 | V140: 42037.41821 | W140: 6.856521739 | X140: 42037.36111 | Y140: 42037.38966 | Z140: 5.245217391 | AA140: =IF($M140="HW",$K140+AA$6+(AA$5-AA$6)*$R140,$K140+AA$8+(AA$7-AA$8)*$R140) -> 42037.37924 | AB140: 42037.38194 | AC140: 4.845217391 | AD140: Opn | AE140: =IF($M140="HW",$AB140-AD$8,$AB139+AD$8) -> 42037.26736 | AF140: 42037.38175 | AG140: 4.274782609 | AH140: 42037.3561 | AI140: 4.604347826 | AJ140: 42037.41744 | AK140: 7.026956522 | AL140: 42037.41879 | AM140: 6.997391304 | AN140: 42037.41397 | AO140: 6.756521739 | AP140: 42037.41802 | AQ140: 6.156521739 | AR140: 42037.39236 | AS140: 42037.41319 | AT140: 42037.37693 | AU140: 4.845217391 | AV140: 42037.37693 | AW140: 4.645217391 | AX140: 42037.35475 | AY140: 4.415652174 | AZ140: 42037.35127 | BA140: 4.245217391 | BB140: 42037.3478 | BC140: 4.174782609 | BD140: 42037.30015 | BE140: 4.045217391 | BF140: 42037.39236 | BH140: 42037.44444 | BI140: 42037.43403
A141: 0 | B141: 0 | C141: 2019-02-03T15:47:00 | D141: 2019-02-03 | E141: =IF(D141=D140,IF(J140="","",J140),D141) ->  | F141: 2 | I141: 7 | K141: 42037.65764 | L141: 1.35 | M141: LW | N141: 0.5114503817 | O141: 15:47:00 | P141: 17:00:00 | Q141: 11:00:00 | R141: 0.7972222222 | S141: 42037.69302 | T141: 1.630534351 | U141: 42037.75899 | V141: 42037.6681 | W141: 1.481679389 | X141: 42037.61597 | Y141: 42037.67425 | Z141: 1.386259542 | AA141: 42037.63061 | AB141: 42037.66524 | AC141: 1.235114504 | AD141: Cls | AE141: 42037.49653 | AF141: 42037.64309 | AG141: 1.186259542 | AH141: 42037.63821 | AI141: 1.286259542 | AJ141: 42037.69025 | AK141: 1.681679389 | AL141: 42037.69025 | AM141: 1.681679389 | AN141: 42037.68054 | AO141: 1.681679389 | AP141: 42037.68471 | AQ141: 1.532824427 | AR141: 42037.64722 | AS141: 42037.67153 | AT141: 42037.64722 | AU141: 1.386259542 | AV141: 42037.65276 | AW141: 1.335114504 | AX141: 42037.63821 | AY141: 1.186259542 | AZ141: 42037.63474 | BA141: 1.135114504 | BB141: 42037.63057 | BC141: 1.235114504 | BD141: 42037.58543 | BE141: 1.039694656 | BF141: 42037.68194 | BH141: 42037.69931 | BI141: 42037.68889
A142: 0 | B142: 0 | C142: 2019-02-03T22:02:00 | D142: 2019-02-03 | F142: 2 | I142: 7 | K142: 42037.91806 | L142: 5.13 | M142: HW | N142: 0.5565217391 | O142: 22:02:00 | P142: 1 | Q142: 18:00:00 | R142: 0.6722222222 | S142: 42037.932 | T142: 6.890434783 | U142: 42037.99797 | V142: 42037.93434 | W142: 6.634782609 | X142: 42037.87639 | Y142: 42037.90536 | Z142: 5.067826087 | AA142: 42037.89495 | AB142: 42037.89722 | AC142: 4.667826087 | AD142: Opn | AE142: 42037.78264 | AF142: 42037.89597 | AG142: 4.112173913 | AH142: 42037.87052 | AI142: 4.456521739 | AJ142: 42037.93314 | AK142: 6.790434783 | AL142: 42037.93428 | AM142: 6.746086957 | AN142: 42037.92967 | AO142: 6.534782609 | AP142: 42037.93308 | AQ142: 5.934782609 | AR142: 42037.90764 | AS142: 42037.92847 | AT142: 42037.89136 | AU142: 4.667826087 | AV142: 42037.89136 | AW142: 4.467826087 | AX142: 42037.86939 | AY142: 4.223478261 | AZ142: 42037.86591 | BA142: 4.067826087 | BB142: 42037.86244 | BC142: 4.012173913 | BD142: 42037.81628 | BE142: 3.867826087 | BF142: 42037.90764 | BH142: 42037.95972 | BI142: 42037.94931
A143: 0 | B143: 0 | C143: 2019-02-04T04:01:00 | D143: 2019-02-04 | E143: 2019-02-04 | F143: 2 | G143: Feb | H143: 4 | I143: 1 | J143: Mon | K143: 42038.16736 | L143: 1.34 | M143: LW | N143: 0.5190839695 | O143: 04:01:00 | P143: 05:00:00 | Q143: -0.04166666667 | R143: 0.8361111111 | S143: =IF($M143="HW",$K143+S$6+(S$5-S$6)*$R143,$K143+S$8+(S$7-S$8)*$R143) -> 42038.20328 | T143: 1.617557252 | U143: 42038.26925 | V143: 42038.17715 | W143: 1.469465649 | X143: =IF($M143="HW",$K143+X$6+(X$5-X$6)*$R143,$K143+X$8+(X$7-X$8)*$R143) -> 42038.12569 | Y143: 42038.18478 | Z143: 1.377099237 | AA143: 42038.13953 | AB143: 42038.1755 | AC143: 1.22519084 | AD143: Cls | AE143: 42038.01181 | AF143: 42038.15228 | AG143: 1.177099237 | AH143: 42038.14767 | AI143: 1.277099237 | AJ143: 42038.20038 | AK143: 1.669465649 | AL143: 42038.20038 | AM143: 1.669465649 | AN143: 42038.19053 | AO143: 1.669465649 | AP143: 42038.19457 | AQ143: 1.521374046 | AR143: =IF($M143="HW",$K143+AR$6+(AR$5-AR$6)*$R143,$K143+AR$8+(AR$7-AR$8)*$R143) -> 42038.15694 | AS143: 42038.18125 | AT143: 42038.15694 | AU143: 1.377099237 | AV143: 42038.16275 | AW143: 1.32519084 | AX143: 42038.14767 | AY143: 1.177099237 | AZ143: 42038.14419 | BA143: 1.12519084 | BB143: 42038.14015 | BC143: 1.22519084 | BD143: 42038.09501 | BE143: 1.032824427 | BF143: =IF($M143="HW",$K143+BF$6+(BF$5-BF$6)*$R143,$K143+BF$8+(BF$7-BF$8)*$R143) -> 42038.19167 | BH143: 42038.20903 | BI143: 42038.19861
A144: 0 | B144: 0 | C144: 2019-02-04T10:14:00 | D144: 2019-02-04 | E144: Mon | F144: 2 | I144: 1 | K144: 42038.42639 | L144: 5.46 | M144: HW | N144: 0.8434782609 | O144: 10:14:00 | P144: 12:00:00 | Q144: 06:00:00 | R144: 0.7055555556 | S144: 42038.44068 | T144: 7.349565217 | U144: 42038.50666 | V144: 42038.44313 | W144: 7.065217391 | X144: 42038.38472 | Y144: 42038.41393 | Z144: 5.412173913 | AA144: 42038.40351 | AB144: 42038.40556 | AC144: 5.012173913 | AD144: Opn | AE144: 42038.29097 | AF144: 42038.40372 | AG144: 4.427826087 | AH144: 42038.3784 | AI144: 4.743478261 | AJ144: 42038.44171 | AK144: 7.249565217 | AL144: 42038.44273 | AM144: 7.233913043 | AN144: 42038.43823 | AO144: 6.965217391 | AP144: 42038.4413 | AQ144: 6.365217391 | AR144: 42038.41597 | AS144: 42038.43681 | AT144: 42038.39923 | AU144: 5.012173913 | AV144: 42038.39923 | AW144: 4.812173913 | AX144: 42038.37737 | AY144: 4.596521739 | AZ144: 42038.3739 | BA144: 4.412173913 | BB144: 42038.37043 | BC144: 4.327826087 | BD144: 42038.32508 | BE144: 4.212173913 | BF144: 42038.41597 | BH144: 42038.46806 | BI144: 42038.45764
A145: 0 | B145: 0 | C145: 2019-02-04T16:23:00 | D145: 2019-02-04 | F145: 2 | I145: 1 | K145: 42038.68264 | L145: 1.2 | M145: LW | N145: 0.6259541985 | O145: 16:23:00 | P145: 17:00:00 | Q145: 11:00:00 | R145: 0.8972222222 | S145: 42038.71941 | T145: 1.435877863 | U145: 42038.78538 | V145: 42038.69137 | W145: 1.298473282 | X145: 42038.64097 | Y145: 42038.70133 | Z145: 1.248854962 | AA145: 42038.65353 | AB145: 42038.69163 | AC145: 1.086259542 | AD145: Cls | AE145: 42038.52014 | AF145: 42038.66671 | AG145: 1.048854962 | AH145: 42038.66252 | AI145: 1.148854962 | AJ145: 42038.71629 | AK145: 1.498473282 | AL145: 42038.71629 | AM145: 1.498473282 | AN145: 42038.70623 | AO145: 1.498473282 | AP145: 42038.71006 | AQ145: 1.361068702 | AR145: 42038.67222 | AS145: 42038.69653 | AT145: 42038.67222 | AU145: 1.248854962 | AV145: 42038.67845 | AW145: 1.186259542 | AX145: 42038.66252 | AY145: 1.048854962 | AZ145: 42038.65905 | BA145: 0.986259542 | BB145: 42038.65522 | BC145: 1.086259542 | BD145: 42038.61008 | BE145: 0.9366412214 | BF145: 42038.70694 | BH145: 42038.72431 | BI145: 42038.71389
A146: 0 | B146: 0 | C146: 2019-02-04T22:35:00 | D146: 2019-02-04 | F146: 2 | I146: 1 | K146: 42038.94097 | L146: 5.22 | M146: HW | N146: 0.6347826087 | O146: 22:35:00 | P146: 1 | Q146: 18:00:00 | R146: 0.7638888889 | S146: 42038.95587 | T146: 7.015652174 | U146: 42039.02185 | V146: 42038.95853 | W146: 6.752173913 | X146: 42038.89931 | Y146: 42038.92892 | Z146: 5.16173913 | AA146: 42038.9185 | AB146: 42038.92014 | AC146: 4.76173913 | AD146: Opn | AE146: 42038.80556 | AF146: 42038.91729 | AG146: 4.19826087 | AH146: 42038.89217 | AI146: 4.534782609 | AJ146: 42038.95669 | AK146: 6.915652174 | AL146: 42038.95751 | AM146: 6.879130435 | AN146: 42038.95322 | AO146: 6.652173913 | AP146: 42038.95568 | AQ146: 6.052173913 | AR146: 42038.93056 | AS146: 42038.95139 | AT146: 42038.913 | AU146: 4.76173913 | AV146: 42038.913 | AW146: 4.56173913 | AX146: 42038.89135 | AY146: 4.325217391 | AZ146: 42038.88788 | BA146: 4.16173913 | BB146: 42038.8844 | BC146: 4.09826087 | BD146: 42038.84047 | BE146: 3.96173913 | BF146: 42038.93056 | BH146: 42038.98264 | BI146: 42038.97222
A147: 0 | B147: 0 | C147: 2019-02-05T04:34:00 | D147: 2019-02-05 | E147: 2019-02-05 | F147: 2 | G147: Feb | H147: 5 | I147: 2 | J147: Tue | K147: 42039.19028 | L147: 1.23 | M147: LW | N147: 0.6030534351 | O147: 04:34:00 | P147: 05:00:00 | Q147: -0.04166666667 | R147: 0.9277777778 | S147: 42039.22747 | T147: 1.47480916 | U147: 42039.29344 | V147: 42039.19848 | W147: 1.335114504 | X147: 42039.14861 | Y147: 42039.20961 | Z147: 1.276335878 | AA147: 42039.16053 | AB147: 42039.19969 | AC147: 1.116030534 | AD147: Cls | AE147: 42039.03472 | AF147: 42039.17392 | AG147: 1.076335878 | AH147: 42039.16995 | AI147: 1.176335878 | AJ147: 42039.22425 | AK147: 1.535114504 | AL147: 42039.22425 | AM147: 1.535114504 | AN147: 42039.21408 | AO147: 1.535114504 | AP147: 42039.2178 | AQ147: 1.395419847 | AR147: 42039.17986 | AS147: 42039.20417 | AT147: 42039.17986 | AU147: 1.276335878 | AV147: 42039.1863 | AW147: 1.216030534 | AX147: 42039.16995 | AY147: 1.076335878 | AZ147: 42039.16647 | BA147: 1.016030534 | BB147: 42039.16275 | BC147: 1.116030534 | BD147: 42039.11761 | BE147: 0.9572519084 | BF147: 42039.21458 | BH147: 42039.23194 | BI147: 42039.22153
A148: 0 | B148: 0 | C148: 2019-02-05T10:46:00 | D148: 2019-02-05 | E148: Tue | F148: 2 | I148: 2 | K148: 42039.44861 | L148: 5.57 | M148: HW | N148: 0.9391304348 | O148: 10:46:00 | P148: 12:00:00 | Q148: 06:00:00 | R148: 0.7944444444 | S148: 42039.46383 | T148: 7.502608696 | U148: 42039.5298 | V148: 42039.46659 | W148: 7.208695652 | X148: 42039.40694 | Y148: 42039.43677 | Z148: 5.526956522 | AA148: 42039.42635 | AB148: 42039.42778 | AC148: 5.126956522 | AD148: Opn | AE148: 42039.31319 | AF148: 42039.4244 | AG148: 4.533043478 | AH148: 42039.39938 | AI148: 4.839130435 | AJ148: 42039.46454 | AK148: 7.402608696 | AL148: 42039.46526 | AM148: 7.396521739 | AN148: 42039.46107 | AO148: 7.108695652 | AP148: 42039.46321 | AQ148: 6.508695652 | AR148: 42039.43819 | AS148: 42039.45903 | AT148: 42039.42022 | AU148: 5.126956522 | AV148: 42039.42022 | AW148: 4.926956522 | AX148: 42039.39867 | AY148: 4.720869565 | AZ148: 42039.3952 | BA148: 4.526956522 | BB148: 42039.39172 | BC148: 4.433043478 | BD148: 42039.34853 | BE148: 4.326956522 | BF148: 42039.43819 | BH148: 42039.49028 | BI148: 42039.47986
A149: 0 | B149: 0 | C149: 2019-02-05T16:55:00 | D149: 2019-02-05 | F149: 2 | I149: 2 | K149: 42039.70486 | L149: 1.1 | M149: LW | N149: 0.7022900763 | O149: 16:55:00 | P149: 17:00:00 | Q149: 11:00:00 | R149: 0.9861111111 | S149: 42039.74286 | T149: 1.30610687 | U149: 42039.80883 | V149: 42039.71205 | W149: 1.176335878 | X149: 42039.66319 | Y149: 42039.72541 | Z149: 1.157251908 | AA149: 42039.6739 | AB149: 42039.71508 | AC149: 0.9870229008 | AD149: Cls | AE149: 42039.54236 | AF149: 42039.68769 | AG149: 0.9572519084 | AH149: 42039.68412 | AI149: 1.057251908 | AJ149: 42039.73944 | AK149: 1.376335878 | AL149: 42039.73944 | AM149: 1.376335878 | AN149: 42039.72907 | AO149: 1.376335878 | AP149: 42039.73259 | AQ149: 1.246564885 | AR149: 42039.69444 | AS149: 42039.71875 | AT149: 42039.69444 | AU149: 1.157251908 | AV149: 42039.70129 | AW149: 1.087022901 | AX149: 42039.68412 | AY149: 0.9572519084 | AZ149: 42039.68065 | BA149: 0.8870229008 | BB149: 42039.67713 | BC149: 0.9870229008 | BD149: 42039.63199 | BE149: 0.8679389313 | BF149: 42039.72917 | BH149: 42039.74653 | BI149: 42039.73611
A150: 0 | B150: 0 | C150: 2019-02-05T23:07:00 | D150: 2019-02-05 | F150: 2 | I150: 2 | K150: 42039.96319 | L150: 5.26 | M150: HW | N150: 0.6695652174 | O150: 23:07:00 | P150: 1 | Q150: 18:00:00 | R150: 0.8527777778 | S150: 42039.97902 | T150: 7.071304348 | U150: 42040.04499 | V150: 42039.98198 | W150: 6.804347826 | X150: 42039.92153 | Y150: 42039.95176 | Z150: 5.203478261 | AA150: 42039.94134 | AB150: 42039.94236 | AC150: 4.803478261 | AD150: Opn | AE150: 42039.82778 | AF150: 42039.93797 | AG150: 4.236521739 | AH150: 42039.91316 | AI150: 4.569565217 | AJ150: 42039.97953 | AK150: 6.971304348 | AL150: 42039.98004 | AM150: 6.93826087 | AN150: 42039.97606 | AO150: 6.704347826 | AP150: 42039.97759 | AQ150: 6.104347826 | AR150: 42039.95278 | AS150: 42039.97361 | AT150: 42039.93399 | AU150: 4.803478261 | AV150: 42039.93399 | AW150: 4.603478261 | AX150: 42039.91264 | AY150: 4.370434783 | AZ150: 42039.90917 | BA150: 4.203478261 | BB150: 42039.9057 | BC150: 4.136521739 | BD150: 42039.86393 | BE150: 4.003478261 | BF150: 42039.95278 | BH150: 42040.00486 | BI150: 42039.99444
A151: 0 | B151: 0 | C151: 2019-02-06T05:06:00 | D151: 2019-02-06 | E151: 2019-02-06 | F151: 2 | G151: Feb | H151: 6 | I151: 3 | J151: Wed | K151: 42040.2125 | L151: 1.17 | M151: LW | N151: 0.6488549618 | O151: 05:06:00 | P151: 05:00:00 | Q151: 11:00:00 | R151: 0.9833333333 | S151: 42040.25046 | T151: 1.396946565 | U151: 42040.31644 | V151: 42040.21973 | W151: 1.261832061 | X151: 42040.17083 | Y151: 42040.23299 | Z151: 1.221374046 | AA151: 42040.1816 | AB151: 42040.22269 | AC151: 1.05648855 | AD151: Cls | AE151: 42040.05694 | AF151: 42040.19537 | AG151: 1.021374046 | AH151: 42040.19178 | AI151: 1.121374046 | AJ151: 42040.24705 | AK151: 1.461832061 | AL151: 42040.24705 | AM151: 1.461832061 | AN151: 42040.23669 | AO151: 1.461832061 | AP151: 42040.24022 | AQ151: 1.326717557 | AR151: 42040.20208 | AS151: 42040.22639 | AT151: 42040.20208 | AU151: 1.221374046 | AV151: 42040.20891 | AW151: 1.15648855 | AX151: 42040.19178 | AY151: 1.021374046 | AZ151: 42040.18831 | BA151: 0.9564885496 | BB151: 42040.18478 | BC151: 1.05648855 | BD151: 42040.13964 | BE151: 0.9160305344 | BF151: 42040.23681 | BH151: 42040.25417 | BI151: 42040.24375
A152: 0 | B152: 0 | C152: 2019-02-06T11:18:00 | D152: 2019-02-06 | E152: Wed | F152: 2 | I152: 3 | K152: 42040.47083 | L152: 5.61 | M152: HW | N152: 0.9739130435 | O152: 11:18:00 | P152: 12:00:00 | Q152: 06:00:00 | R152: 0.8833333333 | S152: 42040.48698 | T152: 7.55826087 | U152: 42040.55295 | V152: 42040.49005 | W152: 7.260869565 | X152: 42040.42917 | Y152: 42040.45961 | Z152: 5.568695652 | AA152: 42040.44919 | AB152: 42040.45 | AC152: 5.168695652 | AD152: Opn | AE152: 42040.33542 | AF152: 42040.44508 | AG152: 4.571304348 | AH152: 42040.42037 | AI152: 4.873913043 | AJ152: 42040.48738 | AK152: 7.45826087 | AL152: 42040.48779 | AM152: 7.455652174 | AN152: 42040.48391 | AO152: 7.160869565 | AP152: 42040.48513 | AQ152: 6.560869565 | AR152: 42040.46042 | AS152: 42040.48125 | AT152: 42040.4412 | AU152: 5.168695652 | AV152: 42040.4412 | AW152: 4.968695652 | AX152: 42040.41997 | AY152: 4.766086957 | AZ152: 42040.41649 | BA152: 4.568695652 | BB152: 42040.41302 | BC152: 4.471304348 | BD152: 42040.37199 | BE152: 4.368695652 | BF152: 42040.46042 | BH152: 42040.5125 | BI152: 42040.50208
A153: 0 | B153: 0 | C153: 2019-02-06T17:27:00 | D153: 2019-02-06 | F153: 2 | I153: 3 | K153: 42040.72708 | L153: 1.05 | M153: LW | N153: 0.7404580153 | O153: 17:27:00 | P153: 17:00:00 | Q153: 23:00:00 | R153: 0.925 | S153: 42040.76424 | T153: 1.241221374 | U153: 42040.83021 | V153: 42040.73533 | W153: 1.115267176 | X153: 42040.68542 | Y153: 42040.74635 | Z153: 1.111450382 | AA153: 42040.6974 | AB153: 42040.73646 | AC153: 0.9374045802 | AD153: Cls | AE153: 42040.56458 | AF153: 42040.71076 | AG153: 0.9114503817 | AH153: 42040.70677 | AI153: 1.011450382 | AJ153: 42040.76102 | AK153: 1.315267176 | AL153: 42040.76102 | AM153: 1.315267176 | AN153: 42040.75087 | AO153: 1.315267176 | AP153: 42040.7546 | AQ153: 1.189312977 | AR153: 42040.71667 | AS153: 42040.74097 | AT153: 42040.71667 | AU153: 1.111450382 | AV153: 42040.72309 | AW153: 1.03740458 | AX153: 42040.70677 | AY153: 0.9114503817 | AZ153: 42040.7033 | BA153: 0.8374045802 | BB153: 42040.69957 | BC153: 0.9374045802 | BD153: 42040.65443 | BE153: 0.8335877863 | BF153: 42040.75139 | BH153: 42040.76875 | BI153: 42040.75833
A154: 0 | B154: 0 | C154: 2019-02-06T23:37:00 | D154: 2019-02-06 | F154: 2 | I154: 3 | K154: 42040.98403 | L154: 5.27 | M154: HW | N154: 0.6782608696 | O154: 23:37:00 | P154: 1 | Q154: 18:00:00 | R154: 0.9361111111 | S154: 42041.00072 | T154: 7.085217391 | U154: 42041.0667 | V154: 42041.00397 | W154: 6.817391304 | X154: 42040.94236 | Y154: 42040.97317 | Z154: 5.213913043 | AA154: 42040.96275 | AB154: 42040.96319 | AC154: 4.813913043 | AD154: Opn | AE154: 42040.84861 | AF154: 42040.95736 | AG154: 4.246086957 | AH154: 42040.93283 | AI154: 4.57826087 | AJ154: 42041.00095 | AK154: 6.985217391 | AL154: 42041.00117 | AM154: 6.953043478 | AN154: 42040.99747 | AO154: 6.717391304 | AP154: 42040.99814 | AQ154: 6.117391304 | AR154: 42040.97361 | AS154: 42040.99444 | AT154: 42040.95367 | AU154: 4.813913043 | AV154: 42040.95367 | AW154: 4.613913043 | AX154: 42040.93261 | AY154: 4.38173913 | AZ154: 42040.92914 | BA154: 4.213913043 | BB154: 42040.92567 | BC154: 4.146086957 | BD154: 42040.88592 | BE154: 4.013913043 | BF154: 42040.97361 | BH154: 42041.02569 | BI154: 42041.01528
A155: 0 | B155: 0 | C155: 2019-02-07T05:38:00 | D155: 2019-02-07 | E155: 2019-02-07 | F155: 2 | G155: Feb | H155: 7 | I155: 4 | J155: Thu | K155: 42041.23472 | L155: 1.16 | M155: LW | N155: 0.6564885496 | O155: 05:38:00 | P155: 05:00:00 | Q155: 11:00:00 | R155: 0.8944444444 | S155: 42041.27145 | T155: 1.383969466 | U155: 42041.33742 | V155: 42041.2435 | W155: 1.249618321 | X155: 42041.19306 | Y155: 42041.25336 | Z155: 1.21221374 | AA155: 42041.20567 | AB155: 42041.24367 | AC155: 1.046564885 | AD155: Cls | AE155: 42041.07778 | AF155: 42041.21883 | AG155: 1.01221374 | AH155: 42041.21462 | AI155: 1.11221374 | AJ155: 42041.26834 | AK155: 1.449618321 | AL155: 42041.26834 | AM155: 1.449618321 | AN155: 42041.25829 | AO155: 1.449618321 | AP155: 42041.26213 | AQ155: 1.315267176 | AR155: 42041.22431 | AS155: 42041.24861 | AT155: 42041.22431 | AU155: 1.21221374 | AV155: 42041.23052 | AW155: 1.146564885 | AX155: 42041.21462 | AY155: 1.01221374 | AZ155: 42041.21115 | BA155: 0.9465648855 | BB155: 42041.20731 | BC155: 1.046564885 | BD155: 42041.16217 | BE155: 0.9091603053 | BF155: 42041.25903 | BH155: 42041.27639 | BI155: 42041.26597
A156: 0 | B156: 0 | C156: 2019-02-07T11:49:00 | D156: 2019-02-07 | E156: Thu | F156: 2 | I156: 4 | K156: 42041.49236 | L156: 5.6 | M156: HW | N156: 0.9652173913 | O156: 11:49:00 | P156: 12:00:00 | Q156: 06:00:00 | R156: 0.9694444444 | S156: 42041.5094 | T156: 7.544347826 | U156: 42041.57538 | V156: 42041.51277 | W156: 7.247826087 | X156: 42041.45069 | Y156: 42041.48173 | Z156: 5.55826087 | AA156: 42041.47132 | AB156: 42041.47153 | AC156: 5.15826087 | AD156: Opn | AE156: 42041.35694 | AF156: 42041.46511 | AG156: 4.56173913 | AH156: 42041.4407 | AI156: 4.865217391 | AJ156: 42041.50951 | AK156: 7.444347826 | AL156: 42041.50962 | AM156: 7.440869565 | AN156: 42041.50604 | AO156: 7.147826087 | AP156: 42041.50636 | AQ156: 6.547826087 | AR156: 42041.48194 | AS156: 42041.50278 | AT156: 42041.46154 | AU156: 5.15826087 | AV156: 42041.46154 | AW156: 4.95826087 | AX156: 42041.4406 | AY156: 4.754782609 | AZ156: 42041.43712 | BA156: 4.55826087 | BB156: 42041.43365 | BC156: 4.46173913 | BD156: 42041.39471 | BE156: 4.35826087 | BF156: 42041.48194 | BH156: 42041.53403 | BI156: 42041.52361
A157: 0 | B157: 0 | C157: 2019-02-07T17:59:00 | D157: 2019-02-07 | F157: 2 | I157: 4 | K157: 42041.74931 | L157: 1.05 | M157: LW | N157: 0.7404580153 | O157: 17:59:00 | P157: 17:00:00 | Q157: 23:00:00 | R157: 0.8361111111 | S157: 42041.78522 | T157: 1.241221374 | U157: 42041.8512 | V157: 42041.7591 | W157: 1.115267176 | X157: 42041.70764 | Y157: 42041.76672 | Z157: 1.111450382 | AA157: 42041.72147 | AB157: 42041.75745 | AC157: 0.9374045802 | AD157: Cls | AE157: 42041.58611 | AF157: 42041.73422 | AG157: 0.9114503817 | AH157: 42041.72961 | AI157: 1.011450382 | AJ157: 42041.78232 | AK157: 1.315267176 | AL157: 42041.78232 | AM157: 1.315267176 | AN157: 42041.77247 | AO157: 1.315267176 | AP157: 42041.77651 | AQ157: 1.189312977 | AR157: 42041.73889 | AS157: 42041.76319 | AT157: 42041.73889 | AU157: 1.111450382 | AV157: 42041.7447 | AW157: 1.03740458 | AX157: 42041.72961 | AY157: 0.9114503817 | AZ157: 42041.72614 | BA157: 0.8374045802 | BB157: 42041.7221 | BC157: 0.9374045802 | BD157: 42041.67696 | BE157: 0.8335877863 | BF157: 42041.77361 | BH157: 42041.79097 | BI157: 42041.78056
A158: 0 | B158: 0 | C158: 2019-02-08T00:09:00 | D158: 2019-02-08 | E158: 2019-02-08 | F158: 2 | G158: Feb | H158: 8 | I158: 5 | J158: Fri | K158: 42042.00625 | L158: 5.24 | M158: HW | N158: 0.652173913 | O158: 00:09:00 | P158: 00:00:00 | Q158: 06:00:00 | R158: 0.975 | S158: 42042.02335 | T158: 7.043478261 | U158: 42042.08932 | V158: 42042.02674 | W158: 6.77826087 | X158: 42041.96458 | Y158: 42041.99566 | Z158: 5.182608696 | AA158: 42041.98524 | AB158: 42041.98542 | AC158: 4.782608696 | AD158: Opn | AE158: 42041.87083 | AF158: 42041.97891 | AG158: 4.217391304 | AH158: 42041.95451 | AI158: 4.552173913 | AJ158: 42042.02344 | AK158: 6.943478261 | AL158: 42042.02352 | AM158: 6.908695652 | AN158: 42042.01997 | AO158: 6.67826087 | AP158: 42042.02023 | AQ158: 6.07826087 | AR158: 42041.99583 | AS158: 42042.01667 | AT158: 42041.97535 | AU158: 4.782608696 | AV158: 42041.97535 | AW158: 4.582608696 | AX158: 42041.95443 | AY158: 4.347826087 | AZ158: 42041.95095 | BA158: 4.182608696 | BB158: 42041.94748 | BC158: 4.117391304 | BD158: 42041.90868 | BE158: 3.982608696 | BF158: 42041.99583 | BH158: 42042.04792 | BI158: 42042.0375
A159: 0 | B159: 0 | C159: 2019-02-08T06:09:00 | D159: 2019-02-08 | E159: Fri | F159: 2 | I159: 5 | K159: 42042.25625 | L159: 1.21 | M159: LW | N159: 0.6183206107 | O159: 06:09:00 | P159: 05:00:00 | Q159: 11:00:00 | R159: 0.8083333333 | S159: 42042.29178 | T159: 1.448854962 | U159: 42042.35775 | V159: 42042.26652 | W159: 1.310687023 | X159: 42042.21458 | Y159: 42042.27309 | Z159: 1.258015267 | AA159: 42042.22899 | AB159: 42042.264 | AC159: 1.096183206 | AD159: Cls | AE159: 42042.1 | AF159: 42042.24155 | AG159: 1.058015267 | AH159: 42042.23675 | AI159: 1.158015267 | AJ159: 42042.28898 | AK159: 1.510687023 | AL159: 42042.28898 | AM159: 1.510687023 | AN159: 42042.27922 | AO159: 1.510687023 | AP159: 42042.28336 | AQ159: 1.372519084 | AR159: 42042.24583 | AS159: 42042.27014 | AT159: 42042.24583 | AU159: 1.258015267 | AV159: 42042.25145 | AW159: 1.196183206 | AX159: 42042.23675 | AY159: 1.058015267 | AZ159: 42042.23328 | BA159: 0.9961832061 | BB159: 42042.22914 | BC159: 1.096183206 | BD159: 42042.184 | BE159: 0.9435114504 | BF159: 42042.28056 | BH159: 42042.29792 | BI159: 42042.2875
A160: 0 | B160: 0 | C160: 2019-02-08T12:21:00 | D160: 2019-02-08 | F160: 2 | I160: 5 | K160: 42042.51458 | L160: 5.54 | M160: HW | N160: 0.9130434783 | O160: 12:21:00 | P160: 12:00:00 | Q160: 18:00:00 | R160: 0.9416666667 | S160: =IF($M160="HW",$K160+S$6+(S$5-S$6)*$R160,$K160+S$8+(S$7-S$8)*$R160) -> 42042.53134 | T160: 7.460869565 | U160: 42042.59731 | V160: 42042.53461 | W160: 7.169565217 | X160: =IF($M160="HW",$K160+X$6+(X$5-X$6)*$R160,$K160+X$8+(X$7-X$8)*$R160) -> 42042.47292 | Y160: 42042.50376 | Z160: 5.495652174 | AA160: 42042.49334 | AB160: 42042.49375 | AC160: 5.095652174 | AD160: Opn | AE160: 42042.37917 | AF160: 42042.48782 | AG160: 4.504347826 | AH160: 42042.46331 | AI160: 4.813043478 | AJ160: 42042.53154 | AK160: 7.360869565 | AL160: 42042.53174 | AM160: 7.352173913 | AN160: 42042.52807 | AO160: 7.069565217 | AP160: 42042.52867 | AQ160: 6.469565217 | AR160: =IF($M160="HW",$K160+AR$6+(AR$5-AR$6)*$R160,$K160+AR$8+(AR$7-AR$8)*$R160) -> 42042.50417 | AS160: 42042.525 | AT160: 42042.48414 | AU160: 5.095652174 | AV160: 42042.48414 | AW160: 4.895652174 | AX160: 42042.46311 | AY160: 4.686956522 | AZ160: 42042.45964 | BA160: 4.495652174 | BB160: 42042.45616 | BC160: 4.404347826 | BD160: 42042.41655 | BE160: 4.295652174 | BF160: =IF($M160="HW",$K160+BF$6+(BF$5-BF$6)*$R160,$K160+BF$8+(BF$7-BF$8)*$R160) -> 42042.50417 | BH160: 42042.55625 | BI160: 42042.54583
A161: 0 | B161: 0 | C161: 2019-02-08T18:31:00 | D161: 2019-02-08 | F161: 2 | I161: 5 | K161: 42042.77153 | L161: 1.1 | M161: LW | N161: 0.7022900763 | O161: 18:31:00 | P161: 17:00:00 | Q161: 23:00:00 | R161: 0.7472222222 | S161: 42042.80621 | T161: 1.30610687 | U161: 42042.87218 | V161: 42042.78286 | W161: 1.176335878 | X161: 42042.72986 | Y161: 42042.78709 | Z161: 1.157251908 | AA161: 42042.74554 | AB161: 42042.77843 | AC161: 0.9870229008 | AD161: Cls | AE161: 42042.60833 | AF161: 42042.75768 | AG161: 0.9572519084 | AH161: 42042.75245 | AI161: 1.057251908 | AJ161: 42042.80362 | AK161: 1.376335878 | AL161: 42042.80362 | AM161: 1.376335878 | AN161: 42042.79408 | AO161: 1.376335878 | AP161: 42042.79843 | AQ161: 1.246564885 | AR161: 42042.76111 | AS161: 42042.78542 | AT161: 42042.76111 | AU161: 1.157251908 | AV161: 42042.7663 | AW161: 1.087022901 | AX161: 42042.75245 | AY161: 0.9572519084 | AZ161: 42042.74898 | BA161: 0.8870229008 | BB161: 42042.74463 | BC161: 0.9870229008 | BD161: 42042.69949 | BE161: 0.8679389313 | BF161: 42042.79583 | BH161: 42042.81319 | BI161: 42042.80278
A162: 0 | B162: 0 | C162: 2019-02-09T00:40:00 | D162: 2019-02-09 | E162: 2019-02-09 | F162: 2 | G162: Feb | H162: 9 | I162: 6 | J162: Sat | K162: 42043.02778 | L162: 5.17 | M162: HW | N162: 0.5913043478 | O162: 00:40:00 | P162: 00:00:00 | Q162: 06:00:00 | R162: 0.8888888889 | S162: 42043.04398 | T162: 6.946086957 | U162: 42043.10995 | V162: 42043.04707 | W162: 6.686956522 | X162: 42042.98611 | Y162: 42043.01659 | Z162: 5.109565217 | AA162: 42043.00617 | AB162: 42043.00694 | AC162: 4.709565217 | AD162: Opn | AE162: 42042.89236 | AF162: 42043.00193 | AG162: 4.150434783 | AH162: 42042.97724 | AI162: 4.491304348 | AJ162: 42043.04437 | AK162: 6.846086957 | AL162: 42043.04475 | AM162: 6.805217391 | AN162: 42043.0409 | AO162: 6.586956522 | AP162: 42043.04205 | AQ162: 5.986956522 | AR162: 42043.01736 | AS162: 42043.03819 | AT162: 42042.99807 | AU162: 4.709565217 | AV162: 42042.99807 | AW162: 4.509565217 | AX162: 42042.97685 | AY162: 4.268695652 | AZ162: 42042.97338 | BA162: 4.109565217 | BB162: 42042.96991 | BC162: 4.050434783 | BD162: 42042.92901 | BE162: 3.909565217 | BF162: 42043.01736 | BH162: 42043.06944 | BI162: 42043.05903
A163: 0 | B163: 0 | C163: 2019-02-09T06:42:00 | D163: 2019-02-09 | E163: Sat | F163: 2 | I163: 6 | K163: 42043.27917 | L163: 1.3 | M163: LW | N163: 0.5496183206 | O163: 06:42:00 | P163: 05:00:00 | Q163: 11:00:00 | R163: 0.7166666667 | S163: 42043.31343 | T163: 1.565648855 | U163: 42043.3794 | V163: 42043.29103 | W163: 1.420610687 | X163: 42043.2375 | Y163: 42043.2941 | Z163: 1.340458015 | AA163: 42043.25382 | AB163: 42043.28565 | AC163: 1.185496183 | AD163: Cls | AE163: 42043.12153 | AF163: 42043.26574 | AG163: 1.140458015 | AH163: 42043.2603 | AI163: 1.240458015 | AJ163: 42043.31094 | AK163: 1.620610687 | AL163: 42043.31094 | AM163: 1.620610687 | AN163: 42043.3015 | AO163: 1.620610687 | AP163: 42043.30596 | AQ163: 1.475572519 | AR163: 42043.26875 | AS163: 42043.29306 | AT163: 42043.26875 | AU163: 1.340458015 | AV163: 42043.27373 | AW163: 1.285496183 | AX163: 42043.2603 | AY163: 1.140458015 | AZ163: 42043.25683 | BA163: 1.085496183 | BB163: 42043.25237 | BC163: 1.185496183 | BD163: 42043.20723 | BE163: 1.005343511 | BF163: 42043.30347 | BH163: 42043.32083 | BI163: 42043.31042
A164: 0 | B164: 0 | C164: 2019-02-09T12:54:00 | D164: 2019-02-09 | F164: 2 | I164: 6 | K164: 42043.5375 | L164: 5.44 | M164: HW | N164: 0.8260869565 | O164: 12:54:00 | P164: 12:00:00 | Q164: 18:00:00 | R164: 0.85 | S164: 42043.5533 | T164: 7.32173913 | U164: 42043.61927 | V164: 42043.55625 | W164: 7.039130435 | X164: 42043.49583 | Y164: 42043.52604 | Z164: 5.391304348 | AA164: 42043.51562 | AB164: 42043.51667 | AC164: 4.991304348 | AD164: Opn | AE164: 42043.40208 | AF164: 42043.51233 | AG164: 4.408695652 | AH164: 42043.4875 | AI164: 4.726086957 | AJ164: 42043.55382 | AK164: 7.22173913 | AL164: 42043.55434 | AM164: 7.204347826 | AN164: 42043.55035 | AO164: 6.939130435 | AP164: 42043.55191 | AQ164: 6.339130435 | AR164: 42043.52708 | AS164: 42043.54792 | AT164: 42043.50833 | AU164: 4.991304348 | AV164: 42043.50833 | AW164: 4.791304348 | AX164: 42043.48698 | AY164: 4.573913043 | AZ164: 42043.48351 | BA164: 4.391304348 | BB164: 42043.48003 | BC164: 4.308695652 | BD164: 42043.43819 | BE164: 4.191304348 | BF164: 42043.52708 | BH164: 42043.57917 | BI164: 42043.56875
A165: 0 | B165: 0 | C165: 2019-02-09T19:04:00 | D165: 2019-02-09 | F165: 2 | I165: 6 | K165: 42043.79444 | L165: 1.2 | M165: LW | N165: 0.6259541985 | O165: 19:04:00 | P165: 17:00:00 | Q165: 23:00:00 | R165: 0.6555555556 | S165: 42043.82785 | T165: 1.435877863 | U165: 42043.89383 | V165: 42043.80737 | W165: 1.298473282 | X165: 42043.75278 | Y165: 42043.8081 | Z165: 1.248854962 | AA165: 42043.77037 | AB165: 42043.80008 | AC165: 1.086259542 | AD165: Cls | AE165: 42043.63125 | AF165: 42043.78187 | AG165: 1.048854962 | AH165: 42043.776 | AI165: 1.148854962 | AJ165: 42043.82558 | AK165: 1.498473282 | AL165: 42043.82558 | AM165: 1.498473282 | AN165: 42043.81636 | AO165: 1.498473282 | AP165: 42043.82103 | AQ165: 1.361068702 | AR165: 42043.78403 | AS165: 42043.80833 | AT165: 42043.78403 | AU165: 1.248854962 | AV165: 42043.78858 | AW165: 1.186259542 | AX165: 42043.776 | AY165: 1.048854962 | AZ165: 42043.77253 | BA165: 0.986259542 | BB165: 42043.76786 | BC165: 1.086259542 | BD165: 42043.72272 | BE165: 0.9366412214 | BF165: 42043.81875 | BH165: 42043.83611 | BI165: 42043.82569
A166: 0 | B166: 0 | C166: 2019-02-10T01:14:00 | D166: 2019-02-10 | E166: 2019-02-10 | F166: 2 | G166: Feb | H166: 10 | I166: 7 | J166: Sun | K166: 42044.05139 | L166: 5.07 | M166: HW | N166: 0.5043478261 | O166: 01:14:00 | P166: 00:00:00 | Q166: 06:00:00 | R166: 0.7944444444 | S166: 42044.06661 | T166: 6.806956522 | U166: 42044.13258 | V166: 42044.06937 | W166: 6.556521739 | X166: 42044.00972 | Y166: 42044.03954 | Z166: 5.005217391 | AA166: 42044.02913 | AB166: 42044.03056 | AC166: 4.605217391 | AD166: Opn | AE166: 42043.91597 | AF166: 42044.02718 | AG166: 4.054782609 | AH166: 42044.00216 | AI166: 4.404347826 | AJ166: 42044.06732 | AK166: 6.706956522 | AL166: 42044.06804 | AM166: 6.657391304 | AN166: 42044.06385 | AO166: 6.456521739 | AP166: 42044.06599 | AQ166: 5.856521739 | AR166: 42044.04097 | AS166: 42044.06181 | AT166: 42044.02299 | AU166: 4.605217391 | AV166: 42044.02299 | AW166: 4.405217391 | AX166: 42044.00145 | AY166: 4.155652174 | AZ166: 42043.99797 | BA166: 4.005217391 | BB166: 42043.9945 | BC166: 3.954782609 | BD166: 42043.95131 | BE166: 3.805217391 | BF166: 42044.04097 | BH166: 42044.09306 | BI166: 42044.08264
A167: 0 | B167: 0 | C167: 2019-02-10T07:17:00 | D167: 2019-02-10 | E167: Sun | F167: 2 | I167: 7 | K167: 42044.30347 | L167: 1.43 | M167: LW | N167: 0.4503816794 | O167: 07:17:00 | P167: 05:00:00 | Q167: 11:00:00 | R167: 0.6194444444 | S167: 42044.33638 | T167: 1.734351145 | U167: 42044.40235 | V167: 42044.31702 | W167: 1.579389313 | X167: 42044.26181 | Y167: 42044.31638 | Z167: 1.459541985 | AA167: 42044.28015 | AB167: 42044.3086 | AC167: 1.314503817 | AD167: Cls | AE167: 42044.14514 | AF167: 42044.2914 | AG167: 1.259541985 | AH167: 42044.28528 | AI167: 1.359541985 | AJ167: 42044.33423 | AK167: 1.779389313 | AL167: 42044.33423 | AM167: 1.779389313 | AN167: 42044.32514 | AO167: 1.779389313 | AP167: 42044.32993 | AQ167: 1.624427481 | AR167: 42044.29306 | AS167: 42044.31736 | AT167: 42044.29306 | AU167: 1.459541985 | AV167: 42044.29736 | AW167: 1.414503817 | AX167: 42044.28528 | AY167: 1.259541985 | AZ167: 42044.28181 | BA167: 1.214503817 | BB167: 42044.27702 | BC167: 1.314503817 | BD167: 42044.23188 | BE167: 1.094656489 | BF167: 42044.32778 | BH167: 42044.34514 | BI167: 42044.33472
A168: 0 | B168: 0 | C168: 2019-02-10T13:29:00 | D168: 2019-02-10 | F168: 2 | I168: 7 | K168: 42044.56181 | L168: 5.3 | M168: HW | N168: 0.7043478261 | O168: 13:29:00 | P168: 12:00:00 | Q168: 18:00:00 | R168: 0.7527777778 | S168: 42044.57659 | T168: 7.126956522 | U168: 42044.64256 | V168: 42044.57921 | W168: 6.856521739 | X168: 42044.52014 | Y168: 42044.54967 | Z168: 5.245217391 | AA168: 42044.53926 | AB168: 42044.54097 | AC168: 4.845217391 | AD168: Opn | AE168: 42044.42639 | AF168: 42044.53832 | AG168: 4.274782609 | AH168: 42044.51316 | AI168: 4.604347826 | AJ168: 42044.57745 | AK168: 7.026956522 | AL168: 42044.57831 | AM168: 6.997391304 | AN168: 42044.57398 | AO168: 6.756521739 | AP168: 42044.57655 | AQ168: 6.156521739 | AR168: 42044.55139 | AS168: 42044.57222 | AT168: 42044.53399 | AU168: 4.845217391 | AV168: 42044.53399 | AW168: 4.645217391 | AX168: 42044.5123 | AY168: 4.415652174 | AZ168: 42044.50883 | BA168: 4.245217391 | BB168: 42044.50535 | BC168: 4.174782609 | BD168: 42044.46115 | BE168: 4.045217391 | BF168: 42044.55139 | BH168: 42044.60347 | BI168: 42044.59306
A169: 0 | B169: 0 | C169: 2019-02-10T19:41:00 | D169: 2019-02-10 | F169: 2 | I169: 7 | K169: 42044.82014 | L169: 1.34 | M169: LW | N169: 0.5190839695 | O169: 19:41:00 | P169: 17:00:00 | Q169: 23:00:00 | R169: 0.5527777778 | S169: 42044.85212 | T169: 1.617557252 | U169: 42044.91809 | V169: 42044.83485 | W169: 1.469465649 | X169: 42044.77847 | Y169: 42044.83166 | Z169: 1.377099237 | AA169: 42044.79821 | AB169: 42044.82434 | AC169: 1.22519084 | AD169: Cls | AE169: 42044.65556 | AF169: 42044.80899 | AG169: 1.177099237 | AH169: 42044.80241 | AI169: 1.277099237 | AJ169: 42044.8502 | AK169: 1.669465649 | AL169: 42044.8502 | AM169: 1.669465649 | AN169: 42044.84134 | AO169: 1.669465649 | AP169: 42044.84636 | AQ169: 1.521374046 | AR169: 42044.80972 | AS169: 42044.83403 | AT169: 42044.80972 | AU169: 1.377099237 | AV169: 42044.81356 | AW169: 1.32519084 | AX169: 42044.80241 | AY169: 1.177099237 | AZ169: 42044.79894 | BA169: 1.12519084 | BB169: 42044.79391 | BC169: 1.22519084 | BD169: 42044.74878 | BE169: 1.032824427 | BF169: 42044.84444 | BH169: 42044.86181 | BI169: 42044.85139
A170: 0 | B170: 0 | C170: 2019-02-11T01:51:00 | D170: 2019-02-11 | E170: 2019-02-11 | F170: 2 | G170: Feb | H170: 11 | I170: 1 | J170: Mon | K170: 42045.07708 | L170: 4.93 | M170: HW | N170: 0.3826086957 | O170: 01:51:00 | P170: 00:00:00 | Q170: 06:00:00 | R170: 0.6916666667 | S170: 42045.09123 | T170: 6.612173913 | U170: 42045.1572 | V170: 42045.09363 | W170: 6.373913043 | X170: 42045.03542 | Y170: 42045.06453 | Z170: 4.859130435 | AA170: 42045.05411 | AB170: 42045.05625 | AC170: 4.459130435 | AD170: Opn | AE170: 42044.94167 | AF170: 42045.05466 | AG170: 3.920869565 | AH170: 42045.02928 | AI170: 4.282608696 | AJ170: 42045.0923 | AK170: 6.512173913 | AL170: 42045.09337 | AM170: 6.450434783 | AN170: 42045.08883 | AO170: 6.273913043 | AP170: 42045.09204 | AQ170: 5.673913043 | AR170: 42045.06667 | AS170: 42045.0875 | AT170: 42045.05012 | AU170: 4.459130435 | AV170: 42045.05012 | AW170: 4.259130435 | AX170: 42045.02821 | AY170: 3.997391304 | AZ170: 42045.02474 | BA170: 3.859130435 | BB170: 42045.02127 | BC170: 3.820869565 | BD170: 42044.97558 | BE170: 3.659130435 | BF170: 42045.06667 | BH170: 42045.11875 | BI170: 42045.10833
A171: 0 | B171: 0 | C171: 2019-02-11T07:56:00 | D171: 2019-02-11 | E171: Mon | F171: 2 | I171: 1 | K171: 42045.33056 | L171: 1.61 | M171: LW | N171: 0.3129770992 | O171: 07:56:00 | P171: 05:00:00 | Q171: 11:00:00 | R171: 0.5111111111 | S171: 42045.36196 | T171: 1.967938931 | U171: 42045.42793 | V171: 42045.34599 | W171: 1.799236641 | X171: 42045.28889 | Y171: 42045.3412 | Z171: 1.624427481 | AA171: 42045.30949 | AB171: 42045.33418 | AC171: 1.493129771 | AD171: Cls | AE171: 42045.17083 | AF171: 42045.31998 | AG171: 1.424427481 | AH171: 42045.31312 | AI171: 1.524427481 | AJ171: 42045.36019 | AK171: 1.999236641 | AL171: 42045.36019 | AM171: 1.999236641 | AN171: 42045.35147 | AO171: 1.999236641 | AP171: 42045.35664 | AQ171: 1.830534351 | AR171: 42045.32014 | AS171: 42045.34444 | AT171: 42045.32014 | AU171: 1.624427481 | AV171: 42045.32369 | AW171: 1.593129771 | AX171: 42045.31312 | AY171: 1.424427481 | AZ171: 42045.30965 | BA171: 1.393129771 | BB171: 42045.30448 | BC171: 1.493129771 | BD171: 42045.25934 | BE171: 1.218320611 | BF171: 42045.35486 | BH171: 42045.37222 | BI171: 42045.36181
A172: 0 | B172: 0 | C172: 2019-02-11T14:09:00 | D172: 2019-02-11 | F172: 2 | I172: 1 | K172: 42045.58958 | L172: 5.13 | M172: HW | N172: 0.5565217391 | O172: 14:09:00 | P172: 12:00:00 | Q172: 18:00:00 | R172: 0.6416666667 | S172: 42045.60321 | T172: 6.890434783 | U172: 42045.66918 | V172: 42045.60544 | W172: 6.634782609 | X172: 42045.54792 | Y172: 42045.57668 | Z172: 5.067826087 | AA172: 42045.56626 | AB172: 42045.56875 | AC172: 4.667826087 | AD172: Opn | AE172: 42045.45417 | AF172: 42045.56803 | AG172: 4.112173913 | AH172: 42045.54248 | AI172: 4.456521739 | AJ172: 42045.60446 | AK172: 6.790434783 | AL172: 42045.6057 | AM172: 6.746086957 | AN172: 42045.60098 | AO172: 6.534782609 | AP172: 42045.60472 | AQ172: 5.934782609 | AR172: 42045.57917 | AS172: 42045.6 | AT172: 42045.56331 | AU172: 4.667826087 | AV172: 42045.56331 | AW172: 4.467826087 | AX172: 42045.54123 | AY172: 4.223478261 | AZ172: 42045.53776 | BA172: 4.067826087 | BB172: 42045.53429 | BC172: 4.012173913 | BD172: 42045.48738 | BE172: 3.867826087 | BF172: 42045.57917 | BH172: 42045.63125 | BI172: 42045.62083
A173: 0 | B173: 0 | C173: 2019-02-11T20:24:00 | D173: 2019-02-11 | F173: 2 | I173: 1 | K173: 42045.85 | L173: 1.52 | M173: LW | N173: 0.3816793893 | O173: 20:24:00 | P173: 17:00:00 | Q173: 23:00:00 | R173: 0.4333333333 | S173: 42045.88032 | T173: 1.851145038 | U173: 42045.9463 | V173: 42045.86678 | W173: 1.689312977 | X173: 42045.80833 | Y173: 42045.85903 | Z173: 1.541984733 | AA173: 42045.83056 | AB173: 42045.85255 | AC173: 1.403816794 | AD173: Cls | AE173: 42045.68333 | AF173: 42045.84051 | AG173: 1.341984733 | AH173: 42045.8331 | AI173: 1.441984733 | AJ173: 42045.87882 | AK173: 1.889312977 | AL173: 42045.87882 | AM173: 1.889312977 | AN173: 42045.87037 | AO173: 1.889312977 | AP173: 42045.87581 | AQ173: 1.727480916 | AR173: 42045.83958 | AS173: 42045.86389 | AT173: 42045.83958 | AU173: 1.541984733 | AV173: 42045.84259 | AW173: 1.503816794 | AX173: 42045.8331 | AY173: 1.341984733 | AZ173: 42045.82963 | BA173: 1.303816794 | BB173: 42045.82419 | BC173: 1.403816794 | BD173: 42045.77905 | BE173: 1.15648855 | BF173: 42045.87431 | BH173: 42045.89167 | BI173: 42045.88125
A174: 0 | B174: 0 | C174: 2019-02-12T02:35:00 | D174: 2019-02-12 | E174: 2019-02-12 | F174: 2 | G174: Feb | H174: 12 | I174: 2 | J174: Tue | K174: 42046.10764 | L174: 4.77 | M174: HW | N174: 0.2434782609 | O174: 02:35:00 | P174: 00:00:00 | Q174: 06:00:00 | R174: 0.5694444444 | S174: 42046.12052 | T174: 6.389565217 | U174: 42046.18649 | V174: 42046.12249 | W174: 6.165217391 | X174: 42046.06597 | Y174: 42046.09423 | Z174: 4.692173913 | AA174: 42046.08382 | AB174: 42046.08681 | AC174: 4.292173913 | AD174: Opn | AE174: 42045.97222 | AF174: 42046.08734 | AG174: 3.767826087 | AH174: 42046.06154 | AI174: 4.143478261 | AJ174: 42046.12201 | AK174: 6.289565217 | AL174: 42046.12351 | AM174: 6.213913043 | AN174: 42046.11854 | AO174: 6.065217391 | AP174: 42046.12302 | AQ174: 5.465217391 | AR174: 42046.09722 | AS174: 42046.11806 | AT174: 42046.08237 | AU174: 4.292173913 | AV174: 42046.08237 | AW174: 4.092173913 | AX174: 42046.06004 | AY174: 3.816521739 | AZ174: 42046.05657 | BA174: 3.692173913 | BB174: 42046.0531 | BC174: 3.667826087 | BD174: 42046.00444 | BE174: 3.492173913 | BF174: 42046.09722 | BH174: 42046.14931 | BI174: 42046.13889
A175: 0 | B175: 0 | C175: 2019-02-12T08:43:00 | D175: 2019-02-12 | E175: Tue | F175: 2 | I175: 2 | K175: 42046.36319 | L175: 1.82 | M175: LW | N175: 0.1526717557 | O175: 08:43:00 | P175: 05:00:00 | Q175: 11:00:00 | R175: 0.3805555556 | S175: 42046.39279 | T175: 2.240458015 | U175: 42046.45876 | V175: 42046.38089 | W175: 2.055725191 | X175: 42046.32153 | Y175: 42046.37112 | Z175: 1.816793893 | AA175: 42046.34485 | AB175: 42046.36501 | AC175: 1.701526718 | AD175: Cls | AE175: 42046.20139 | AF175: 42046.35444 | AG175: 1.616793893 | AH175: 42046.34666 | AI175: 1.716793893 | AJ175: 42046.39146 | AK175: 2.255725191 | AL175: 42046.39146 | AM175: 2.255725191 | AN175: 42046.3832 | AO175: 2.255725191 | AP175: 42046.38882 | AQ175: 2.070992366 | AR175: 42046.35278 | AS175: 42046.37708 | AT175: 42046.35278 | AU175: 1.816793893 | AV175: 42046.35542 | AW175: 1.801526718 | AX175: 42046.34666 | AY175: 1.616793893 | AZ175: 42046.34319 | BA175: 1.601526718 | BB175: 42046.33757 | BC175: 1.701526718 | BD175: 42046.29243 | BE175: 1.36259542 | BF175: 42046.3875 | BH175: 42046.40486 | BI175: 42046.39444
A176: 0 | B176: 0 | C176: 2019-02-12T14:56:00 | D176: 2019-02-12 | F176: 2 | I176: 2 | K176: 42046.62222 | L176: 4.92 | M176: HW | N176: 0.3739130435 | O176: 14:56:00 | P176: 12:00:00 | Q176: 18:00:00 | R176: 0.5111111111 | S176: =IF($M176="HW",$K176+S$6+(S$5-S$6)*$R176,$K176+S$8+(S$7-S$8)*$R176) -> 42046.63449 | T176: 6.59826087 | U176: 42046.70046 | V176: 42046.63627 | W176: 6.360869565 | X176: =IF($M176="HW",$K176+X$6+(X$5-X$6)*$R176,$K176+X$8+(X$7-X$8)*$R176) -> 42046.58056 | Y176: 42046.60841 | Z176: 4.848695652 | AA176: 42046.59799 | AB176: 42046.60139 | AC176: 4.448695652 | AD176: Opn | AE176: 42046.48681 | AF176: 42046.60293 | AG176: 3.911304348 | AH176: 42046.57693 | AI176: 4.273913043 | AJ176: 42046.63619 | AK176: 6.49826087 | AL176: 42046.63789 | AM176: 6.435652174 | AN176: 42046.63272 | AO176: 6.260869565 | AP176: 42046.63781 | AQ176: 5.660869565 | AR176: =IF($M176="HW",$K176+AR$6+(AR$5-AR$6)*$R176,$K176+AR$8+(AR$7-AR$8)*$R176) -> 42046.61181 | AS176: 42046.63264 | AT176: 42046.59776 | AU176: 4.448695652 | AV176: 42046.59776 | AW176: 4.248695652 | AX176: 42046.57523 | AY176: 3.986086957 | AZ176: 42046.57176 | BA176: 3.848695652 | BB176: 42046.56829 | BC176: 3.811304348 | BD176: 42046.51821 | BE176: 3.648695652 | BF176: =IF($M176="HW",$K176+BF$6+(BF$5-BF$6)*$R176,$K176+BF$8+(BF$7-BF$8)*$R176) -> 42046.61181 | BH176: 42046.66389 | BI176: 42046.65347
A177: 0 | B177: 0 | C177: 2019-02-12T21:15:00 | D177: 2019-02-12 | F177: 2 | I177: 2 | K177: 42046.88542 | L177: 1.74 | M177: LW | N177: 0.213740458 | O177: 21:15:00 | P177: 17:00:00 | Q177: 23:00:00 | R177: 0.2916666667 | S177: 42046.91377 | T177: 2.136641221 | U177: 42046.97975 | V177: 42046.90466 | W177: 1.958015267 | X177: 42046.84375 | Y177: 42046.89149 | Z177: 1.74351145 | AA177: 42046.86892 | AB177: 42046.886 | AC177: 1.622137405 | AD177: Cls | AE177: 42046.71597 | AF177: 42046.87789 | AG177: 1.54351145 | AH177: 42046.8695 | AI177: 1.64351145 | AJ177: 42046.91276 | AK177: 2.158015267 | AL177: 42046.91276 | AM177: 2.158015267 | AN177: 42046.9048 | AO177: 2.158015267 | AP177: 42046.91073 | AQ177: 1.979389313 | AR177: 42046.875 | AS177: 42046.89931 | AT177: 42046.875 | AU177: 1.74351145 | AV177: 42046.87703 | AW177: 1.722137405 | AX177: 42046.8695 | AY177: 1.54351145 | AZ177: 42046.86603 | BA177: 1.522137405 | BB177: 42046.8601 | BC177: 1.622137405 | BD177: 42046.81496 | BE177: 1.307633588 | BF177: 42046.90972 | BH177: 42046.92708 | BI177: 42046.91667
A178: 0 | B178: 0 | C178: 2019-02-13T03:29:00 | D178: 2019-02-13 | E178: 2019-02-13 | F178: 2 | G178: Feb | H178: 13 | I178: 3 | J178: Wed | K178: 42047.14514 | L178: 4.6 | M178: HW | N178: 0.09565217391 | O178: 03:29:00 | P178: 00:00:00 | Q178: 06:00:00 | R178: 0.4194444444 | S178: 42047.15645 | T178: 6.153043478 | U178: 42047.22242 | V178: 42047.15791 | W178: 5.943478261 | X178: 42047.10347 | Y178: 42047.13069 | Z178: 4.514782609 | AA178: 42047.12027 | AB178: 42047.12431 | AC178: 4.114782609 | AD178: Opn | AE178: 42047.00972 | AF178: 42047.12744 | AG178: 3.605217391 | AH178: 42047.10112 | AI178: 3.995652174 | AJ178: 42047.15847 | AK178: 6.053043478 | AL178: 42047.16048 | AM178: 5.962608696 | AN178: 42047.155 | AO178: 5.843478261 | AP178: 42047.16104 | AQ178: 5.243478261 | AR178: 42047.13472 | AS178: 42047.15556 | AT178: 42047.12195 | AU178: 4.114782609 | AV178: 42047.12195 | AW178: 3.914782609 | AX178: 42047.0991 | AY178: 3.624347826 | AZ178: 42047.09563 | BA178: 3.514782609 | BB178: 42047.09216 | BC178: 3.505217391 | BD178: 42047.03985 | BE178: 3.314782609 | BF178: 42047.13472 | BH178: 42047.18681 | BI178: 42047.17639
A179: 0 | B179: 0 | C179: 2019-02-13T09:42:00 | D179: 2019-02-13 | E179: Wed | F179: 2 | I179: 3 | K179: 42047.40417 | L179: 2.02 | M179: LW | N179: 0 | O179: 09:42:00 | P179: 05:00:00 | Q179: 11:00:00 | R179: 0.2166666667 | S179: 42047.43148 | T179: 2.5 | U179: 42047.49745 | V179: 42047.42471 | W179: 2.3 | X179: 42047.3625 | Y179: 42047.40868 | Z179: 2 | AA179: 42047.38924 | AB179: 42047.4037 | AC179: 1.9 | AD179: Cls | AE179: 42047.23889 | AF179: 42047.39769 | AG179: 1.8 | AH179: 42047.38877 | AI179: 1.9 | AJ179: 42047.43073 | AK179: 2.5 | AL179: 42047.43073 | AM179: 2.5 | AN179: 42047.42303 | AO179: 2.5 | AP179: 42047.42922 | AQ179: 2.3 | AR179: 42047.39375 | AS179: 42047.41806 | AT179: 42047.39375 | AU179: 2 | AV179: 42047.39525 | AW179: 2 | AX179: 42047.38877 | AY179: 1.8 | AZ179: 42047.3853 | BA179: 1.8 | BB179: 42047.37911 | BC179: 1.9 | BD179: 42047.33397 | BE179: 1.5 | BF179: 42047.42847 | BH179: 42047.44583 | BI179: 42047.43542
A180: 0 | B180: 0 | C180: 2019-02-13T15:57:00 | D180: 2019-02-13 | F180: 2 | I180: 3 | K180: 42047.66458 | L180: 4.72 | M180: HW | N180: 0.2 | O180: 15:57:00 | P180: 12:00:00 | Q180: 18:00:00 | R180: 0.3416666667 | S180: 42047.67509 | T180: 6.32 | U180: 42047.74106 | V180: 42047.67627 | W180: 6.1 | X180: 42047.62292 | Y180: 42047.64959 | Z180: 4.64 | AA180: 42047.63918 | AB180: 42047.64375 | AC180: 4.24 | AD180: Opn | AE180: 42047.52917 | AF180: 42047.64823 | AG180: 3.72 | AH180: 42047.62164 | AI180: 4.1 | AJ180: 42047.67737 | AK180: 6.22 | AL180: 42047.67966 | AM180: 6.14 | AN180: 42047.6739 | AO180: 6 | AP180: 42047.68076 | AQ180: 5.4 | AR180: 42047.65417 | AS180: 42047.675 | AT180: 42047.64248 | AU180: 4.24 | AV180: 42047.64248 | AW180: 4.04 | AX180: 42047.61936 | AY180: 3.76 | AZ180: 42047.61589 | BA180: 3.64 | BB180: 42047.61241 | BC180: 3.62 | BD180: 42047.55822 | BE180: 3.44 | BF180: 42047.65417 | BH180: 42047.70625 | BI180: 42047.69583
A181: 0 | B181: 0 | C181: 2019-02-13T22:20:00 | D181: 2019-02-13 | F181: 2 | I181: 3 | K181: 42047.93056 | L181: 1.92 | M181: LW | N181: 0.07633587786 | O181: 22:20:00 | P181: 17:00:00 | Q181: 23:00:00 | R181: 0.1111111111 | S181: 42047.9564 | T181: 2.370229008 | U181: 42048.02238 | V181: 42047.95293 | W181: 2.177862595 | X181: 42047.88889 | Y181: 42047.93287 | Z181: 1.908396947 | AA181: 42047.91782 | AB181: 42047.92863 | AC181: 1.800763359 | AD181: Cls | AE181: 42047.75833 | AF181: 42047.92554 | AG181: 1.708396947 | AH181: 42047.9159 | AI181: 1.808396947 | AJ181: 42047.95602 | AK181: 2.377862595 | AL181: 42047.95602 | AM181: 2.377862595 | AN181: 42047.94869 | AO181: 2.377862595 | AP181: 42047.95525 | AQ181: 2.185496183 | AR181: 42047.92014 | AS181: 42047.94444 | AT181: 42047.92014 | AU181: 1.908396947 | AV181: 42047.92091 | AW181: 1.900763359 | AX181: 42047.9159 | AY181: 1.708396947 | AZ181: 42047.91242 | BA181: 1.700763359 | BB181: 42047.90586 | BC181: 1.800763359 | BD181: 42047.86073 | BE181: 1.43129771 | BF181: 42047.95486 | BH181: 42047.97222 | BI181: 42047.96181
A182: 0 | B182: 0 | C182: 2019-02-14T04:39:00 | D182: 2019-02-14 | E182: 2019-02-14 | F182: 2 | G182: Feb | H182: 14 | I182: 4 | J182: Thu | K182: 42048.19375 | L182: 4.48 | M182: HW | N182: -0.008695652174 | O182: 04:39:00 | P182: 00:00:00 | Q182: 06:00:00 | R182: 0.225 | S182: 42048.20304 | T182: 5.986086957 | U182: 42048.26901 | V182: 42048.20382 | W182: 5.786956522 | X182: 42048.15208 | Y182: 42048.17795 | Z182: 4.389565217 | AA182: 42048.16753 | AB182: 42048.17292 | AC182: 3.989565217 | AD182: Opn | AE182: 42048.05833 | AF182: 42048.17943 | AG182: 3.490434783 | AH182: 42048.15243 | AI182: 3.891304348 | AJ182: 42048.20573 | AK182: 5.886086957 | AL182: 42048.20842 | AM182: 5.785217391 | AN182: 42048.20226 | AO182: 5.686956522 | AP182: 42048.21033 | AQ182: 5.086956522 | AR182: 42048.18333 | AS182: 42048.20417 | AT182: 42048.17326 | AU182: 3.989565217 | AV182: 42048.17326 | AW182: 3.789565217 | AX182: 42048.14974 | AY182: 3.488695652 | AZ182: 42048.14627 | BA182: 3.389565217 | BB182: 42048.1428 | BC182: 3.390434783 | BD182: 42048.08576 | BE182: 3.189565217 | BF182: 42048.18333 | BH182: 42048.23542 | BI182: 42048.225
A183: 0 | B183: 0 | C183: 2019-02-14T10:57:00 | D183: 2019-02-14 | E183: Thu | F183: 2 | I183: 4 | K183: 42048.45625 | L183: 2.11 | M183: LW | N183: -0.06870229008 | O183: 10:57:00 | P183: 05:00:00 | Q183: 11:00:00 | R183: 0.008333333322 | S183: 42048.48067 | T183: 2.616793893 | U183: 42048.54664 | V183: 42048.48041 | W183: 2.409923664 | X183: 42048.41458 | Y183: 42048.45642 | Z183: 2.082442748 | AA183: 42048.44566 | AB183: 42048.45289 | AC183: 1.989312977 | AD183: Cls | AE183: 42048.2875 | AF183: 42048.45266 | AG183: 1.882442748 | AH183: 42048.4423 | AI183: 1.982442748 | AJ183: 42048.48064 | AK183: 2.609923664 | AL183: 42048.48064 | AM183: 2.609923664 | AN183: 42048.47367 | AO183: 2.609923664 | AP183: 42048.48058 | AQ183: 2.403053435 | AR183: 42048.44583 | AS183: 42048.47014 | AT183: 42048.44583 | AU183: 2.082442748 | AV183: 42048.44589 | AW183: 2.089312977 | AX183: 42048.4423 | AY183: 1.882442748 | AZ183: 42048.43883 | BA183: 1.889312977 | BB183: 42048.43192 | BC183: 1.989312977 | BD183: 42048.38678 | BE183: 1.561832061 | BF183: 42048.48056 | BH183: 42048.49792 | BI183: 42048.4875
A184: 0 | B184: 0 | C184: 2019-02-14T17:14:00 | D184: 2019-02-14 | F184: 2 | I184: 4 | K184: 42048.71806 | L184: 4.62 | M184: HW | N184: 0.1130434783 | O184: 17:14:00 | P184: 12:00:00 | Q184: 18:00:00 | R184: 0.1277777778 | S184: 42048.72633 | T184: 6.180869565 | U184: 42048.7923 | V184: 42048.72677 | W184: 5.969565217 | X184: 42048.67639 | Y184: 42048.70158 | Z184: 4.535652174 | AA184: 42048.69117 | AB184: 42048.69722 | AC184: 4.135652174 | AD184: Opn | AE184: 42048.58264 | AF184: 42048.70542 | AG184: 3.624347826 | AH184: 42048.67809 | AI184: 4.013043478 | AJ184: 42048.72936 | AK184: 6.080869565 | AL184: 42048.73239 | AM184: 5.992173913 | AN184: 42048.72589 | AO184: 5.869565217 | AP184: 42048.73497 | AQ184: 5.269565217 | AR184: 42048.70764 | AS184: 42048.72847 | AT184: 42048.69892 | AU184: 4.135652174 | AV184: 42048.69892 | AW184: 3.935652174 | AX184: 42048.67506 | AY184: 3.646956522 | AZ184: 42048.67159 | BA184: 3.535652174 | BB184: 42048.66811 | BC184: 3.524347826 | BD184: 42048.60872 | BE184: 3.335652174 | BF184: 42048.70764 | BH184: 42048.75972 | BI184: 42048.74931
A185: 0 | B185: 0 | C185: 2019-02-14T23:37:00 | D185: 2019-02-14 | F185: 2 | I185: 4 | K185: 42048.98403 | L185: 1.96 | M185: LW | N185: 0.04580152672 | O185: 23:37:00 | P185: 1.208333333 | Q185: 23:00:00 | R185: 0.1027777778 | S185: 42049.00976 | T185: 2.422137405 | U185: 42049.07573 | V185: 42049.00655 | W185: 2.226717557 | X185: 42048.94236 | Y185: 42048.98617 | Z185: 1.945038168 | AA185: 42048.97147 | AB185: 42048.98198 | AC185: 1.840458015 | AD185: Cls | AE185: 42048.81181 | AF185: 42048.97913 | AG185: 1.745038168 | AH185: 42048.96943 | AI185: 1.845038168 | AJ185: 42049.0094 | AK185: 2.426717557 | AL185: 42049.0094 | AM185: 2.426717557 | AN185: 42049.0021 | AO185: 2.426717557 | AP185: 42049.00869 | AQ185: 2.23129771 | AR185: 42048.97361 | AS185: 42048.99792 | AT185: 42048.97361 | AU185: 1.945038168 | AV185: 42048.97432 | AW185: 1.940458015 | AX185: 42048.96943 | AY185: 1.745038168 | AZ185: 42048.96595 | BA185: 1.740458015 | BB185: 42048.95937 | BC185: 1.840458015 | BD185: 42048.91423 | BE185: 1.458778626 | BF185: 42049.00833 | BH185: 42049.02569 | BI185: 42049.01528
A186: 0 | B186: 0 | C186: 2019-02-15T06:03:00 | D186: 2019-02-15 | E186: 2019-02-15 | F186: 2 | G186: Feb | H186: 15 | I186: 5 | J186: Fri | K186: 42049.25208 | L186: 4.53 | M186: HW | N186: 0.0347826087 | O186: 06:03:00 | P186: 12:00:00 | Q186: 06:00:00 | R186: 0.008333333331 | S186: 42049.25911 | T186: 6.055652174 | U186: 42049.32509 | V186: 42049.25914 | W186: 5.852173913 | X186: 42049.21042 | Y186: 42049.23478 | Z186: 4.44173913 | AA186: 42049.22436 | AB186: 42049.23125 | AC186: 4.04173913 | AD186: Opn | AE186: 42049.11667 | AF186: 42049.24152 | AG186: 3.53826087 | AH186: 42049.21377 | AI186: 3.934782609 | AJ186: 42049.26256 | AK186: 5.955652174 | AL186: 42049.266 | AM186: 5.859130435 | AN186: 42049.25909 | AO186: 5.752173913 | AP186: 42049.26942 | AQ186: 5.152173913 | AR186: 42049.24167 | AS186: 42049.2625 | AT186: 42049.23461 | AU186: 4.04173913 | AV186: 42049.23461 | AW186: 3.84173913 | AX186: 42049.21033 | AY186: 3.545217391 | AZ186: 42049.20686 | BA186: 3.44173913 | BB186: 42049.20339 | BC186: 3.43826087 | BD186: 42049.14109 | BE186: 3.24173913 | BF186: 42049.24167 | BH186: 42049.29375 | BI186: 42049.28333
A187: 0 | B187: 0 | C187: 2019-02-15T12:20:00 | D187: 2019-02-15 | E187: Fri | F187: 2 | I187: 5 | K187: 42049.51389 | L187: 1.98 | M187: LW | N187: 0.03053435115 | O187: 12:20:00 | P187: 17:00:00 | Q187: 11:00:00 | R187: 0.2222222222 | S187: 42049.54128 | T187: 2.448091603 | U187: 42049.60725 | V187: 42049.53434 | W187: 2.251145038 | X187: 42049.47222 | Y187: 42049.51852 | Z187: 1.963358779 | AA187: 42049.49884 | AB187: 42049.5135 | AC187: 1.860305344 | AD187: Cls | AE187: 42049.34583 | AF187: 42049.50733 | AG187: 1.763358779 | AH187: 42049.49846 | AI187: 1.863358779 | AJ187: 42049.54051 | AK187: 2.451145038 | AL187: 42049.54051 | AM187: 2.451145038 | AN187: 42049.53279 | AO187: 2.451145038 | AP187: 42049.53897 | AQ187: 2.254198473 | AR187: 42049.50347 | AS187: 42049.52778 | AT187: 42049.50347 | AU187: 1.963358779 | AV187: 42049.50502 | AW187: 1.960305344 | AX187: 42049.49846 | AY187: 1.763358779 | AZ187: 42049.49498 | BA187: 1.760305344 | BB187: 42049.48881 | BC187: 1.860305344 | BD187: 42049.44367 | BE187: 1.472519084 | BF187: 42049.53819 | BH187: 42049.55556 | BI187: 42049.54514
A188: 0 | B188: 0 | C188: 2019-02-15T18:40:00 | D188: 2019-02-15 | F188: 2 | I188: 5 | K188: 42049.77778 | L188: 4.71 | M188: HW | N188: 0.1913043478 | O188: 18:40:00 | P188: 1 | Q188: 18:00:00 | R188: 0.1111111111 | S188: 42049.78588 | T188: 6.306086957 | U188: 42049.85185 | V188: 42049.78627 | W188: 6.086956522 | X188: 42049.73611 | Y188: 42049.76119 | Z188: 4.629565217 | AA188: 42049.75077 | AB188: 42049.75694 | AC188: 4.229565217 | AD188: Opn | AE188: 42049.64236 | AF188: 42049.76543 | AG188: 3.710434783 | AH188: 42049.73804 | AI188: 4.091304348 | AJ188: 42049.78897 | AK188: 6.206086957 | AL188: 42049.79205 | AM188: 6.125217391 | AN188: 42049.78549 | AO188: 5.986956522 | AP188: 42049.79475 | AQ188: 5.386956522 | AR188: 42049.76736 | AS188: 42049.78819 | AT188: 42049.75887 | AU188: 4.229565217 | AV188: 42049.75887 | AW188: 4.029565217 | AX188: 42049.73495 | AY188: 3.748695652 | AZ188: 42049.73148 | BA188: 3.629565217 | BB188: 42049.72801 | BC188: 3.610434783 | BD188: 42049.66821 | BE188: 3.429565217 | BF188: 42049.76736 | BH188: 42049.81944 | BI188: 42049.80903
A189: 0 | B189: 0 | C189: 2019-02-16T00:54:00 | D189: 2019-02-16 | E189: 2019-02-16 | F189: 2 | G189: Feb | H189: 16 | I189: 6 | J189: Sat | K189: 42050.0375 | L189: 1.79 | M189: LW | N189: 0.1755725191 | O189: 00:54:00 | P189: 05:00:00 | Q189: -0.04166666667 | R189: 0.3166666667 | S189: 42050.0662 | T189: 2.201526718 | U189: 42050.13218 | V189: 42050.05631 | W189: 2.019083969 | X189: 42049.99583 | Y189: 42050.0441 | Z189: 1.789312977 | AA189: 42050.02049 | AB189: 42050.03843 | AC189: 1.671755725 | AD189: Cls | AE189: 42049.87153 | AF189: 42050.02963 | AG189: 1.589312977 | AH189: 42050.02141 | AI189: 1.689312977 | AJ189: 42050.0651 | AK189: 2.219083969 | AL189: 42050.0651 | AM189: 2.219083969 | AN189: 42050.05706 | AO189: 2.219083969 | AP189: 42050.06291 | AQ189: 2.036641221 | AR189: 42050.02708 | AS189: 42050.05139 | AT189: 42050.02708 | AU189: 1.789312977 | AV189: 42050.02928 | AW189: 1.771755725 | AX189: 42050.02141 | AY189: 1.589312977 | AZ189: 42050.01794 | BA189: 1.571755725 | BB189: 42050.01209 | BC189: 1.671755725 | BD189: 42049.96696 | BE189: 1.341984733 | BF189: 42050.06181 | BH189: 42050.07917 | BI189: 42050.06875
A190: 0 | B190: 0 | C190: 2019-02-16T07:20:00 | D190: 2019-02-16 | E190: Sat | F190: 2 | I190: 6 | K190: 42050.30556 | L190: 4.79 | M190: HW | N190: 0.2608695652 | O190: 07:20:00 | P190: 12:00:00 | Q190: 06:00:00 | R190: 0.2222222222 | S190: 42050.31481 | T190: 6.417391304 | U190: 42050.38079 | V190: 42050.31559 | W190: 6.191304348 | X190: 42050.26389 | Y190: 42050.28974 | Z190: 4.713043478 | AA190: 42050.27932 | AB190: 42050.28472 | AC190: 4.313043478 | AD190: Opn | AE190: 42050.17014 | AF190: 42050.29128 | AG190: 3.786956522 | AH190: 42050.26427 | AI190: 4.160869565 | AJ190: 42050.31752 | AK190: 6.317391304 | AL190: 42050.32022 | AM190: 6.243478261 | AN190: 42050.31404 | AO190: 6.091304348 | AP190: 42050.32215 | AQ190: 5.491304348 | AR190: 42050.29514 | AS190: 42050.31597 | AT190: 42050.28511 | AU190: 4.313043478 | AV190: 42050.28511 | AW190: 4.113043478 | AX190: 42050.26157 | AY190: 3.839130435 | AZ190: 42050.2581 | BA190: 3.713043478 | BB190: 42050.25463 | BC190: 3.686956522 | BD190: 42050.19753 | BE190: 3.513043478 | BF190: 42050.29514 | BH190: 42050.34722 | BI190: 42050.33681
A191: 0 | B191: 0 | C191: 2019-02-16T13:32:00 | D191: 2019-02-16 | F191: 2 | I191: 6 | K191: 42050.56389 | L191: 1.64 | M191: LW | N191: 0.2900763359 | O191: 13:32:00 | P191: 17:00:00 | Q191: 11:00:00 | R191: 0.4222222222 | S191: 42050.59406 | T191: 2.006870229 | U191: 42050.66003 | V191: 42050.58086 | W191: 1.835877863 | X191: 42050.52222 | Y191: 42050.57269 | Z191: 1.651908397 | AA191: 42050.54468 | AB191: 42050.56628 | AC191: 1.522900763 | AD191: Cls | AE191: 42050.39931 | AF191: 42050.55455 | AG191: 1.451908397 | AH191: 42050.54707 | AI191: 1.551908397 | AJ191: 42050.59259 | AK191: 2.035877863 | AL191: 42050.59259 | AM191: 2.035877863 | AN191: 42050.58418 | AO191: 2.035877863 | AP191: 42050.58966 | AQ191: 1.864885496 | AR191: 42050.55347 | AS191: 42050.57778 | AT191: 42050.55347 | AU191: 1.651908397 | AV191: 42050.5564 | AW191: 1.622900763 | AX191: 42050.54707 | AY191: 1.451908397 | AZ191: 42050.5436 | BA191: 1.422900763 | BB191: 42050.53812 | BC191: 1.522900763 | BD191: 42050.49298 | BE191: 1.238931298 | BF191: 42050.58819 | BH191: 42050.60556 | BI191: 42050.59514
A192: 0 | B192: 0 | C192: 2019-02-16T19:51:00 | D192: 2019-02-16 | F192: 2 | I192: 6 | K192: 42050.82708 | L192: 4.98 | M192: HW | N192: 0.4260869565 | O192: 19:51:00 | P192: 1 | Q192: 18:00:00 | R192: 0.3083333333 | S192: 42050.83724 | T192: 6.68173913 | U192: 42050.90321 | V192: 42050.83831 | W192: 6.439130435 | X192: 42050.78542 | Y192: 42050.81186 | Z192: 4.911304348 | AA192: 42050.80145 | AB192: 42050.80625 | AC192: 4.511304348 | AD192: Opn | AE192: 42050.69167 | AF192: 42050.81131 | AG192: 3.968695652 | AH192: 42050.78461 | AI192: 4.326086957 | AJ192: 42050.83964 | AK192: 6.58173913 | AL192: 42050.84204 | AM192: 6.524347826 | AN192: 42050.83617 | AO192: 6.339130435 | AP192: 42050.84337 | AQ192: 5.739130435 | AR192: 42050.81667 | AS192: 42050.8375 | AT192: 42050.80544 | AU192: 4.511304348 | AV192: 42050.80544 | AW192: 4.311304348 | AX192: 42050.7822 | AY192: 4.053913043 | AZ192: 42050.77873 | BA192: 3.911304348 | BB192: 42050.77526 | BC192: 3.868695652 | BD192: 42050.72025 | BE192: 3.711304348 | BF192: 42050.81667 | BH192: 42050.86875 | BI192: 42050.85833
A193: 0 | B193: 0 | C193: 2019-02-17T01:58:00 | D193: 2019-02-17 | E193: 2019-02-17 | F193: 2 | G193: Feb | H193: 17 | I193: 7 | J193: Sun | K193: 42051.08194 | L193: 1.47 | M193: LW | N193: 0.4198473282 | O193: 01:58:00 | P193: 05:00:00 | Q193: -0.04166666667 | R193: 0.4944444444 | S193: =IF($M193="HW",$K193+S$6+(S$5-S$6)*$R193,$K193+S$8+(S$7-S$8)*$R193) -> 42051.11312 | T193: 1.786259542 | U193: 42051.17909 | V193: 42051.09767 | W193: 1.628244275 | X193: =IF($M193="HW",$K193+X$6+(X$5-X$6)*$R193,$K193+X$8+(X$7-X$8)*$R193) -> 42051.04028 | Y193: 42051.09225 | Z193: 1.496183206 | AA193: 42051.06123 | AB193: 42051.08534 | AC193: 1.354198473 | AD193: Cls | AE193: 42050.92083 | AF193: 42051.0716 | AG193: 1.296183206 | AH193: 42051.06462 | AI193: 1.396183206 | AJ193: 42051.1114 | AK193: 1.828244275 | AL193: 42051.1114 | AM193: 1.828244275 | AN193: 42051.10274 | AO193: 1.828244275 | AP193: 42051.10797 | AQ193: 1.670229008 | AR193: =IF($M193="HW",$K193+AR$6+(AR$5-AR$6)*$R193,$K193+AR$8+(AR$7-AR$8)*$R193) -> 42051.07153 | AS193: 42051.09583 | AT193: 42051.07153 | AU193: 1.496183206 | AV193: 42051.07496 | AW193: 1.454198473 | AX193: 42051.06462 | AY193: 1.296183206 | AZ193: 42051.06115 | BA193: 1.254198473 | BB193: 42051.05592 | BC193: 1.354198473 | BD193: 42051.01078 | BE193: 1.122137405 | BF193: =IF($M193="HW",$K193+BF$6+(BF$5-BF$6)*$R193,$K193+BF$8+(BF$7-BF$8)*$R193) -> 42051.10625 | BH193: 42051.12361 | BI193: 42051.11319
A194: 0 | B194: 0 | C194: 2019-02-17T08:21:00 | D194: 2019-02-17 | E194: Sun | F194: 2 | I194: 7 | K194: 42051.34792 | L194: 5.16 | M194: HW | N194: 0.5826086957 | O194: 08:21:00 | P194: 12:00:00 | Q194: 06:00:00 | R194: 0.3916666667 | S194: 42051.35894 | T194: 6.932173913 | U194: 42051.42491 | V194: 42051.3603 | W194: 6.673913043 | X194: 42051.30625 | Y194: 42051.33328 | Z194: 5.099130435 | AA194: 42051.32286 | AB194: 42051.32708 | AC194: 4.699130435 | AD194: Opn | AE194: 42051.2125 | AF194: 42051.3307 | AG194: 4.140869565 | AH194: 42051.30428 | AI194: 4.482608696 | AJ194: 42051.36105 | AK194: 6.832173913 | AL194: 42051.36317 | AM194: 6.790434783 | AN194: 42051.35758 | AO194: 6.573913043 | AP194: 42051.36392 | AQ194: 5.973913043 | AR194: 42051.3375 | AS194: 42051.35833 | AT194: 42051.32512 | AU194: 4.699130435 | AV194: 42051.32512 | AW194: 4.499130435 | AX194: 42051.30217 | AY194: 4.257391304 | AZ194: 42051.2987 | BA194: 4.099130435 | BB194: 42051.29523 | BC194: 4.040869565 | BD194: 42051.24225 | BE194: 3.899130435 | BF194: 42051.3375 | BH194: 42051.38958 | BI194: 42051.37917
A195: 0 | B195: 0 | C195: 2019-02-17T14:30:00 | D195: 2019-02-17 | F195: 2 | I195: 7 | K195: 42051.60417 | L195: 1.19 | M195: LW | N195: 0.6335877863 | O195: 14:30:00 | P195: 17:00:00 | Q195: 11:00:00 | R195: 0.5833333333 | S195: 42051.63657 | T195: 1.422900763 | U195: 42051.70255 | V195: 42051.61834 | W195: 1.286259542 | X195: 42051.5625 | Y195: 42051.61632 | Z195: 1.239694656 | AA195: 42051.5816 | AB195: 42051.6088 | AC195: 1.076335878 | AD195: Cls | AE195: 42051.44167 | AF195: 42051.59259 | AG195: 1.039694656 | AH195: 42051.58623 | AI195: 1.139694656 | AJ195: 42051.63455 | AK195: 1.486259542 | AL195: 42051.63455 | AM195: 1.486259542 | AN195: 42051.62558 | AO195: 1.486259542 | AP195: 42051.6305 | AQ195: 1.349618321 | AR195: 42051.59375 | AS195: 42051.61806 | AT195: 42051.59375 | AU195: 1.239694656 | AV195: 42051.5978 | AW195: 1.176335878 | AX195: 42051.58623 | AY195: 1.039694656 | AZ195: 42051.58275 | BA195: 0.9763358779 | BB195: 42051.57784 | BC195: 1.076335878 | BD195: 42051.5327 | BE195: 0.9297709924 | BF195: 42051.62847 | BH195: 42051.64583 | BI195: 42051.63542
A196: 0 | B196: 0 | C196: 2019-02-17T20:48:00 | D196: 2019-02-17 | F196: 2 | I196: 7 | K196: 42051.86667 | L196: 5.31 | M196: HW | N196: 0.7130434783 | O196: 20:48:00 | P196: 1 | Q196: 18:00:00 | R196: 0.4666666667 | S196: 42051.87847 | T196: 7.140869565 | U196: 42051.94444 | V196: 42051.88009 | W196: 6.869565217 | X196: 42051.825 | Y196: 42051.85255 | Z196: 5.255652174 | AA196: 42051.84213 | AB196: 42051.84583 | AC196: 4.855652174 | AD196: Opn | AE196: 42051.73125 | AF196: 42051.84815 | AG196: 4.284347826 | AH196: 42051.82199 | AI196: 4.613043478 | AJ196: 42051.88032 | AK196: 7.040869565 | AL196: 42051.88218 | AM196: 7.012173913 | AN196: 42051.87685 | AO196: 6.769565217 | AP196: 42051.88241 | AQ196: 6.169565217 | AR196: 42051.85625 | AS196: 42051.87708 | AT196: 42051.84282 | AU196: 4.855652174 | AV196: 42051.84282 | AW196: 4.655652174 | AX196: 42051.82014 | AY196: 4.426956522 | AZ196: 42051.81667 | BA196: 4.255652174 | BB196: 42051.81319 | BC196: 4.184347826 | BD196: 42051.76204 | BE196: 4.055652174 | BF196: 42051.85625 | BH196: 42051.90833 | BI196: 42051.89792
A197: 0 | B197: 0 | C197: 2019-02-18T02:51:00 | D197: 2019-02-18 | E197: 2019-02-18 | F197: 2 | G197: Feb | H197: 18 | I197: 1 | J197: Mon | K197: 42052.11875 | L197: 1.1 | M197: LW | N197: 0.7022900763 | O197: 02:51:00 | P197: 05:00:00 | Q197: -0.04166666667 | R197: 0.6416666667 | S197: 42052.15197 | T197: 1.30610687 | U197: 42052.21794 | V197: 42052.13192 | W197: 1.176335878 | X197: 42052.07708 | Y197: 42052.13212 | Z197: 1.157251908 | AA197: 42052.09497 | AB197: 42052.12419 | AC197: 0.9870229008 | AD197: Cls | AE197: 42051.96042 | AF197: 42052.10637 | AG197: 0.9572519084 | AH197: 42052.10041 | AI197: 1.057251908 | AJ197: 42052.14974 | AK197: 1.376335878 | AL197: 42052.14974 | AM197: 1.376335878 | AN197: 42052.14057 | AO197: 1.376335878 | AP197: 42052.14528 | AQ197: 1.246564885 | AR197: 42052.10833 | AS197: 42052.13264 | AT197: 42052.10833 | AU197: 1.157251908 | AV197: 42052.11279 | AW197: 1.087022901 | AX197: 42052.10041 | AY197: 0.9572519084 | AZ197: 42052.09693 | BA197: 0.8870229008 | BB197: 42052.09222 | BC197: 0.9870229008 | BD197: 42052.04708 | BE197: 0.8679389313 | BF197: 42052.14306 | BH197: 42052.16042 | BI197: 42052.15
A198: 0 | B198: 0 | C198: 2019-02-18T09:12:00 | D198: 2019-02-18 | E198: Mon | F198: 2 | I198: 1 | K198: 42052.38333 | L198: 5.55 | M198: HW | N198: 0.9217391304 | O198: 09:12:00 | P198: 12:00:00 | Q198: 06:00:00 | R198: 0.5333333333 | S198: 42052.39583 | T198: 7.474782609 | U198: 42052.46181 | V198: 42052.39769 | W198: 7.182608696 | X198: 42052.34167 | Y198: 42052.36968 | Z198: 5.506086957 | AA198: 42052.35926 | AB198: 42052.3625 | AC198: 5.106086957 | AD198: Opn | AE198: 42052.24792 | AF198: 42052.36366 | AG198: 4.513913043 | AH198: 42052.33773 | AI198: 4.82173913 | AJ198: 42052.39745 | AK198: 7.374782609 | AL198: 42052.39907 | AM198: 7.366956522 | AN198: 42052.39398 | AO198: 7.082608696 | AP198: 42052.39884 | AQ198: 6.482608696 | AR198: 42052.37292 | AS198: 42052.39375 | AT198: 42052.35856 | AU198: 5.106086957 | AV198: 42052.35856 | AW198: 4.906086957 | AX198: 42052.33611 | AY198: 4.69826087 | AZ198: 42052.33264 | BA198: 4.506086957 | BB198: 42052.32917 | BC198: 4.413913043 | BD198: 42052.27963 | BE198: 4.306086957 | BF198: 42052.37292 | BH198: 42052.425 | BI198: 42052.41458
A199: 0 | B199: 0 | C199: 2019-02-18T15:21:00 | D199: 2019-02-18 | F199: 2 | I199: 1 | K199: 42052.63958 | L199: 0.74 | M199: LW | N199: 0.9770992366 | O199: 15:21:00 | P199: 17:00:00 | Q199: 11:00:00 | R199: 0.725 | S199: 42052.67396 | T199: 0.8389312977 | U199: 42052.73993 | V199: 42052.6513 | W199: 0.7366412214 | X199: 42052.59792 | Y199: 42052.65469 | Z199: 0.827480916 | AA199: 42052.61406 | AB199: 42052.64618 | AC199: 0.6297709924 | AD199: Cls | AE199: 42052.47708 | AF199: 42052.62604 | AG199: 0.627480916 | AH199: 42052.62066 | AI199: 0.727480916 | AJ199: 42052.67144 | AK199: 0.9366412214 | AL199: 42052.67144 | AM199: 0.9366412214 | AN199: 42052.66198 | AO199: 0.9366412214 | AP199: 42052.66641 | AQ199: 0.834351145 | AR199: 42052.62917 | AS199: 42052.65347 | AT199: 42052.62917 | AU199: 0.827480916 | AV199: 42052.6342 | AW199: 0.7297709924 | AX199: 42052.62066 | AY199: 0.627480916 | AZ199: 42052.61719 | BA199: 0.5297709924 | BB199: 42052.61276 | BC199: 0.6297709924 | BD199: 42052.56762 | BE199: 0.620610687 | BF199: 42052.66389 | BH199: 42052.68125 | BI199: 42052.67083
A200: 0 | B200: 0 | C200: 2019-02-18T21:38:00 | D200: 2019-02-18 | F200: 2 | I200: 1 | K200: 42052.90139 | L200: 5.61 | M200: HW | N200: 0.9739130435 | O200: 21:38:00 | P200: 1 | Q200: 18:00:00 | R200: 0.6055555556 | S200: 42052.91464 | T200: 7.55826087 | U200: 42052.98061 | V200: 42052.91674 | W200: 7.260869565 | X200: 42052.85972 | Y200: 42052.88823 | Z200: 5.568695652 | AA200: 42052.87782 | AB200: 42052.88056 | AC200: 5.168695652 | AD200: Opn | AE200: 42052.76597 | AF200: 42052.88046 | AG200: 4.571304348 | AH200: 42052.85478 | AI200: 4.873913043 | AJ200: 42052.91601 | AK200: 7.45826087 | AL200: 42052.91738 | AM200: 7.455652174 | AN200: 42052.91254 | AO200: 7.160869565 | AP200: 42052.91665 | AQ200: 6.560869565 | AR200: 42052.89097 | AS200: 42052.91181 | AT200: 42052.87562 | AU200: 5.168695652 | AV200: 42052.87562 | AW200: 4.968695652 | AX200: 42052.85341 | AY200: 4.766086957 | AZ200: 42052.84994 | BA200: 4.568695652 | BB200: 42052.84647 | BC200: 4.471304348 | BD200: 42052.79869 | BE200: 4.368695652 | BF200: 42052.89097 | BH200: 42052.94306 | BI200: 42052.93264
... 1221 more rows
